Body Name,Body,Date,Department,Beneficiary,Summary of Purpose (SeRCOP),Amount,Merchant Code,Transaction Number,Supplier ID
Sandwell Metropolitan Borough Council,http://www.sandwell.gov.uk/info/200202/performance_and_spending/1079/payments_over_500,01-Nov-2022,Adults Social Care Capital,AXIS EUROPE PLC                  ,Adults Social Care Capital,4476.40,Deferred Charges/Grant Payments,2223P08_CR00001,64946
Sandwell Metropolitan Borough Council,http://www.sandwell.gov.uk/info/200202/performance_and_spending/1079/payments_over_500,07-Nov-2022,Adults Social Care Capital,BROXAP LIMITED,Adults Social Care Capital,1807.00,CIP - Fixtures & Fittings,2223P08_CR00002,99472
Sandwell Metropolitan Borough Council,http://www.sandwell.gov.uk/info/200202/performance_and_spending/1079/payments_over_500,11-Nov-2022,Adults Social Care Capital,BROXAP LIMITED,Adults Social Care Capital,4202.00,CIP - Fixtures & Fittings,2223P08_CR00003,99472
Sandwell Metropolitan Borough Council,http://www.sandwell.gov.uk/info/200202/performance_and_spending/1079/payments_over_500,11-Nov-2022,Adults Social Care Capital,BROXAP LIMITED,Adults Social Care Capital,2463.00,CIP - Fixtures & Fittings,2223P08_CR00004,99472
Sandwell Metropolitan Borough Council,http://www.sandwell.gov.uk/info/200202/performance_and_spending/1079/payments_over_500,21-Nov-2022,Adults Social Care Capital,BROXAP LIMITED,Adults Social Care Capital,795.00,CIP - Fixtures & Fittings,2223P08_CR00005,99472
Sandwell Metropolitan Borough Council,http://www.sandwell.gov.uk/info/200202/performance_and_spending/1079/payments_over_500,01-Nov-2022,Adults Social Care Capital,D P DESIGN PARTNERSHIP,Adults Social Care Capital,1225.00,"CIP - New Construction,Conversion, Enhancement & Reno",2223P08_CR00006,145811
Sandwell Metropolitan Borough Council,http://www.sandwell.gov.uk/info/200202/performance_and_spending/1079/payments_over_500,01-Nov-2022,Adults Social Care Capital,DLM BUILDING & MAINTENANCE LTD,Adults Social Care Capital,5665.40,Deferred Charges/Grant Payments,2223P08_CR00007,137596
Sandwell Metropolitan Borough Council,http://www.sandwell.gov.uk/info/200202/performance_and_spending/1079/payments_over_500,01-Nov-2022,Adults Social Care Capital,DOLPHIN LIFTS MIDLANDS LTD,Adults Social Care Capital,1444.26,Deferred Charges/Grant Payments,2223P08_CR00008,123852
Sandwell Metropolitan Borough Council,http://www.sandwell.gov.uk/info/200202/performance_and_spending/1079/payments_over_500,01-Nov-2022,Adults Social Care Capital,DOLPHIN LIFTS MIDLANDS LTD,Adults Social Care Capital,6381.66,Deferred Charges/Grant Payments,2223P08_CR00009,123852
Sandwell Metropolitan Borough Council,http://www.sandwell.gov.uk/info/200202/performance_and_spending/1079/payments_over_500,02-Nov-2022,Adults Social Care Capital,DOLPHIN LIFTS MIDLANDS LTD,Adults Social Care Capital,7313.26,Deferred Charges/Grant Payments,2223P08_CR00010,123852
Sandwell Metropolitan Borough Council,http://www.sandwell.gov.uk/info/200202/performance_and_spending/1079/payments_over_500,14-Nov-2022,Adults Social Care Capital,DOLPHIN LIFTS MIDLANDS LTD,Adults Social Care Capital,6680.80,Deferred Charges/Grant Payments,2223P08_CR00011,123852
Sandwell Metropolitan Borough Council,http://www.sandwell.gov.uk/info/200202/performance_and_spending/1079/payments_over_500,01-Nov-2022,Adults Social Care Capital,DOLPHIN LIFTS MIDLANDS LTD,Adults Social Care Capital,3601.66,Deferred Charges/Grant Payments,2223P08_CR00012,123852
Sandwell Metropolitan Borough Council,http://www.sandwell.gov.uk/info/200202/performance_and_spending/1079/payments_over_500,01-Nov-2022,Adults Social Care Capital,DOLPHIN LIFTS MIDLANDS LTD,Adults Social Care Capital,3960.08,Deferred Charges/Grant Payments,2223P08_CR00013,123852
Sandwell Metropolitan Borough Council,http://www.sandwell.gov.uk/info/200202/performance_and_spending/1079/payments_over_500,01-Nov-2022,Adults Social Care Capital,DOLPHIN LIFTS MIDLANDS LTD,Adults Social Care Capital,3780.08,Deferred Charges/Grant Payments,2223P08_CR00014,123852
Sandwell Metropolitan Borough Council,http://www.sandwell.gov.uk/info/200202/performance_and_spending/1079/payments_over_500,01-Nov-2022,Adults Social Care Capital,DOLPHIN LIFTS MIDLANDS LTD,Adults Social Care Capital,2020.00,Deferred Charges/Grant Payments,2223P08_CR00015,123852
Sandwell Metropolitan Borough Council,http://www.sandwell.gov.uk/info/200202/performance_and_spending/1079/payments_over_500,01-Nov-2022,Adults Social Care Capital,DOLPHIN LIFTS MIDLANDS LTD,Adults Social Care Capital,1466.60,Deferred Charges/Grant Payments,2223P08_CR00016,123852
Sandwell Metropolitan Borough Council,http://www.sandwell.gov.uk/info/200202/performance_and_spending/1079/payments_over_500,01-Nov-2022,Adults Social Care Capital,DOLPHIN LIFTS MIDLANDS LTD,Adults Social Care Capital,3282.60,Deferred Charges/Grant Payments,2223P08_CR00017,123852
Sandwell Metropolitan Borough Council,http://www.sandwell.gov.uk/info/200202/performance_and_spending/1079/payments_over_500,01-Nov-2022,Adults Social Care Capital,DOLPHIN LIFTS MIDLANDS LTD,Adults Social Care Capital,2166.60,Deferred Charges/Grant Payments,2223P08_CR00018,123852
Sandwell Metropolitan Borough Council,http://www.sandwell.gov.uk/info/200202/performance_and_spending/1079/payments_over_500,01-Nov-2022,Adults Social Care Capital,EVARIS SOLUTIONS LTD,Adults Social Care Capital,21865.00,"CIP - New Construction,Conversion, Enhancement & Reno",2223P08_CR00019,161598
Sandwell Metropolitan Borough Council,http://www.sandwell.gov.uk/info/200202/performance_and_spending/1079/payments_over_500,01-Nov-2022,Adults Social Care Capital,GVAV LTD,Adults Social Care Capital,65254.65,"CIP - New Construction,Conversion, Enhancement & Reno",2223P08_CR00020,152431
Sandwell Metropolitan Borough Council,http://www.sandwell.gov.uk/info/200202/performance_and_spending/1079/payments_over_500,17-Nov-2022,Adults Social Care Capital,HILL INTERIOR CONTRACTS LTD,Adults Social Care Capital,14114.71,"CIP - New Construction,Conversion, Enhancement & Reno",2223P08_CR00021,17158
Sandwell Metropolitan Borough Council,http://www.sandwell.gov.uk/info/200202/performance_and_spending/1079/payments_over_500,01-Nov-2022,Adults Social Care Capital,MEDIPOST (UK) LTD,Adults Social Care Capital,1970.96,CIP - Fixtures & Fittings,2223P08_CR00022,84875
Sandwell Metropolitan Borough Council,http://www.sandwell.gov.uk/info/200202/performance_and_spending/1079/payments_over_500,01-Nov-2022,Adults Social Care Capital,OPENVIEW SECURITY SOLUTIONS LIMITED,Adults Social Care Capital,115918.81,"CIP - New Construction,Conversion, Enhancement & Reno",2223P08_CR00023,77000151
Sandwell Metropolitan Borough Council,http://www.sandwell.gov.uk/info/200202/performance_and_spending/1079/payments_over_500,01-Nov-2022,Adults Social Care Capital,PERVASIVE NETWORKS LTD,Adults Social Care Capital,37162.50,CIP - ICT,2223P08_CR00024,01658599
Sandwell Metropolitan Borough Council,http://www.sandwell.gov.uk/info/200202/performance_and_spending/1079/payments_over_500,01-Nov-2022,Adults Social Care Capital,PR PROPERTY MAINTENANCE,Adults Social Care Capital,41730.88,Deferred Charges/Grant Payments,2223P08_CR00025,33836
Sandwell Metropolitan Borough Council,http://www.sandwell.gov.uk/info/200202/performance_and_spending/1079/payments_over_500,01-Nov-2022,Adults Social Care Capital,PR PROPERTY MAINTENANCE,Adults Social Care Capital,8744.67,Deferred Charges/Grant Payments,2223P08_CR00026,33836
Sandwell Metropolitan Borough Council,http://www.sandwell.gov.uk/info/200202/performance_and_spending/1079/payments_over_500,03-Nov-2022,Adults Social Care Capital,PROFILE SECURITY SERVICES LTD,Adults Social Care Capital,4243.20,Security,2223P08_CR00027,131253
Sandwell Metropolitan Borough Council,http://www.sandwell.gov.uk/info/200202/performance_and_spending/1079/payments_over_500,16-Nov-2022,Adults Social Care Capital,RHINO SENSORY UK LTD,Adults Social Care Capital,2174.25,CIP - Fixtures & Fittings,2223P08_CR00028,163857
Sandwell Metropolitan Borough Council,http://www.sandwell.gov.uk/info/200202/performance_and_spending/1079/payments_over_500,18-Nov-2022,Adults Social Care Capital,RHINO SENSORY UK LTD,Adults Social Care Capital,14477.50,CIP - Fixtures & Fittings,2223P08_CR00029,163857
Sandwell Metropolitan Borough Council,http://www.sandwell.gov.uk/info/200202/performance_and_spending/1079/payments_over_500,01-Nov-2022,Adults Social Care Capital,SCREEN PRINT WORLD LTD,Adults Social Care Capital,860.00,"CIP - New Construction,Conversion, Enhancement & Reno",2223P08_CR00030,163373
Sandwell Metropolitan Borough Council,http://www.sandwell.gov.uk/info/200202/performance_and_spending/1079/payments_over_500,10-Nov-2022,Adults Social Care Capital,SEDDON CONSTRUCTION LIMITED,Adults Social Care Capital,65348.80,"CIP - New Construction,Conversion, Enhancement & Reno",2223P08_CR00031,132999
Sandwell Metropolitan Borough Council,http://www.sandwell.gov.uk/info/200202/performance_and_spending/1079/payments_over_500,01-Nov-2022,Adults Social Care Capital,TOTALENERGIES GAS & POWER LTD,Adults Social Care Capital,3979.97,Electricity,2223P08_CR00032,107605
Sandwell Metropolitan Borough Council,http://www.sandwell.gov.uk/info/200202/performance_and_spending/1079/payments_over_500,01-Nov-2022,Adults Social Care Capital,TOTALENERGIES GAS & POWER LTD,Adults Social Care Capital,585.48,Electricity,2223P08_CR00033,107605
Sandwell Metropolitan Borough Council,http://www.sandwell.gov.uk/info/200202/performance_and_spending/1079/payments_over_500,01-Nov-2022,Adults Social Care Capital,TOTALENERGIES GAS & POWER LTD,Adults Social Care Capital,4045.40,Electricity,2223P08_CR00034,107605
Sandwell Metropolitan Borough Council,http://www.sandwell.gov.uk/info/200202/performance_and_spending/1079/payments_over_500,01-Nov-2022,Adults Social Care Capital,TOTALENERGIES GAS & POWER LTD,Adults Social Care Capital,3689.73,Electricity,2223P08_CR00035,107605
Sandwell Metropolitan Borough Council,http://www.sandwell.gov.uk/info/200202/performance_and_spending/1079/payments_over_500,01-Nov-2022,Adults Social Care Capital,TOTALENERGIES GAS & POWER LTD,Adults Social Care Capital,5260.08,Electricity,2223P08_CR00036,107605
Sandwell Metropolitan Borough Council,http://www.sandwell.gov.uk/info/200202/performance_and_spending/1079/payments_over_500,01-Nov-2022,Adults Social Care Capital,TOTALENERGIES GAS & POWER LTD,Adults Social Care Capital,6274.74,Electricity,2223P08_CR00037,107605
Sandwell Metropolitan Borough Council,http://www.sandwell.gov.uk/info/200202/performance_and_spending/1079/payments_over_500,01-Nov-2022,Adults Social Care Capital,HOME DESIGN,Adults Social Care Capital,29000.00,Deferred Charges/Grant Payments,2223P08_CR00038,141847
Sandwell Metropolitan Borough Council,http://www.sandwell.gov.uk/info/200202/performance_and_spending/1079/payments_over_500,01-Nov-2022,Adults Social Care Capital,HOME DESIGN,Adults Social Care Capital,1225.00,Deferred Charges/Grant Payments,2223P08_CR00039,141847
Sandwell Metropolitan Borough Council,http://www.sandwell.gov.uk/info/200202/performance_and_spending/1079/payments_over_500,11-Nov-2022,Adults Social Care Capital,INTEGRATED DESIGNS & ASSOCIATES LTD,Adults Social Care Capital,5175.00,Deferred Charges/Grant Payments,2223P08_CR00040,22339
Sandwell Metropolitan Borough Council,http://www.sandwell.gov.uk/info/200202/performance_and_spending/1079/payments_over_500,01-Nov-2022,Adults Social Care Capital,SNOWDROP INDEPENDENT LIVING LTD,Adults Social Care Capital,2213.98,Deferred Charges/Grant Payments,2223P08_CR00041,163165
Sandwell Metropolitan Borough Council,http://www.sandwell.gov.uk/info/200202/performance_and_spending/1079/payments_over_500,01-Nov-2022,Adults Social Care Capital,TRISTAN ARTHUR ARCHITECTS,Adults Social Care Capital,1000.00,Deferred Charges/Grant Payments,2223P08_CR00042,146335
Sandwell Metropolitan Borough Council,http://www.sandwell.gov.uk/info/200202/performance_and_spending/1079/payments_over_500,01-Nov-2022,Adults Social Care Capital,TRISTAN ARTHUR ARCHITECTS,Adults Social Care Capital,29000.00,Deferred Charges/Grant Payments,2223P08_CR00043,146335
Sandwell Metropolitan Borough Council,http://www.sandwell.gov.uk/info/200202/performance_and_spending/1079/payments_over_500,09-Nov-2022,Adults Social Care Capital,PARVINDER SINGH.,Adults Social Care Capital,8379.00,Deferred Charges/Grant Payments,2223P08_CR00044,164062
Sandwell Metropolitan Borough Council,http://www.sandwell.gov.uk/info/200202/performance_and_spending/1079/payments_over_500,01-Nov-2022,Adults Social Care Capital,R J WISHART,Adults Social Care Capital,14803.50,Deferred Charges/Grant Payments,2223P08_CR00045,08555927
Sandwell Metropolitan Borough Council,http://www.sandwell.gov.uk/info/200202/performance_and_spending/1079/payments_over_500,08-Nov-2022,Childrens Services,A OAKES LTD,Childrens Services,835.00,Protective Clothing & Uniforms,2223P08_CR00046,01042944
Sandwell Metropolitan Borough Council,http://www.sandwell.gov.uk/info/200202/performance_and_spending/1079/payments_over_500,18-Nov-2022,Childrens Services,AMP BIOMASS FUEL LTD T/A AMP CLEAN ENERGY,Childrens Services,5104.80,Ingestre Hall Arts Centre.Energy Costs-Bio Energy,2223P08_CR00047,128761
Sandwell Metropolitan Borough Council,http://www.sandwell.gov.uk/info/200202/performance_and_spending/1079/payments_over_500,15-Nov-2022,Childrens Services,APTITUDE ORGANISATION CIC,Childrens Services,5800.00,Externally Purchased Professional Services ,2223P08_CR00048,164607
Sandwell Metropolitan Borough Council,http://www.sandwell.gov.uk/info/200202/performance_and_spending/1079/payments_over_500,01-Nov-2022,Childrens Services,AVANTI GAS LIMITED,Childrens Services,550.96,Gas,2223P08_CR00049,60069
Sandwell Metropolitan Borough Council,http://www.sandwell.gov.uk/info/200202/performance_and_spending/1079/payments_over_500,01-Nov-2022,Childrens Services,AVANTI GAS LIMITED,Childrens Services,628.35,Gas,2223P08_CR00050,60069
Sandwell Metropolitan Borough Council,http://www.sandwell.gov.uk/info/200202/performance_and_spending/1079/payments_over_500,01-Nov-2022,Childrens Services,AVANTI GAS LIMITED,Childrens Services,634.74,Gas,2223P08_CR00051,60069
Sandwell Metropolitan Borough Council,http://www.sandwell.gov.uk/info/200202/performance_and_spending/1079/payments_over_500,09-Nov-2022,Childrens Services,BARNARDO SERVICES LIMITED,Childrens Services,655111.00,Contract Payments,2223P08_CR00052,9330
Sandwell Metropolitan Borough Council,http://www.sandwell.gov.uk/info/200202/performance_and_spending/1079/payments_over_500,09-Nov-2022,Childrens Services,BARNARDO SERVICES LIMITED,Childrens Services,747718.00,Contract Payments,2223P08_CR00053,9330
Sandwell Metropolitan Borough Council,http://www.sandwell.gov.uk/info/200202/performance_and_spending/1079/payments_over_500,17-Nov-2022,Childrens Services,BETHEL CONVENTION CENTRE,Childrens Services,1315.00,Hire of Facilities,2223P08_CR00054,01719624
Sandwell Metropolitan Borough Council,http://www.sandwell.gov.uk/info/200202/performance_and_spending/1079/payments_over_500,28-Nov-2022,Childrens Services,BILSTON RESOURCE CENTRE,Childrens Services,2162.72,Grants,2223P08_CR00055,131198
Sandwell Metropolitan Borough Council,http://www.sandwell.gov.uk/info/200202/performance_and_spending/1079/payments_over_500,09-Nov-2022,Childrens Services,C&C CATERING ENGINEERS LTD,Childrens Services,1890.00,Equipment & Furniture ,2223P08_CR00056,131658
Sandwell Metropolitan Borough Council,http://www.sandwell.gov.uk/info/200202/performance_and_spending/1079/payments_over_500,14-Nov-2022,Childrens Services,CANAL & RIVER TRUST,Childrens Services,864.00,Licences,2223P08_CR00057,01631306
Sandwell Metropolitan Borough Council,http://www.sandwell.gov.uk/info/200202/performance_and_spending/1079/payments_over_500,01-Nov-2022,Childrens Services,CASCAID LIMITED,Childrens Services,699.00,Subscriptions,2223P08_CR00058,01757445
Sandwell Metropolitan Borough Council,http://www.sandwell.gov.uk/info/200202/performance_and_spending/1079/payments_over_500,15-Nov-2022,Childrens Services,CASTELL HOWELL FOODS LTD,Childrens Services,637.52,Catering Provisions,2223P08_CR00059,163660
Sandwell Metropolitan Borough Council,http://www.sandwell.gov.uk/info/200202/performance_and_spending/1079/payments_over_500,15-Nov-2022,Childrens Services,CERTAS ENERGY LIMITED,Childrens Services,909.30,Oil,2223P08_CR00060,80421
Sandwell Metropolitan Borough Council,http://www.sandwell.gov.uk/info/200202/performance_and_spending/1079/payments_over_500,15-Nov-2022,Childrens Services,CERTAS ENERGY LIMITED,Childrens Services,909.30,Oil,2223P08_CR00061,80421
Sandwell Metropolitan Borough Council,http://www.sandwell.gov.uk/info/200202/performance_and_spending/1079/payments_over_500,21-Nov-2022,Childrens Services,CHAPLINS ENTERTAINMENT LIMITED,Childrens Services,1368.00,Externally Purchased Professional Services ,2223P08_CR00062,01772924
Sandwell Metropolitan Borough Council,http://www.sandwell.gov.uk/info/200202/performance_and_spending/1079/payments_over_500,01-Nov-2022,Childrens Services,CLASSIC CARS 1997,Childrens Services,2015.00,Public Transport,2223P08_CR00063,06005093
Sandwell Metropolitan Borough Council,http://www.sandwell.gov.uk/info/200202/performance_and_spending/1079/payments_over_500,07-Nov-2022,Childrens Services,CLIVE MARK SCHOOLWEAR LTD,Childrens Services,1083.49,Protective Clothing & Uniforms,2223P08_CR00064,01058664
Sandwell Metropolitan Borough Council,http://www.sandwell.gov.uk/info/200202/performance_and_spending/1079/payments_over_500,10-Nov-2022,Childrens Services,COUNTY CARS (2003) LIMITED,Childrens Services,203800.91,Public Transport,2223P08_CR00065,06002387
Sandwell Metropolitan Borough Council,http://www.sandwell.gov.uk/info/200202/performance_and_spending/1079/payments_over_500,01-Nov-2022,Childrens Services,COUNTY CARS (2003) LIMITED,Childrens Services,3696.00,Public Transport,2223P08_CR00066,06002387
Sandwell Metropolitan Borough Council,http://www.sandwell.gov.uk/info/200202/performance_and_spending/1079/payments_over_500,01-Nov-2022,Childrens Services,COUNTY CARS (2003) LIMITED,Childrens Services,62251.92,Public Transport,2223P08_CR00067,06002387
Sandwell Metropolitan Borough Council,http://www.sandwell.gov.uk/info/200202/performance_and_spending/1079/payments_over_500,01-Nov-2022,Childrens Services,COUNTY CARS (2003) LIMITED,Childrens Services,13949.56,Public Transport,2223P08_CR00068,06002387
Sandwell Metropolitan Borough Council,http://www.sandwell.gov.uk/info/200202/performance_and_spending/1079/payments_over_500,01-Nov-2022,Childrens Services,COUNTY CARS (2003) LIMITED,Childrens Services,38720.00,Public Transport,2223P08_CR00069,06002387
Sandwell Metropolitan Borough Council,http://www.sandwell.gov.uk/info/200202/performance_and_spending/1079/payments_over_500,01-Nov-2022,Childrens Services,COUNTY CARS (2003) LIMITED,Childrens Services,37409.72,Public Transport,2223P08_CR00070,06002387
Sandwell Metropolitan Borough Council,http://www.sandwell.gov.uk/info/200202/performance_and_spending/1079/payments_over_500,01-Nov-2022,Childrens Services,COUNTY CARS (2003) LIMITED,Childrens Services,65449.28,Public Transport,2223P08_CR00071,06002387
Sandwell Metropolitan Borough Council,http://www.sandwell.gov.uk/info/200202/performance_and_spending/1079/payments_over_500,01-Nov-2022,Childrens Services,CPOMS SYSTEMS LIMITED,Childrens Services,530.00,Subscriptions,2223P08_CR00072,146336
Sandwell Metropolitan Borough Council,http://www.sandwell.gov.uk/info/200202/performance_and_spending/1079/payments_over_500,01-Nov-2022,Childrens Services,CRESTED SCHOOLWEAR,Childrens Services,1225.00,Protective Clothing & Uniforms,2223P08_CR00073,157541
Sandwell Metropolitan Borough Council,http://www.sandwell.gov.uk/info/200202/performance_and_spending/1079/payments_over_500,01-Nov-2022,Childrens Services,DIRECTION TRAINING & MANAGEMENT,Childrens Services,1000.00,Externally Purchased Professional Services ,2223P08_CR00074,01727395
Sandwell Metropolitan Borough Council,http://www.sandwell.gov.uk/info/200202/performance_and_spending/1079/payments_over_500,01-Nov-2022,Childrens Services,DRYWALL STEEL SECTIONS LTD,Childrens Services,1085.21,Externally Purchased Professional Services ,2223P08_CR00075,132994
Sandwell Metropolitan Borough Council,http://www.sandwell.gov.uk/info/200202/performance_and_spending/1079/payments_over_500,04-Nov-2022,Childrens Services,DUDLEY COLLEGE OF TECHNOLOGY,Childrens Services,505.00,Externally Purchased Professional Services ,2223P08_CR00076,01646653
Sandwell Metropolitan Borough Council,http://www.sandwell.gov.uk/info/200202/performance_and_spending/1079/payments_over_500,10-Nov-2022,Childrens Services,EGANS COACH TRAVEL LTD T/A KINGS NORTON COACHES,Childrens Services,27463.64,Public Transport,2223P08_CR00077,164676
Sandwell Metropolitan Borough Council,http://www.sandwell.gov.uk/info/200202/performance_and_spending/1079/payments_over_500,01-Nov-2022,Childrens Services,EURO SHAF TRAINING SERVICES LIMITED,Childrens Services,875.00,Externally Purchased Professional Services ,2223P08_CR00078,76260
Sandwell Metropolitan Borough Council,http://www.sandwell.gov.uk/info/200202/performance_and_spending/1079/payments_over_500,01-Nov-2022,Childrens Services,EURO SHAF TRAINING SERVICES LIMITED,Childrens Services,875.00,Externally Purchased Professional Services ,2223P08_CR00079,76260
Sandwell Metropolitan Borough Council,http://www.sandwell.gov.uk/info/200202/performance_and_spending/1079/payments_over_500,21-Nov-2022,Childrens Services,FIRST RESPONSE (FIRST AID) LTD,Childrens Services,875.00,Externally Purchased Professional Services ,2223P08_CR00080,57372
Sandwell Metropolitan Borough Council,http://www.sandwell.gov.uk/info/200202/performance_and_spending/1079/payments_over_500,23-Nov-2022,Childrens Services,FIRST RESPONSE (FIRST AID) LTD,Childrens Services,875.00,Externally Purchased Professional Services ,2223P08_CR00081,57372
Sandwell Metropolitan Borough Council,http://www.sandwell.gov.uk/info/200202/performance_and_spending/1079/payments_over_500,01-Nov-2022,Childrens Services,FLUID BRANDING LIMITED,Childrens Services,4540.00,Advertising & Publicity,2223P08_CR00082,110355
Sandwell Metropolitan Borough Council,http://www.sandwell.gov.uk/info/200202/performance_and_spending/1079/payments_over_500,01-Nov-2022,Childrens Services,FUEL CARD SERVICES LIMITED,Childrens Services,718.04,Fuel ,2223P08_CR00083,113072
Sandwell Metropolitan Borough Council,http://www.sandwell.gov.uk/info/200202/performance_and_spending/1079/payments_over_500,01-Nov-2022,Childrens Services,GATEWAY QUALIFICATIONS,Childrens Services,559.00,Externally Purchased Professional Services ,2223P08_CR00084,151038
Sandwell Metropolitan Borough Council,http://www.sandwell.gov.uk/info/200202/performance_and_spending/1079/payments_over_500,17-Nov-2022,Childrens Services,GAYTON ROAD COMMUNITY CENTRE ASSOCIATION,Childrens Services,516.00,Hire of Facilities,2223P08_CR00085,112420
Sandwell Metropolitan Borough Council,http://www.sandwell.gov.uk/info/200202/performance_and_spending/1079/payments_over_500,21-Nov-2022,Childrens Services,GLEBEFIELDS PRIMARY SCHOOL  ,Childrens Services,1500.00,Grants,2223P08_CR00086,01782689
Sandwell Metropolitan Borough Council,http://www.sandwell.gov.uk/info/200202/performance_and_spending/1079/payments_over_500,21-Nov-2022,Childrens Services,GLEBEFIELDS PRIMARY SCHOOL  ,Childrens Services,1500.00,Grants,2223P08_CR00087,01782689
Sandwell Metropolitan Borough Council,http://www.sandwell.gov.uk/info/200202/performance_and_spending/1079/payments_over_500,21-Nov-2022,Childrens Services,GLEBEFIELDS PRIMARY SCHOOL  ,Childrens Services,500.00,Grants,2223P08_CR00088,01782689
Sandwell Metropolitan Borough Council,http://www.sandwell.gov.uk/info/200202/performance_and_spending/1079/payments_over_500,21-Nov-2022,Childrens Services,GLEBEFIELDS PRIMARY SCHOOL  ,Childrens Services,500.00,Grants,2223P08_CR00089,01782689
Sandwell Metropolitan Borough Council,http://www.sandwell.gov.uk/info/200202/performance_and_spending/1079/payments_over_500,22-Nov-2022,Childrens Services,GLEBEFIELDS PRIMARY SCHOOL  ,Childrens Services,500.00,Grants,2223P08_CR00090,01782689
Sandwell Metropolitan Borough Council,http://www.sandwell.gov.uk/info/200202/performance_and_spending/1079/payments_over_500,22-Nov-2022,Childrens Services,GLEBEFIELDS PRIMARY SCHOOL  ,Childrens Services,500.00,Grants,2223P08_CR00091,01782689
Sandwell Metropolitan Borough Council,http://www.sandwell.gov.uk/info/200202/performance_and_spending/1079/payments_over_500,08-Nov-2022,Childrens Services,HANBURY PRIMARY SCHOOL,Childrens Services,1085.21,Externally Purchased Professional Services ,2223P08_CR00092,01734408
Sandwell Metropolitan Borough Council,http://www.sandwell.gov.uk/info/200202/performance_and_spending/1079/payments_over_500,01-Nov-2022,Childrens Services,HER MAJESTYS PRISON AND PROBATION SERVICE,Childrens Services,9210.00,Other Establishments,2223P08_CR00093,134815
Sandwell Metropolitan Borough Council,http://www.sandwell.gov.uk/info/200202/performance_and_spending/1079/payments_over_500,01-Nov-2022,Childrens Services,HER MAJESTYS PRISON AND PROBATION SERVICE,Childrens Services,9210.00,Other Establishments,2223P08_CR00094,134815
Sandwell Metropolitan Borough Council,http://www.sandwell.gov.uk/info/200202/performance_and_spending/1079/payments_over_500,01-Nov-2022,Childrens Services,HER MAJESTYS PRISON AND PROBATION SERVICE,Childrens Services,9210.00,Other Establishments,2223P08_CR00095,134815
Sandwell Metropolitan Borough Council,http://www.sandwell.gov.uk/info/200202/performance_and_spending/1079/payments_over_500,01-Nov-2022,Childrens Services,HER MAJESTYS PRISON AND PROBATION SERVICE,Childrens Services,23100.00,Other Establishments,2223P08_CR00096,134815
Sandwell Metropolitan Borough Council,http://www.sandwell.gov.uk/info/200202/performance_and_spending/1079/payments_over_500,01-Nov-2022,Childrens Services,HILL INTERIOR CONTRACTS LTD,Childrens Services,4275.36,Building Maintenance & Improvements,2223P08_CR00097,17158
Sandwell Metropolitan Borough Council,http://www.sandwell.gov.uk/info/200202/performance_and_spending/1079/payments_over_500,08-Nov-2022,Childrens Services,IDOX SOFTWARE LTD,Childrens Services,17500.00,Externally Purchased Professional Services ,2223P08_CR00098,17007
Sandwell Metropolitan Borough Council,http://www.sandwell.gov.uk/info/200202/performance_and_spending/1079/payments_over_500,01-Nov-2022,Childrens Services,ILEYS COMMUNITY ASSOCIATION,Childrens Services,1872.69,Grants,2223P08_CR00099,88247
Sandwell Metropolitan Borough Council,http://www.sandwell.gov.uk/info/200202/performance_and_spending/1079/payments_over_500,01-Nov-2022,Childrens Services,INGESTRE ORANGERY AND GARDENS,Childrens Services,650.00,Materials & Consumables,2223P08_CR00100,127331
Sandwell Metropolitan Borough Council,http://www.sandwell.gov.uk/info/200202/performance_and_spending/1079/payments_over_500,01-Nov-2022,Childrens Services,IRON MAIDENS COMMERCIAL LAUNDRY LIMITED,Childrens Services,1454.10,Laundry,2223P08_CR00101,124628
Sandwell Metropolitan Borough Council,http://www.sandwell.gov.uk/info/200202/performance_and_spending/1079/payments_over_500,01-Nov-2022,Childrens Services,JOLLIMAN ESSENTIALS LIMITED,Childrens Services,746.52,Externally Purchased Professional Services ,2223P08_CR00102,142689
Sandwell Metropolitan Borough Council,http://www.sandwell.gov.uk/info/200202/performance_and_spending/1079/payments_over_500,01-Nov-2022,Childrens Services,LEARNING INTO EMPLOYMENT ACADEMY LTD,Childrens Services,1242.99,Externally Purchased Professional Services ,2223P08_CR00103,147427
Sandwell Metropolitan Borough Council,http://www.sandwell.gov.uk/info/200202/performance_and_spending/1079/payments_over_500,01-Nov-2022,Childrens Services,LEARNPLAY FOUNDATION LTD,Childrens Services,800.00,Externally Purchased Professional Services ,2223P08_CR00104,86525
Sandwell Metropolitan Borough Council,http://www.sandwell.gov.uk/info/200202/performance_and_spending/1079/payments_over_500,01-Nov-2022,Childrens Services,LEARNPLAY FOUNDATION LTD,Childrens Services,800.00,Externally Purchased Professional Services ,2223P08_CR00105,86525
Sandwell Metropolitan Borough Council,http://www.sandwell.gov.uk/info/200202/performance_and_spending/1079/payments_over_500,01-Nov-2022,Childrens Services,LIONCOURT HOMES LIMITED,Childrens Services,941.16,Externally Purchased Professional Services ,2223P08_CR00106,133372
Sandwell Metropolitan Borough Council,http://www.sandwell.gov.uk/info/200202/performance_and_spending/1079/payments_over_500,01-Nov-2022,Childrens Services,LIONCOURT HOMES LIMITED,Childrens Services,941.16,Externally Purchased Professional Services ,2223P08_CR00107,133372
Sandwell Metropolitan Borough Council,http://www.sandwell.gov.uk/info/200202/performance_and_spending/1079/payments_over_500,01-Nov-2022,Childrens Services,LOCAL EDUCATION AND DEVELOPMENT,Childrens Services,1036.75,Discretionary Awards,2223P08_CR00108,148259
Sandwell Metropolitan Borough Council,http://www.sandwell.gov.uk/info/200202/performance_and_spending/1079/payments_over_500,14-Nov-2022,Childrens Services,MENZIES DESIGN AND PRINT LTD,Childrens Services,680.00,"Printing, Stationery & General Office Expenses",2223P08_CR00109,113639
Sandwell Metropolitan Borough Council,http://www.sandwell.gov.uk/info/200202/performance_and_spending/1079/payments_over_500,02-Nov-2022,Childrens Services,MOVECORP HOLDINGS LTD,Childrens Services,4698.00,Waste Disposal Charges,2223P08_CR00110,152623
Sandwell Metropolitan Borough Council,http://www.sandwell.gov.uk/info/200202/performance_and_spending/1079/payments_over_500,01-Nov-2022,Childrens Services,MR BAMBOO CUP LIMITED,Childrens Services,597.50,Advertising & Publicity,2223P08_CR00111,163782
Sandwell Metropolitan Borough Council,http://www.sandwell.gov.uk/info/200202/performance_and_spending/1079/payments_over_500,01-Nov-2022,Childrens Services,NCFE,Childrens Services,618.00,Externally Purchased Professional Services ,2223P08_CR00112,6230
Sandwell Metropolitan Borough Council,http://www.sandwell.gov.uk/info/200202/performance_and_spending/1079/payments_over_500,01-Nov-2022,Childrens Services,NET BUILDER LIMITED,Childrens Services,1999.44,Externally Purchased Professional Services ,2223P08_CR00113,139019
Sandwell Metropolitan Borough Council,http://www.sandwell.gov.uk/info/200202/performance_and_spending/1079/payments_over_500,01-Nov-2022,Childrens Services,NET BUILDER LIMITED,Childrens Services,1241.41,Externally Purchased Professional Services ,2223P08_CR00114,139019
Sandwell Metropolitan Borough Council,http://www.sandwell.gov.uk/info/200202/performance_and_spending/1079/payments_over_500,01-Nov-2022,Childrens Services,NET BUILDER LIMITED,Childrens Services,1241.81,Externally Purchased Professional Services ,2223P08_CR00115,139019
Sandwell Metropolitan Borough Council,http://www.sandwell.gov.uk/info/200202/performance_and_spending/1079/payments_over_500,01-Nov-2022,Childrens Services,NEWAVE LTD,Childrens Services,1518.16,Agency Staff,2223P08_CR00116,101666
Sandwell Metropolitan Borough Council,http://www.sandwell.gov.uk/info/200202/performance_and_spending/1079/payments_over_500,01-Nov-2022,Childrens Services,NEWAVE LTD,Childrens Services,504.00,Agency Staff,2223P08_CR00117,101666
Sandwell Metropolitan Borough Council,http://www.sandwell.gov.uk/info/200202/performance_and_spending/1079/payments_over_500,01-Nov-2022,Childrens Services,NEWAVE LTD,Childrens Services,1062.00,Agency Staff,2223P08_CR00118,101666
Sandwell Metropolitan Borough Council,http://www.sandwell.gov.uk/info/200202/performance_and_spending/1079/payments_over_500,01-Nov-2022,Childrens Services,NEWAVE LTD,Childrens Services,2348.56,Agency Staff,2223P08_CR00119,101666
Sandwell Metropolitan Borough Council,http://www.sandwell.gov.uk/info/200202/performance_and_spending/1079/payments_over_500,01-Nov-2022,Childrens Services,NEWAVE LTD,Childrens Services,2376.72,Agency Staff,2223P08_CR00120,101666
Sandwell Metropolitan Borough Council,http://www.sandwell.gov.uk/info/200202/performance_and_spending/1079/payments_over_500,01-Nov-2022,Childrens Services,NEWAVE LTD,Childrens Services,1455.48,Agency Staff,2223P08_CR00121,101666
Sandwell Metropolitan Borough Council,http://www.sandwell.gov.uk/info/200202/performance_and_spending/1079/payments_over_500,01-Nov-2022,Childrens Services,NEWAVE LTD,Childrens Services,750.00,Agency Staff,2223P08_CR00122,101666
Sandwell Metropolitan Borough Council,http://www.sandwell.gov.uk/info/200202/performance_and_spending/1079/payments_over_500,01-Nov-2022,Childrens Services,NEWAVE LTD,Childrens Services,1875.00,Agency Staff,2223P08_CR00123,101666
Sandwell Metropolitan Borough Council,http://www.sandwell.gov.uk/info/200202/performance_and_spending/1079/payments_over_500,01-Nov-2022,Childrens Services,NEWAVE LTD,Childrens Services,1080.48,Agency Staff,2223P08_CR00124,101666
Sandwell Metropolitan Borough Council,http://www.sandwell.gov.uk/info/200202/performance_and_spending/1079/payments_over_500,01-Nov-2022,Childrens Services,NEWAVE LTD,Childrens Services,1875.00,Agency Staff,2223P08_CR00125,101666
Sandwell Metropolitan Borough Council,http://www.sandwell.gov.uk/info/200202/performance_and_spending/1079/payments_over_500,01-Nov-2022,Childrens Services,NEWAVE LTD,Childrens Services,1875.00,Agency Staff,2223P08_CR00126,101666
Sandwell Metropolitan Borough Council,http://www.sandwell.gov.uk/info/200202/performance_and_spending/1079/payments_over_500,01-Nov-2022,Childrens Services,NEWAVE LTD,Childrens Services,2246.97,Agency Staff,2223P08_CR00127,101666
Sandwell Metropolitan Borough Council,http://www.sandwell.gov.uk/info/200202/performance_and_spending/1079/payments_over_500,01-Nov-2022,Childrens Services,NEWAVE LTD,Childrens Services,1330.48,Agency Staff,2223P08_CR00128,101666
Sandwell Metropolitan Borough Council,http://www.sandwell.gov.uk/info/200202/performance_and_spending/1079/payments_over_500,01-Nov-2022,Childrens Services,NEWAVE LTD,Childrens Services,810.00,Agency Staff,2223P08_CR00129,101666
Sandwell Metropolitan Borough Council,http://www.sandwell.gov.uk/info/200202/performance_and_spending/1079/payments_over_500,01-Nov-2022,Childrens Services,NEWAVE LTD,Childrens Services,1746.00,Agency Staff,2223P08_CR00130,101666
Sandwell Metropolitan Borough Council,http://www.sandwell.gov.uk/info/200202/performance_and_spending/1079/payments_over_500,01-Nov-2022,Childrens Services,NEWAVE LTD,Childrens Services,1086.00,Agency Staff,2223P08_CR00131,101666
Sandwell Metropolitan Borough Council,http://www.sandwell.gov.uk/info/200202/performance_and_spending/1079/payments_over_500,01-Nov-2022,Childrens Services,NEWAVE LTD,Childrens Services,504.00,Agency Staff,2223P08_CR00132,101666
Sandwell Metropolitan Borough Council,http://www.sandwell.gov.uk/info/200202/performance_and_spending/1079/payments_over_500,01-Nov-2022,Childrens Services,NEWAVE LTD,Childrens Services,1242.00,Agency Staff,2223P08_CR00133,101666
Sandwell Metropolitan Borough Council,http://www.sandwell.gov.uk/info/200202/performance_and_spending/1079/payments_over_500,01-Nov-2022,Childrens Services,NEWAVE LTD,Childrens Services,2061.26,Agency Staff,2223P08_CR00134,101666
Sandwell Metropolitan Borough Council,http://www.sandwell.gov.uk/info/200202/performance_and_spending/1079/payments_over_500,01-Nov-2022,Childrens Services,NEWAVE LTD,Childrens Services,972.00,Agency Staff,2223P08_CR00135,101666
Sandwell Metropolitan Borough Council,http://www.sandwell.gov.uk/info/200202/performance_and_spending/1079/payments_over_500,14-Nov-2022,Childrens Services,OLD PARK PRIMARY SCHOOL,Childrens Services,2625.95,Rents,2223P08_CR00136,04024287
Sandwell Metropolitan Borough Council,http://www.sandwell.gov.uk/info/200202/performance_and_spending/1079/payments_over_500,10-Nov-2022,Childrens Services,ONE 4 YOU SERVICES LTD,Childrens Services,106469.10,Public Transport,2223P08_CR00137,81204
Sandwell Metropolitan Borough Council,http://www.sandwell.gov.uk/info/200202/performance_and_spending/1079/payments_over_500,01-Nov-2022,Childrens Services,PENNYHILL PRIMARY SCHOOL,Childrens Services,12564.06,Electricity,2223P08_CR00138,73032
Sandwell Metropolitan Borough Council,http://www.sandwell.gov.uk/info/200202/performance_and_spending/1079/payments_over_500,14-Nov-2022,Childrens Services,PENNYHILL PRIMARY SCHOOL,Childrens Services,3546.89,Electricity,2223P08_CR00139,73032
Sandwell Metropolitan Borough Council,http://www.sandwell.gov.uk/info/200202/performance_and_spending/1079/payments_over_500,17-Nov-2022,Childrens Services,PENNYHILL PRIMARY SCHOOL,Childrens Services,2267.44,Rents,2223P08_CR00140,73032
Sandwell Metropolitan Borough Council,http://www.sandwell.gov.uk/info/200202/performance_and_spending/1079/payments_over_500,28-Nov-2022,Childrens Services,PLACES FOR PEOPLE LEISURE LIMITED,Childrens Services,975.00,Hire of Facilities,2223P08_CR00141,119069
Sandwell Metropolitan Borough Council,http://www.sandwell.gov.uk/info/200202/performance_and_spending/1079/payments_over_500,03-Nov-2022,Childrens Services,PREMIER PRINT & PROMOTIONS LIMITED,Childrens Services,1000.00,Advertising & Publicity,2223P08_CR00142,128540
Sandwell Metropolitan Borough Council,http://www.sandwell.gov.uk/info/200202/performance_and_spending/1079/payments_over_500,14-Nov-2022,Childrens Services,ROYALE TRAINING LTD,Childrens Services,1579.30,Externally Purchased Professional Services ,2223P08_CR00143,133604
Sandwell Metropolitan Borough Council,http://www.sandwell.gov.uk/info/200202/performance_and_spending/1079/payments_over_500,14-Nov-2022,Childrens Services,ROYALE TRAINING LTD,Childrens Services,1579.30,Externally Purchased Professional Services ,2223P08_CR00144,133604
Sandwell Metropolitan Borough Council,http://www.sandwell.gov.uk/info/200202/performance_and_spending/1079/payments_over_500,17-Nov-2022,Childrens Services,SANDWELL CHILDREN'S TRUST,Childrens Services,2000.00,Other Establishments,2223P08_CR00145,133302
Sandwell Metropolitan Borough Council,http://www.sandwell.gov.uk/info/200202/performance_and_spending/1079/payments_over_500,01-Nov-2022,Childrens Services,SANDWELL CHILDREN'S TRUST,Childrens Services,5421070.54,Other Establishments,2223P08_CR00146,133302
Sandwell Metropolitan Borough Council,http://www.sandwell.gov.uk/info/200202/performance_and_spending/1079/payments_over_500,17-Nov-2022,Childrens Services,SANDWELL CHILDREN'S TRUST,Childrens Services,452103.14,Other Establishments,2223P08_CR00147,133302
Sandwell Metropolitan Borough Council,http://www.sandwell.gov.uk/info/200202/performance_and_spending/1079/payments_over_500,01-Nov-2022,Childrens Services,SANDWELL PARENTS FOR DISABLED CHILDREN,Childrens Services,6000.00,Grant Payments,2223P08_CR00148,70991
Sandwell Metropolitan Borough Council,http://www.sandwell.gov.uk/info/200202/performance_and_spending/1079/payments_over_500,22-Nov-2022,Childrens Services,SERCO LIMITED,Childrens Services,91800.00,Grants,2223P08_CR00149,53771
Sandwell Metropolitan Borough Council,http://www.sandwell.gov.uk/info/200202/performance_and_spending/1079/payments_over_500,22-Nov-2022,Childrens Services,SERCO LIMITED,Childrens Services,1870.00,Grants,2223P08_CR00150,53771
Sandwell Metropolitan Borough Council,http://www.sandwell.gov.uk/info/200202/performance_and_spending/1079/payments_over_500,01-Nov-2022,Childrens Services,SHRED-IT LIMITED,Childrens Services,839.13,Waste Disposal Charges,2223P08_CR00151,01754926
Sandwell Metropolitan Borough Council,http://www.sandwell.gov.uk/info/200202/performance_and_spending/1079/payments_over_500,01-Nov-2022,Childrens Services,ST MICHAELS C OF E HIGH SCHOOL,Childrens Services,675.00,Childcare,2223P08_CR00152,21030379
Sandwell Metropolitan Borough Council,http://www.sandwell.gov.uk/info/200202/performance_and_spending/1079/payments_over_500,01-Nov-2022,Childrens Services,ST MICHAELS C OF E HIGH SCHOOL,Childrens Services,600.00,Childcare,2223P08_CR00153,21030379
Sandwell Metropolitan Borough Council,http://www.sandwell.gov.uk/info/200202/performance_and_spending/1079/payments_over_500,01-Nov-2022,Childrens Services,THE GIFT VOUCHER SHOP LIMITED,Childrens Services,513.52,Operational Services ,2223P08_CR00154,111545
Sandwell Metropolitan Borough Council,http://www.sandwell.gov.uk/info/200202/performance_and_spending/1079/payments_over_500,21-Nov-2022,Childrens Services,THE PRIORY PRIMARY,Childrens Services,2265.37,Rents,2223P08_CR00155,01746051
Sandwell Metropolitan Borough Council,http://www.sandwell.gov.uk/info/200202/performance_and_spending/1079/payments_over_500,21-Nov-2022,Childrens Services,THE PRIORY PRIMARY,Childrens Services,2635.37,Rents,2223P08_CR00156,01746051
Sandwell Metropolitan Borough Council,http://www.sandwell.gov.uk/info/200202/performance_and_spending/1079/payments_over_500,21-Nov-2022,Childrens Services,THE PRIORY PRIMARY,Childrens Services,2483.74,Rents,2223P08_CR00157,01746051
Sandwell Metropolitan Borough Council,http://www.sandwell.gov.uk/info/200202/performance_and_spending/1079/payments_over_500,01-Nov-2022,Childrens Services,THE SCHOOL UNIFORM MERCHANT,Childrens Services,1960.00,Protective Clothing & Uniforms,2223P08_CR00158,138953
Sandwell Metropolitan Borough Council,http://www.sandwell.gov.uk/info/200202/performance_and_spending/1079/payments_over_500,01-Nov-2022,Childrens Services,TOPPS MANAGEMENT & SUPPORT SERVICES LTD,Childrens Services,2499.98,Discretionary Awards,2223P08_CR00159,68846
Sandwell Metropolitan Borough Council,http://www.sandwell.gov.uk/info/200202/performance_and_spending/1079/payments_over_500,10-Nov-2022,Childrens Services,TOPPS MANAGEMENT & SUPPORT SERVICES LTD,Childrens Services,7857.08,Discretionary Awards,2223P08_CR00160,68846
Sandwell Metropolitan Borough Council,http://www.sandwell.gov.uk/info/200202/performance_and_spending/1079/payments_over_500,17-Nov-2022,Childrens Services,TOTALENERGIES GAS & POWER LTD,Childrens Services,2697.31,Electricity,2223P08_CR00161,107605
Sandwell Metropolitan Borough Council,http://www.sandwell.gov.uk/info/200202/performance_and_spending/1079/payments_over_500,17-Nov-2022,Childrens Services,TOTALENERGIES GAS & POWER LTD,Childrens Services,656.08,Electricity,2223P08_CR00162,107605
Sandwell Metropolitan Borough Council,http://www.sandwell.gov.uk/info/200202/performance_and_spending/1079/payments_over_500,21-Nov-2022,Childrens Services,TOTALENERGIES GAS & POWER LTD,Childrens Services,745.60,Electricity,2223P08_CR00163,107605
Sandwell Metropolitan Borough Council,http://www.sandwell.gov.uk/info/200202/performance_and_spending/1079/payments_over_500,21-Nov-2022,Childrens Services,TOTALENERGIES GAS & POWER LTD,Childrens Services,1098.15,Electricity,2223P08_CR00164,107605
Sandwell Metropolitan Borough Council,http://www.sandwell.gov.uk/info/200202/performance_and_spending/1079/payments_over_500,21-Nov-2022,Childrens Services,TOTALENERGIES GAS & POWER LTD,Childrens Services,607.38,Electricity,2223P08_CR00165,107605
Sandwell Metropolitan Borough Council,http://www.sandwell.gov.uk/info/200202/performance_and_spending/1079/payments_over_500,21-Nov-2022,Childrens Services,TOTALENERGIES GAS & POWER LTD,Childrens Services,600.61,Electricity,2223P08_CR00166,107605
Sandwell Metropolitan Borough Council,http://www.sandwell.gov.uk/info/200202/performance_and_spending/1079/payments_over_500,21-Nov-2022,Childrens Services,TOTALENERGIES GAS & POWER LTD,Childrens Services,1063.79,Electricity,2223P08_CR00167,107605
Sandwell Metropolitan Borough Council,http://www.sandwell.gov.uk/info/200202/performance_and_spending/1079/payments_over_500,01-Nov-2022,Childrens Services,TOTALENERGIES GAS & POWER LTD,Childrens Services,1389.27,Gas,2223P08_CR00168,107605
Sandwell Metropolitan Borough Council,http://www.sandwell.gov.uk/info/200202/performance_and_spending/1079/payments_over_500,01-Nov-2022,Childrens Services,UPLANDS MANOR PRIMARY    ,Childrens Services,1500.00,Grants,2223P08_CR00169,04024322
Sandwell Metropolitan Borough Council,http://www.sandwell.gov.uk/info/200202/performance_and_spending/1079/payments_over_500,14-Nov-2022,Childrens Services,UPSHOT SYSTEMS CIC,Childrens Services,3075.90,Externally Purchased Professional Services ,2223P08_CR00170,150986
Sandwell Metropolitan Borough Council,http://www.sandwell.gov.uk/info/200202/performance_and_spending/1079/payments_over_500,14-Nov-2022,Childrens Services,VENNER NUTRITION LTD,Childrens Services,2650.00,Catering Provisions,2223P08_CR00171,164585
Sandwell Metropolitan Borough Council,http://www.sandwell.gov.uk/info/200202/performance_and_spending/1079/payments_over_500,17-Nov-2022,Childrens Services,VIBES N SHINE CIC,Childrens Services,540.00,Hire of Facilities,2223P08_CR00172,163633
Sandwell Metropolitan Borough Council,http://www.sandwell.gov.uk/info/200202/performance_and_spending/1079/payments_over_500,11-Nov-2022,Childrens Services,WALSALL MBC,Childrens Services,35178.61,Grants,2223P08_CR00173,01106025
Sandwell Metropolitan Borough Council,http://www.sandwell.gov.uk/info/200202/performance_and_spending/1079/payments_over_500,09-Nov-2022,Childrens Services,WELSH WATER,Childrens Services,541.07,Water Services,2223P08_CR00174,1097
Sandwell Metropolitan Borough Council,http://www.sandwell.gov.uk/info/200202/performance_and_spending/1079/payments_over_500,01-Nov-2022,Childrens Services,WEST BROMWICH ALBION FC LTD,Childrens Services,6000.00,Hire of Facilities,2223P08_CR00175,01606624
Sandwell Metropolitan Borough Council,http://www.sandwell.gov.uk/info/200202/performance_and_spending/1079/payments_over_500,01-Nov-2022,Childrens Services,WEST MIDLANDS TRAVEL LIMITED,Childrens Services,1148.45,Public Transport,2223P08_CR00176,01736688
Sandwell Metropolitan Borough Council,http://www.sandwell.gov.uk/info/200202/performance_and_spending/1079/payments_over_500,01-Nov-2022,Childrens Services,WHITECREST PRIMARY SCHOOL     ,Childrens Services,1500.00,Grants,2223P08_CR00177,38087
Sandwell Metropolitan Borough Council,http://www.sandwell.gov.uk/info/200202/performance_and_spending/1079/payments_over_500,09-Nov-2022,Childrens Services,GOGNA SCHOOLWEAR & SPORTS LIMITED,Childrens Services,875.00,Protective Clothing & Uniforms,2223P08_CR00178,04005603
Sandwell Metropolitan Borough Council,http://www.sandwell.gov.uk/info/200202/performance_and_spending/1079/payments_over_500,17-Nov-2022,Childrens Services,MARK LAMSDALE,Childrens Services,500.00,Advertising & Publicity,2223P08_CR00179,26316
Sandwell Metropolitan Borough Council,http://www.sandwell.gov.uk/info/200202/performance_and_spending/1079/payments_over_500,20-Nov-2022,Childrens Services,KAREN BENJAMIN,Childrens Services,850.00,Externally Purchased Professional Services ,2223P08_CR00180,150479
Sandwell Metropolitan Borough Council,http://www.sandwell.gov.uk/info/200202/performance_and_spending/1079/payments_over_500,02-Nov-2022,Childrens Services,"RACHEL SMITH,",Childrens Services,1000.00,Externally Purchased Professional Services ,2223P08_CR00181,162210
Sandwell Metropolitan Borough Council,http://www.sandwell.gov.uk/info/200202/performance_and_spending/1079/payments_over_500,10-Nov-2022,Childrens Services,REDACTED PERSONAL DATA,Childrens Services,545.45,External Contract Hire,2223P08_CR00182,REDACTED PERSONAL DATA
Sandwell Metropolitan Borough Council,http://www.sandwell.gov.uk/info/200202/performance_and_spending/1079/payments_over_500,10-Nov-2022,Childrens Services,REDACTED PERSONAL DATA,Childrens Services,727.28,External Contract Hire,2223P08_CR00183,REDACTED PERSONAL DATA
Sandwell Metropolitan Borough Council,http://www.sandwell.gov.uk/info/200202/performance_and_spending/1079/payments_over_500,10-Nov-2022,Childrens Services,REDACTED PERSONAL DATA,Childrens Services,727.27,External Contract Hire,2223P08_CR00184,REDACTED PERSONAL DATA
Sandwell Metropolitan Borough Council,http://www.sandwell.gov.uk/info/200202/performance_and_spending/1079/payments_over_500,10-Nov-2022,Childrens Services,REDACTED PERSONAL DATA,Childrens Services,545.45,External Contract Hire,2223P08_CR00185,REDACTED PERSONAL DATA
Sandwell Metropolitan Borough Council,http://www.sandwell.gov.uk/info/200202/performance_and_spending/1079/payments_over_500,10-Nov-2022,Childrens Services,REDACTED PERSONAL DATA,Childrens Services,545.45,External Contract Hire,2223P08_CR00186,REDACTED PERSONAL DATA
Sandwell Metropolitan Borough Council,http://www.sandwell.gov.uk/info/200202/performance_and_spending/1079/payments_over_500,10-Nov-2022,Childrens Services,REDACTED PERSONAL DATA,Childrens Services,545.45,External Contract Hire,2223P08_CR00187,REDACTED PERSONAL DATA
Sandwell Metropolitan Borough Council,http://www.sandwell.gov.uk/info/200202/performance_and_spending/1079/payments_over_500,10-Nov-2022,Childrens Services,REDACTED PERSONAL DATA,Childrens Services,545.45,External Contract Hire,2223P08_CR00188,REDACTED PERSONAL DATA
Sandwell Metropolitan Borough Council,http://www.sandwell.gov.uk/info/200202/performance_and_spending/1079/payments_over_500,10-Nov-2022,Childrens Services,REDACTED PERSONAL DATA,Childrens Services,545.45,External Contract Hire,2223P08_CR00189,REDACTED PERSONAL DATA
Sandwell Metropolitan Borough Council,http://www.sandwell.gov.uk/info/200202/performance_and_spending/1079/payments_over_500,10-Nov-2022,Childrens Services,REDACTED PERSONAL DATA,Childrens Services,1090.90,External Contract Hire,2223P08_CR00190,REDACTED PERSONAL DATA
Sandwell Metropolitan Borough Council,http://www.sandwell.gov.uk/info/200202/performance_and_spending/1079/payments_over_500,10-Nov-2022,Childrens Services,REDACTED PERSONAL DATA,Childrens Services,545.45,External Contract Hire,2223P08_CR00191,REDACTED PERSONAL DATA
Sandwell Metropolitan Borough Council,http://www.sandwell.gov.uk/info/200202/performance_and_spending/1079/payments_over_500,10-Nov-2022,Childrens Services,REDACTED PERSONAL DATA,Childrens Services,727.27,External Contract Hire,2223P08_CR00192,REDACTED PERSONAL DATA
Sandwell Metropolitan Borough Council,http://www.sandwell.gov.uk/info/200202/performance_and_spending/1079/payments_over_500,10-Nov-2022,Childrens Services,REDACTED PERSONAL DATA,Childrens Services,727.27,External Contract Hire,2223P08_CR00193,REDACTED PERSONAL DATA
Sandwell Metropolitan Borough Council,http://www.sandwell.gov.uk/info/200202/performance_and_spending/1079/payments_over_500,10-Nov-2022,Childrens Services,REDACTED PERSONAL DATA,Childrens Services,727.27,External Contract Hire,2223P08_CR00194,REDACTED PERSONAL DATA
Sandwell Metropolitan Borough Council,http://www.sandwell.gov.uk/info/200202/performance_and_spending/1079/payments_over_500,10-Nov-2022,Childrens Services,REDACTED PERSONAL DATA,Childrens Services,545.45,External Contract Hire,2223P08_CR00195,REDACTED PERSONAL DATA
Sandwell Metropolitan Borough Council,http://www.sandwell.gov.uk/info/200202/performance_and_spending/1079/payments_over_500,10-Nov-2022,Childrens Services,REDACTED PERSONAL DATA,Childrens Services,545.45,External Contract Hire,2223P08_CR00196,REDACTED PERSONAL DATA
Sandwell Metropolitan Borough Council,http://www.sandwell.gov.uk/info/200202/performance_and_spending/1079/payments_over_500,10-Nov-2022,Childrens Services,REDACTED PERSONAL DATA,Childrens Services,727.27,External Contract Hire,2223P08_CR00197,REDACTED PERSONAL DATA
Sandwell Metropolitan Borough Council,http://www.sandwell.gov.uk/info/200202/performance_and_spending/1079/payments_over_500,10-Nov-2022,Childrens Services,REDACTED PERSONAL DATA,Childrens Services,545.45,External Contract Hire,2223P08_CR00198,REDACTED PERSONAL DATA
Sandwell Metropolitan Borough Council,http://www.sandwell.gov.uk/info/200202/performance_and_spending/1079/payments_over_500,10-Nov-2022,Childrens Services,REDACTED PERSONAL DATA,Childrens Services,909.09,External Contract Hire,2223P08_CR00199,REDACTED PERSONAL DATA
Sandwell Metropolitan Borough Council,http://www.sandwell.gov.uk/info/200202/performance_and_spending/1079/payments_over_500,10-Nov-2022,Childrens Services,REDACTED PERSONAL DATA,Childrens Services,727.27,External Contract Hire,2223P08_CR00200,REDACTED PERSONAL DATA
Sandwell Metropolitan Borough Council,http://www.sandwell.gov.uk/info/200202/performance_and_spending/1079/payments_over_500,10-Nov-2022,Childrens Services,REDACTED PERSONAL DATA,Childrens Services,545.45,External Contract Hire,2223P08_CR00201,REDACTED PERSONAL DATA
Sandwell Metropolitan Borough Council,http://www.sandwell.gov.uk/info/200202/performance_and_spending/1079/payments_over_500,10-Nov-2022,Childrens Services,REDACTED PERSONAL DATA,Childrens Services,545.45,External Contract Hire,2223P08_CR00202,REDACTED PERSONAL DATA
Sandwell Metropolitan Borough Council,http://www.sandwell.gov.uk/info/200202/performance_and_spending/1079/payments_over_500,10-Nov-2022,Childrens Services,REDACTED PERSONAL DATA,Childrens Services,545.45,External Contract Hire,2223P08_CR00203,REDACTED PERSONAL DATA
Sandwell Metropolitan Borough Council,http://www.sandwell.gov.uk/info/200202/performance_and_spending/1079/payments_over_500,10-Nov-2022,Childrens Services,REDACTED PERSONAL DATA,Childrens Services,545.45,External Contract Hire,2223P08_CR00204,REDACTED PERSONAL DATA
Sandwell Metropolitan Borough Council,http://www.sandwell.gov.uk/info/200202/performance_and_spending/1079/payments_over_500,10-Nov-2022,Childrens Services,REDACTED PERSONAL DATA,Childrens Services,800.00,External Contract Hire,2223P08_CR00205,REDACTED PERSONAL DATA
Sandwell Metropolitan Borough Council,http://www.sandwell.gov.uk/info/200202/performance_and_spending/1079/payments_over_500,10-Nov-2022,Childrens Services,REDACTED PERSONAL DATA,Childrens Services,727.27,External Contract Hire,2223P08_CR00206,REDACTED PERSONAL DATA
Sandwell Metropolitan Borough Council,http://www.sandwell.gov.uk/info/200202/performance_and_spending/1079/payments_over_500,10-Nov-2022,Childrens Services,REDACTED PERSONAL DATA,Childrens Services,545.45,External Contract Hire,2223P08_CR00207,REDACTED PERSONAL DATA
Sandwell Metropolitan Borough Council,http://www.sandwell.gov.uk/info/200202/performance_and_spending/1079/payments_over_500,10-Nov-2022,Childrens Services,REDACTED PERSONAL DATA,Childrens Services,727.28,External Contract Hire,2223P08_CR00208,REDACTED PERSONAL DATA
Sandwell Metropolitan Borough Council,http://www.sandwell.gov.uk/info/200202/performance_and_spending/1079/payments_over_500,10-Nov-2022,Childrens Services,REDACTED PERSONAL DATA,Childrens Services,545.45,External Contract Hire,2223P08_CR00209,REDACTED PERSONAL DATA
Sandwell Metropolitan Borough Council,http://www.sandwell.gov.uk/info/200202/performance_and_spending/1079/payments_over_500,10-Nov-2022,Childrens Services,REDACTED PERSONAL DATA,Childrens Services,727.27,External Contract Hire,2223P08_CR00210,REDACTED PERSONAL DATA
Sandwell Metropolitan Borough Council,http://www.sandwell.gov.uk/info/200202/performance_and_spending/1079/payments_over_500,10-Nov-2022,Childrens Services,REDACTED PERSONAL DATA,Childrens Services,727.27,External Contract Hire,2223P08_CR00211,REDACTED PERSONAL DATA
Sandwell Metropolitan Borough Council,http://www.sandwell.gov.uk/info/200202/performance_and_spending/1079/payments_over_500,10-Nov-2022,Childrens Services,REDACTED PERSONAL DATA,Childrens Services,545.45,External Contract Hire,2223P08_CR00212,REDACTED PERSONAL DATA
Sandwell Metropolitan Borough Council,http://www.sandwell.gov.uk/info/200202/performance_and_spending/1079/payments_over_500,10-Nov-2022,Childrens Services,REDACTED PERSONAL DATA,Childrens Services,545.45,External Contract Hire,2223P08_CR00213,REDACTED PERSONAL DATA
Sandwell Metropolitan Borough Council,http://www.sandwell.gov.uk/info/200202/performance_and_spending/1079/payments_over_500,10-Nov-2022,Childrens Services,REDACTED PERSONAL DATA,Childrens Services,727.27,External Contract Hire,2223P08_CR00214,REDACTED PERSONAL DATA
Sandwell Metropolitan Borough Council,http://www.sandwell.gov.uk/info/200202/performance_and_spending/1079/payments_over_500,10-Nov-2022,Childrens Services,REDACTED PERSONAL DATA,Childrens Services,545.45,External Contract Hire,2223P08_CR00215,REDACTED PERSONAL DATA
Sandwell Metropolitan Borough Council,http://www.sandwell.gov.uk/info/200202/performance_and_spending/1079/payments_over_500,10-Nov-2022,Childrens Services,REDACTED PERSONAL DATA,Childrens Services,727.27,External Contract Hire,2223P08_CR00216,REDACTED PERSONAL DATA
Sandwell Metropolitan Borough Council,http://www.sandwell.gov.uk/info/200202/performance_and_spending/1079/payments_over_500,15-Nov-2022,Childrens Services,REDACTED PERSONAL DATA,Childrens Services,3240.78,External Contract Hire,2223P08_CR00217,REDACTED PERSONAL DATA
Sandwell Metropolitan Borough Council,http://www.sandwell.gov.uk/info/200202/performance_and_spending/1079/payments_over_500,01-Nov-2022,Childrens Services,4 COMMUNITY TRUST CIC,Childrens Services,41184.00,Grant Payments,2223P08_CR00218,137880
Sandwell Metropolitan Borough Council,http://www.sandwell.gov.uk/info/200202/performance_and_spending/1079/payments_over_500,01-Nov-2022,Childrens Services,AFRICAN FRENCH SPEAKING COMMUNITY SUPPORT,Childrens Services,2534.00,Grant Payments,2223P08_CR00219,107906
Sandwell Metropolitan Borough Council,http://www.sandwell.gov.uk/info/200202/performance_and_spending/1079/payments_over_500,01-Nov-2022,Childrens Services,ALL STARS WALSALL C.I.C.,Childrens Services,2700.00,Grant Payments,2223P08_CR00220,153410
Sandwell Metropolitan Borough Council,http://www.sandwell.gov.uk/info/200202/performance_and_spending/1079/payments_over_500,22-Nov-2022,Childrens Services,ALL STARS WALSALL C.I.C.,Childrens Services,600.00,Grant Payments,2223P08_CR00221,153410
Sandwell Metropolitan Borough Council,http://www.sandwell.gov.uk/info/200202/performance_and_spending/1079/payments_over_500,01-Nov-2022,Childrens Services,ASPIRE ACTIVE CAMPS LTD,Childrens Services,2465.00,Grant Payments,2223P08_CR00222,163410
Sandwell Metropolitan Borough Council,http://www.sandwell.gov.uk/info/200202/performance_and_spending/1079/payments_over_500,01-Nov-2022,Childrens Services,ASPIRE ACTIVE CAMPS LTD,Childrens Services,2245.00,Grant Payments,2223P08_CR00223,163410
Sandwell Metropolitan Borough Council,http://www.sandwell.gov.uk/info/200202/performance_and_spending/1079/payments_over_500,01-Nov-2022,Childrens Services,BEARWOOD COMMUNITY HUB,Childrens Services,3960.00,Grant Payments,2223P08_CR00224,152312
Sandwell Metropolitan Borough Council,http://www.sandwell.gov.uk/info/200202/performance_and_spending/1079/payments_over_500,01-Nov-2022,Childrens Services,CAPE COMMUNITY CARE DAY CENTRE,Childrens Services,2503.20,Grant Payments,2223P08_CR00225,01693179
Sandwell Metropolitan Borough Council,http://www.sandwell.gov.uk/info/200202/performance_and_spending/1079/payments_over_500,01-Nov-2022,Childrens Services,CENTRE SPOT C.I.C,Childrens Services,6480.00,Grant Payments,2223P08_CR00226,98361
Sandwell Metropolitan Borough Council,http://www.sandwell.gov.uk/info/200202/performance_and_spending/1079/payments_over_500,21-Nov-2022,Childrens Services,CENTRE SPOT C.I.C,Childrens Services,1320.00,Grant Payments,2223P08_CR00227,98361
Sandwell Metropolitan Borough Council,http://www.sandwell.gov.uk/info/200202/performance_and_spending/1079/payments_over_500,01-Nov-2022,Childrens Services,CHRIST CHURCH C OF E PRIMARY SCHOOL,Childrens Services,7465.34,Grant Payments,2223P08_CR00228,1705
Sandwell Metropolitan Borough Council,http://www.sandwell.gov.uk/info/200202/performance_and_spending/1079/payments_over_500,01-Nov-2022,Childrens Services,COMMUNITY ACTION PROJECT,Childrens Services,4782.00,Grant Payments,2223P08_CR00229,01702622
Sandwell Metropolitan Borough Council,http://www.sandwell.gov.uk/info/200202/performance_and_spending/1079/payments_over_500,01-Nov-2022,Childrens Services,COMMUNITY CONNECT FOUNDATION,Childrens Services,2860.00,Grant Payments,2223P08_CR00230,01685391
Sandwell Metropolitan Borough Council,http://www.sandwell.gov.uk/info/200202/performance_and_spending/1079/payments_over_500,01-Nov-2022,Childrens Services,CONFEDERATION OF BANGLADESHI ORGANISATIONS (CBO) LIMITED,Childrens Services,1518.00,Grant Payments,2223P08_CR00231,10034
Sandwell Metropolitan Borough Council,http://www.sandwell.gov.uk/info/200202/performance_and_spending/1079/payments_over_500,15-Nov-2022,Childrens Services,EARLS GYMNASTICS CLUB   ,Childrens Services,3240.00,Grant Payments,2223P08_CR00232,900280325
Sandwell Metropolitan Borough Council,http://www.sandwell.gov.uk/info/200202/performance_and_spending/1079/payments_over_500,01-Nov-2022,Childrens Services,FRIAR PARK MILLENNIUM CENTRE,Childrens Services,12672.00,Grant Payments,2223P08_CR00233,28476
Sandwell Metropolitan Borough Council,http://www.sandwell.gov.uk/info/200202/performance_and_spending/1079/payments_over_500,07-Nov-2022,Childrens Services,FRIAR PARK MILLENNIUM CENTRE,Childrens Services,4846.00,Grant Payments,2223P08_CR00234,28476
Sandwell Metropolitan Borough Council,http://www.sandwell.gov.uk/info/200202/performance_and_spending/1079/payments_over_500,01-Nov-2022,Childrens Services,G.A.P ENTERTAINMENT C.I.C,Childrens Services,14026.00,Grant Payments,2223P08_CR00235,153273
Sandwell Metropolitan Borough Council,http://www.sandwell.gov.uk/info/200202/performance_and_spending/1079/payments_over_500,01-Nov-2022,Childrens Services,GREAT BRIDGE COMMUNITY FORUM,Childrens Services,5724.00,Grant Payments,2223P08_CR00236,21026008
Sandwell Metropolitan Borough Council,http://www.sandwell.gov.uk/info/200202/performance_and_spending/1079/payments_over_500,01-Nov-2022,Childrens Services,ILEYS COMMUNITY ASSOCIATION,Childrens Services,5069.00,Grant Payments,2223P08_CR00237,88247
Sandwell Metropolitan Borough Council,http://www.sandwell.gov.uk/info/200202/performance_and_spending/1079/payments_over_500,01-Nov-2022,Childrens Services,JUNIOR ADVENTURES GROUP UK LTD T/A ENERGY KIDZ,Childrens Services,3490.00,Grant Payments,2223P08_CR00238,164355
Sandwell Metropolitan Borough Council,http://www.sandwell.gov.uk/info/200202/performance_and_spending/1079/payments_over_500,01-Nov-2022,Childrens Services,KIDS,Childrens Services,5599.00,Grant Payments,2223P08_CR00239,80825
Sandwell Metropolitan Borough Council,http://www.sandwell.gov.uk/info/200202/performance_and_spending/1079/payments_over_500,01-Nov-2022,Childrens Services,OLDBURY UNITED C.I.C,Childrens Services,6405.00,Grant Payments,2223P08_CR00240,153379
Sandwell Metropolitan Borough Council,http://www.sandwell.gov.uk/info/200202/performance_and_spending/1079/payments_over_500,07-Nov-2022,Childrens Services,P&E SPORTS REDDITCH LTD,Childrens Services,4479.00,Grant Payments,2223P08_CR00241,163643
Sandwell Metropolitan Borough Council,http://www.sandwell.gov.uk/info/200202/performance_and_spending/1079/payments_over_500,17-Nov-2022,Childrens Services,PILOT IMS LTD,Childrens Services,14873.00,Grant Payments,2223P08_CR00242,59674
Sandwell Metropolitan Borough Council,http://www.sandwell.gov.uk/info/200202/performance_and_spending/1079/payments_over_500,01-Nov-2022,Childrens Services,PREMIER SOCCER COACHING T/A PREMIER EDUCATION,Childrens Services,5781.60,Grant Payments,2223P08_CR00243,163599
Sandwell Metropolitan Borough Council,http://www.sandwell.gov.uk/info/200202/performance_and_spending/1079/payments_over_500,15-Nov-2022,Childrens Services,RB SPORTS ACTIVITIES LTD,Childrens Services,3240.00,Grant Payments,2223P08_CR00244,126163
Sandwell Metropolitan Borough Council,http://www.sandwell.gov.uk/info/200202/performance_and_spending/1079/payments_over_500,01-Nov-2022,Childrens Services,SAM'S HEALTH & FITNESSOLDBURY ACADAMY WEIGHTLIFTING CLUB,Childrens Services,3750.00,Grant Payments,2223P08_CR00245,125944
Sandwell Metropolitan Borough Council,http://www.sandwell.gov.uk/info/200202/performance_and_spending/1079/payments_over_500,01-Nov-2022,Childrens Services,SANDWELL ASIAN FAMILY SUPPORT SERVICES,Childrens Services,3636.00,Grant Payments,2223P08_CR00246,01480451
Sandwell Metropolitan Borough Council,http://www.sandwell.gov.uk/info/200202/performance_and_spending/1079/payments_over_500,01-Nov-2022,Childrens Services,SPORTING SPIRIT CIC,Childrens Services,5386.00,Grant Payments,2223P08_CR00247,130989
Sandwell Metropolitan Borough Council,http://www.sandwell.gov.uk/info/200202/performance_and_spending/1079/payments_over_500,01-Nov-2022,Childrens Services,SPORTING YOUR FUTURES,Childrens Services,25106.00,Grant Payments,2223P08_CR00248,153219
Sandwell Metropolitan Borough Council,http://www.sandwell.gov.uk/info/200202/performance_and_spending/1079/payments_over_500,01-Nov-2022,Childrens Services,SPORTS 4 LIFE UK,Childrens Services,6645.00,Grant Payments,2223P08_CR00249,153208
Sandwell Metropolitan Borough Council,http://www.sandwell.gov.uk/info/200202/performance_and_spending/1079/payments_over_500,01-Nov-2022,Childrens Services,SPORTS PLUS SCHEME LIMITED,Childrens Services,39560.00,Grant Payments,2223P08_CR00250,164261
Sandwell Metropolitan Borough Council,http://www.sandwell.gov.uk/info/200202/performance_and_spending/1079/payments_over_500,01-Nov-2022,Childrens Services,STRIKE9T C.I.C,Childrens Services,4752.00,Grant Payments,2223P08_CR00251,162855
Sandwell Metropolitan Borough Council,http://www.sandwell.gov.uk/info/200202/performance_and_spending/1079/payments_over_500,08-Nov-2022,Childrens Services,STRIKE9T C.I.C,Childrens Services,5100.00,Grant Payments,2223P08_CR00252,162855
Sandwell Metropolitan Borough Council,http://www.sandwell.gov.uk/info/200202/performance_and_spending/1079/payments_over_500,01-Nov-2022,Childrens Services,THE ABRAHAMIC FOUNDATION,Childrens Services,3806.00,Grant Payments,2223P08_CR00253,130572
Sandwell Metropolitan Borough Council,http://www.sandwell.gov.uk/info/200202/performance_and_spending/1079/payments_over_500,01-Nov-2022,Childrens Services,THE ALBION FOUNDATION,Childrens Services,8784.00,Grant Payments,2223P08_CR00254,21026659
Sandwell Metropolitan Borough Council,http://www.sandwell.gov.uk/info/200202/performance_and_spending/1079/payments_over_500,01-Nov-2022,Childrens Services,YEMENI COMMUNITY ASSOCIATION IN SANDWELL,Childrens Services,1000.00,Grant Payments,2223P08_CR00255,01711292
Sandwell Metropolitan Borough Council,http://www.sandwell.gov.uk/info/200202/performance_and_spending/1079/payments_over_500,07-Nov-2022,Childrens Services Capital,CONSUMER RESPONSE LTD T/A CONSUMER GRASS,Childrens Services Capital,7916.66,"CIP - New Construction,Conversion, Enhancement & Reno",2223P08_CR00256,164433
Sandwell Metropolitan Borough Council,http://www.sandwell.gov.uk/info/200202/performance_and_spending/1079/payments_over_500,07-Nov-2022,Childrens Services Capital,CONSUMER RESPONSE LTD T/A CONSUMER GRASS,Childrens Services Capital,2000.00,"CIP - New Construction,Conversion, Enhancement & Reno",2223P08_CR00257,164433
Sandwell Metropolitan Borough Council,http://www.sandwell.gov.uk/info/200202/performance_and_spending/1079/payments_over_500,01-Nov-2022,Childrens Services Capital,D P DESIGN PARTNERSHIP,Childrens Services Capital,4975.00,"CIP - New Construction,Conversion, Enhancement & Reno",2223P08_CR00258,145811
Sandwell Metropolitan Borough Council,http://www.sandwell.gov.uk/info/200202/performance_and_spending/1079/payments_over_500,10-Nov-2022,Childrens Services Capital,HARDYMAN & CO LIMITED,Childrens Services Capital,45169.13,"CIP - New Construction,Conversion, Enhancement & Reno",2223P08_CR00259,10788
Sandwell Metropolitan Borough Council,http://www.sandwell.gov.uk/info/200202/performance_and_spending/1079/payments_over_500,21-Nov-2022,Childrens Services Capital,KAPPION LTD,Childrens Services Capital,2631.25,"CIP - New Construction,Conversion, Enhancement & Reno",2223P08_CR00260,163885
Sandwell Metropolitan Borough Council,http://www.sandwell.gov.uk/info/200202/performance_and_spending/1079/payments_over_500,21-Nov-2022,Childrens Services Capital,KAPPION LTD,Childrens Services Capital,14328.75,"CIP - New Construction,Conversion, Enhancement & Reno",2223P08_CR00261,163885
Sandwell Metropolitan Borough Council,http://www.sandwell.gov.uk/info/200202/performance_and_spending/1079/payments_over_500,01-Nov-2022,Childrens Services Capital,KOMPAN LTD,Childrens Services Capital,22785.20,"CIP - New Construction,Conversion, Enhancement & Reno",2223P08_CR00262,9213
Sandwell Metropolitan Borough Council,http://www.sandwell.gov.uk/info/200202/performance_and_spending/1079/payments_over_500,01-Nov-2022,Childrens Services Capital,NISBETS PLC,Childrens Services Capital,3756.25,"CIP - New Construction,Conversion, Enhancement & Reno",2223P08_CR00263,2407
Sandwell Metropolitan Borough Council,http://www.sandwell.gov.uk/info/200202/performance_and_spending/1079/payments_over_500,22-Nov-2022,Childrens Services Capital,PELL FRISCHMANN CONSULTANTS LIMITED,Childrens Services Capital,557.82,"CIP - New Construction,Conversion, Enhancement & Reno",2223P08_CR00264,42350
Sandwell Metropolitan Borough Council,http://www.sandwell.gov.uk/info/200202/performance_and_spending/1079/payments_over_500,01-Nov-2022,Childrens Services Capital,RHYS BRANDING,Childrens Services Capital,2885.00,"CIP - New Construction,Conversion, Enhancement & Reno",2223P08_CR00265,118394
Sandwell Metropolitan Borough Council,http://www.sandwell.gov.uk/info/200202/performance_and_spending/1079/payments_over_500,04-Nov-2022,Childrens Services Capital,UPLANDS MANOR PRIMARY ,Childrens Services Capital,27569.80,"CIP - New Construction,Conversion, Enhancement & Reno",2223P08_CR00266,04024322
Sandwell Metropolitan Borough Council,http://www.sandwell.gov.uk/info/200202/performance_and_spending/1079/payments_over_500,04-Nov-2022,Childrens Services Capital,UPLANDS MANOR PRIMARY ,Childrens Services Capital,17328.12,"CIP - New Construction,Conversion, Enhancement & Reno",2223P08_CR00267,04024322
Sandwell Metropolitan Borough Council,http://www.sandwell.gov.uk/info/200202/performance_and_spending/1079/payments_over_500,10-Nov-2022,Childrens Services Capital,WILLMOTT DIXON CONSTRUCTION LIMITED,Childrens Services Capital,154200.90,"CIP - New Construction,Conversion, Enhancement & Reno",2223P08_CR00268,34081
Sandwell Metropolitan Borough Council,http://www.sandwell.gov.uk/info/200202/performance_and_spending/1079/payments_over_500,01-Nov-2022,Housing & Communities,ULVERSCROFT LARGE PRINT BOOKS LTD,Neighbourhoods,521.08,Materials & Consumables,2223P08_CR00269,01044938
Sandwell Metropolitan Borough Council,http://www.sandwell.gov.uk/info/200202/performance_and_spending/1079/payments_over_500,01-Nov-2022,Housing & Communities,ULVERSCROFT LARGE PRINT BOOKS LTD,Neighbourhoods,500.11,Materials & Consumables,2223P08_CR00270,01044938
Sandwell Metropolitan Borough Council,http://www.sandwell.gov.uk/info/200202/performance_and_spending/1079/payments_over_500,01-Nov-2022,Housing & Communities,ULVERSCROFT LARGE PRINT BOOKS LTD,Neighbourhoods,541.32,Materials & Consumables,2223P08_CR00271,01044938
Sandwell Metropolitan Borough Council,http://www.sandwell.gov.uk/info/200202/performance_and_spending/1079/payments_over_500,01-Nov-2022,Housing & Communities,ULVERSCROFT LARGE PRINT BOOKS LTD,Neighbourhoods,541.32,Materials & Consumables,2223P08_CR00272,01044938
Sandwell Metropolitan Borough Council,http://www.sandwell.gov.uk/info/200202/performance_and_spending/1079/payments_over_500,01-Nov-2022,Housing & Communities,ULVERSCROFT LARGE PRINT BOOKS LTD,Neighbourhoods,541.32,Materials & Consumables,2223P08_CR00273,01044938
Sandwell Metropolitan Borough Council,http://www.sandwell.gov.uk/info/200202/performance_and_spending/1079/payments_over_500,01-Nov-2022,Housing & Communities,ULVERSCROFT LARGE PRINT BOOKS LTD,Neighbourhoods,521.14,Materials & Consumables,2223P08_CR00274,01044938
Sandwell Metropolitan Borough Council,http://www.sandwell.gov.uk/info/200202/performance_and_spending/1079/payments_over_500,01-Nov-2022,Housing & Communities,ULVERSCROFT LARGE PRINT BOOKS LTD,Neighbourhoods,541.32,Materials & Consumables,2223P08_CR00275,01044938
Sandwell Metropolitan Borough Council,http://www.sandwell.gov.uk/info/200202/performance_and_spending/1079/payments_over_500,01-Nov-2022,Housing & Communities,ULVERSCROFT LARGE PRINT BOOKS LTD,Neighbourhoods,500.11,Materials & Consumables,2223P08_CR00276,01044938
Sandwell Metropolitan Borough Council,http://www.sandwell.gov.uk/info/200202/performance_and_spending/1079/payments_over_500,04-Nov-2022,Housing & Communities,DENNIS EAGLE LTD,Neighbourhoods,-548.72,Fire Service Workshops,2223P08_CR00277,01004865
Sandwell Metropolitan Borough Council,http://www.sandwell.gov.uk/info/200202/performance_and_spending/1079/payments_over_500,01-Nov-2022,Housing & Communities,ACCESS INNOVATIONS UK LTD,Neighbourhoods,1225.00,Equipment & Furniture ,2223P08_CR00278,137694
Sandwell Metropolitan Borough Council,http://www.sandwell.gov.uk/info/200202/performance_and_spending/1079/payments_over_500,01-Nov-2022,Housing & Communities,ACCESSHIRE NATIONWIDE,Neighbourhoods,1533.00,Vehicle Hiring Charges,2223P08_CR00279,123955
Sandwell Metropolitan Borough Council,http://www.sandwell.gov.uk/info/200202/performance_and_spending/1079/payments_over_500,01-Nov-2022,Housing & Communities,AUTOMOBILE ASSOCIATION DEVELOPMENTS LTD,Neighbourhoods,712.50,Fire Service Workshops,2223P08_CR00280,4546
Sandwell Metropolitan Borough Council,http://www.sandwell.gov.uk/info/200202/performance_and_spending/1079/payments_over_500,07-Nov-2022,Housing & Communities,BA BUSH & SON LTD,Neighbourhoods,638.00,Tyres,2223P08_CR00281,159771
Sandwell Metropolitan Borough Council,http://www.sandwell.gov.uk/info/200202/performance_and_spending/1079/payments_over_500,01-Nov-2022,Housing & Communities,COOPER MOBILE SERVICES LTD,Neighbourhoods,2218.00,Fire Service Workshops,2223P08_CR00282,01304378
Sandwell Metropolitan Borough Council,http://www.sandwell.gov.uk/info/200202/performance_and_spending/1079/payments_over_500,01-Nov-2022,Housing & Communities,COOPER MOBILE SERVICES LTD,Neighbourhoods,8481.04,Fire Service Workshops,2223P08_CR00283,01304378
Sandwell Metropolitan Borough Council,http://www.sandwell.gov.uk/info/200202/performance_and_spending/1079/payments_over_500,22-Nov-2022,Housing & Communities,COOPER MOBILE SERVICES LTD,Neighbourhoods,807.93,Fire Service Workshops,2223P08_CR00284,01304378
Sandwell Metropolitan Borough Council,http://www.sandwell.gov.uk/info/200202/performance_and_spending/1079/payments_over_500,01-Nov-2022,Housing & Communities,DAWSONGROUP VANS,Neighbourhoods,627.08,Vehicle Hiring Charges,2223P08_CR00285,151498
Sandwell Metropolitan Borough Council,http://www.sandwell.gov.uk/info/200202/performance_and_spending/1079/payments_over_500,01-Nov-2022,Housing & Communities,DAWSONGROUP VANS,Neighbourhoods,528.55,Vehicle Hiring Charges,2223P08_CR00286,151498
Sandwell Metropolitan Borough Council,http://www.sandwell.gov.uk/info/200202/performance_and_spending/1079/payments_over_500,01-Nov-2022,Housing & Communities,DAWSONGROUP VANS,Neighbourhoods,528.55,Vehicle Hiring Charges,2223P08_CR00287,151498
Sandwell Metropolitan Borough Council,http://www.sandwell.gov.uk/info/200202/performance_and_spending/1079/payments_over_500,01-Nov-2022,Housing & Communities,DAYS RENTAL,Neighbourhoods,890.94,Vehicle Hiring Charges,2223P08_CR00288,128169
Sandwell Metropolitan Borough Council,http://www.sandwell.gov.uk/info/200202/performance_and_spending/1079/payments_over_500,01-Nov-2022,Housing & Communities,DAYS RENTAL,Neighbourhoods,909.00,Vehicle Hiring Charges,2223P08_CR00289,128169
Sandwell Metropolitan Borough Council,http://www.sandwell.gov.uk/info/200202/performance_and_spending/1079/payments_over_500,01-Nov-2022,Housing & Communities,DAYS RENTAL,Neighbourhoods,747.48,Vehicle Hiring Charges,2223P08_CR00290,128169
Sandwell Metropolitan Borough Council,http://www.sandwell.gov.uk/info/200202/performance_and_spending/1079/payments_over_500,01-Nov-2022,Housing & Communities,DAYS RENTAL,Neighbourhoods,518.94,Vehicle Hiring Charges,2223P08_CR00291,128169
Sandwell Metropolitan Borough Council,http://www.sandwell.gov.uk/info/200202/performance_and_spending/1079/payments_over_500,01-Nov-2022,Housing & Communities,DAYS RENTAL,Neighbourhoods,518.94,Vehicle Hiring Charges,2223P08_CR00292,128169
Sandwell Metropolitan Borough Council,http://www.sandwell.gov.uk/info/200202/performance_and_spending/1079/payments_over_500,01-Nov-2022,Housing & Communities,DAYS RENTAL,Neighbourhoods,890.94,Vehicle Hiring Charges,2223P08_CR00293,128169
Sandwell Metropolitan Borough Council,http://www.sandwell.gov.uk/info/200202/performance_and_spending/1079/payments_over_500,01-Nov-2022,Housing & Communities,DAYS RENTAL,Neighbourhoods,890.94,Vehicle Hiring Charges,2223P08_CR00294,128169
Sandwell Metropolitan Borough Council,http://www.sandwell.gov.uk/info/200202/performance_and_spending/1079/payments_over_500,01-Nov-2022,Housing & Communities,DAYS RENTAL,Neighbourhoods,890.94,Vehicle Hiring Charges,2223P08_CR00295,128169
Sandwell Metropolitan Borough Council,http://www.sandwell.gov.uk/info/200202/performance_and_spending/1079/payments_over_500,01-Nov-2022,Housing & Communities,DAYS RENTAL,Neighbourhoods,890.94,Vehicle Hiring Charges,2223P08_CR00296,128169
Sandwell Metropolitan Borough Council,http://www.sandwell.gov.uk/info/200202/performance_and_spending/1079/payments_over_500,01-Nov-2022,Housing & Communities,DAYS RENTAL,Neighbourhoods,890.94,Vehicle Hiring Charges,2223P08_CR00297,128169
Sandwell Metropolitan Borough Council,http://www.sandwell.gov.uk/info/200202/performance_and_spending/1079/payments_over_500,01-Nov-2022,Housing & Communities,DAYS RENTAL,Neighbourhoods,770.04,Vehicle Hiring Charges,2223P08_CR00298,128169
Sandwell Metropolitan Borough Council,http://www.sandwell.gov.uk/info/200202/performance_and_spending/1079/payments_over_500,01-Nov-2022,Housing & Communities,DAYS RENTAL,Neighbourhoods,770.04,Vehicle Hiring Charges,2223P08_CR00299,128169
Sandwell Metropolitan Borough Council,http://www.sandwell.gov.uk/info/200202/performance_and_spending/1079/payments_over_500,01-Nov-2022,Housing & Communities,DAYS RENTAL,Neighbourhoods,1114.14,Vehicle Hiring Charges,2223P08_CR00300,128169
Sandwell Metropolitan Borough Council,http://www.sandwell.gov.uk/info/200202/performance_and_spending/1079/payments_over_500,01-Nov-2022,Housing & Communities,DAYS RENTAL,Neighbourhoods,939.30,Vehicle Hiring Charges,2223P08_CR00301,128169
Sandwell Metropolitan Borough Council,http://www.sandwell.gov.uk/info/200202/performance_and_spending/1079/payments_over_500,01-Nov-2022,Housing & Communities,DAYS RENTAL,Neighbourhoods,1206.24,Vehicle Hiring Charges,2223P08_CR00302,128169
Sandwell Metropolitan Borough Council,http://www.sandwell.gov.uk/info/200202/performance_and_spending/1079/payments_over_500,01-Nov-2022,Housing & Communities,DAYS RENTAL,Neighbourhoods,502.25,Vehicle Hiring Charges,2223P08_CR00303,128169
Sandwell Metropolitan Borough Council,http://www.sandwell.gov.uk/info/200202/performance_and_spending/1079/payments_over_500,10-Nov-2022,Housing & Communities,DENNIS EAGLE LTD,Neighbourhoods,653.80,Fire Service Workshops,2223P08_CR00304,01004865
Sandwell Metropolitan Borough Council,http://www.sandwell.gov.uk/info/200202/performance_and_spending/1079/payments_over_500,17-Nov-2022,Housing & Communities,DENNIS EAGLE LTD,Neighbourhoods,991.43,Fire Service Workshops,2223P08_CR00305,01004865
Sandwell Metropolitan Borough Council,http://www.sandwell.gov.uk/info/200202/performance_and_spending/1079/payments_over_500,18-Nov-2022,Housing & Communities,DENNIS EAGLE LTD,Neighbourhoods,566.50,Fire Service Workshops,2223P08_CR00306,01004865
Sandwell Metropolitan Borough Council,http://www.sandwell.gov.uk/info/200202/performance_and_spending/1079/payments_over_500,03-Nov-2022,Housing & Communities,DENNIS EAGLE LTD,Neighbourhoods,1028.52,Fire Service Workshops,2223P08_CR00307,01004865
Sandwell Metropolitan Borough Council,http://www.sandwell.gov.uk/info/200202/performance_and_spending/1079/payments_over_500,10-Nov-2022,Housing & Communities,DENNIS EAGLE LTD,Neighbourhoods,691.18,Fire Service Workshops,2223P08_CR00308,01004865
Sandwell Metropolitan Borough Council,http://www.sandwell.gov.uk/info/200202/performance_and_spending/1079/payments_over_500,09-Nov-2022,Housing & Communities,DENNIS EAGLE LTD,Neighbourhoods,830.98,Fire Service Workshops,2223P08_CR00309,01004865
Sandwell Metropolitan Borough Council,http://www.sandwell.gov.uk/info/200202/performance_and_spending/1079/payments_over_500,04-Nov-2022,Housing & Communities,DENNIS EAGLE LTD,Neighbourhoods,1011.09,Fire Service Workshops,2223P08_CR00310,01004865
Sandwell Metropolitan Borough Council,http://www.sandwell.gov.uk/info/200202/performance_and_spending/1079/payments_over_500,10-Nov-2022,Housing & Communities,DENNIS EAGLE LTD,Neighbourhoods,572.46,Fire Service Workshops,2223P08_CR00311,01004865
Sandwell Metropolitan Borough Council,http://www.sandwell.gov.uk/info/200202/performance_and_spending/1079/payments_over_500,01-Nov-2022,Housing & Communities,DENNIS EAGLE LTD,Neighbourhoods,723.26,Fire Service Workshops,2223P08_CR00312,01004865
Sandwell Metropolitan Borough Council,http://www.sandwell.gov.uk/info/200202/performance_and_spending/1079/payments_over_500,16-Nov-2022,Housing & Communities,DENNIS EAGLE LTD,Neighbourhoods,1080.84,Fire Service Workshops,2223P08_CR00313,01004865
Sandwell Metropolitan Borough Council,http://www.sandwell.gov.uk/info/200202/performance_and_spending/1079/payments_over_500,16-Nov-2022,Housing & Communities,DENNIS EAGLE LTD,Neighbourhoods,825.95,Fire Service Workshops,2223P08_CR00314,01004865
Sandwell Metropolitan Borough Council,http://www.sandwell.gov.uk/info/200202/performance_and_spending/1079/payments_over_500,01-Nov-2022,Housing & Communities,DENNIS EAGLE LTD,Neighbourhoods,853.11,Fire Service Workshops,2223P08_CR00315,01004865
Sandwell Metropolitan Borough Council,http://www.sandwell.gov.uk/info/200202/performance_and_spending/1079/payments_over_500,01-Nov-2022,Housing & Communities,DENNIS EAGLE LTD,Neighbourhoods,761.13,Fire Service Workshops,2223P08_CR00316,01004865
Sandwell Metropolitan Borough Council,http://www.sandwell.gov.uk/info/200202/performance_and_spending/1079/payments_over_500,11-Nov-2022,Housing & Communities,DENNIS EAGLE LTD,Neighbourhoods,1359.85,Fire Service Workshops,2223P08_CR00317,01004865
Sandwell Metropolitan Borough Council,http://www.sandwell.gov.uk/info/200202/performance_and_spending/1079/payments_over_500,04-Nov-2022,Housing & Communities,DENNIS EAGLE LTD,Neighbourhoods,664.20,Fire Service Workshops,2223P08_CR00318,01004865
Sandwell Metropolitan Borough Council,http://www.sandwell.gov.uk/info/200202/performance_and_spending/1079/payments_over_500,01-Nov-2022,Housing & Communities,DENNIS EAGLE LTD,Neighbourhoods,1159.34,Fire Service Workshops,2223P08_CR00319,01004865
Sandwell Metropolitan Borough Council,http://www.sandwell.gov.uk/info/200202/performance_and_spending/1079/payments_over_500,01-Nov-2022,Housing & Communities,ENTERPRISE FLEX-E-RENT,Neighbourhoods,878.85,Vehicle Hiring Charges,2223P08_CR00320,142092
Sandwell Metropolitan Borough Council,http://www.sandwell.gov.uk/info/200202/performance_and_spending/1079/payments_over_500,17-Nov-2022,Housing & Communities,ENTERPRISE FLEX-E-RENT,Neighbourhoods,775.00,Vehicle Hiring Charges,2223P08_CR00321,142092
Sandwell Metropolitan Borough Council,http://www.sandwell.gov.uk/info/200202/performance_and_spending/1079/payments_over_500,02-Nov-2022,Housing & Communities,FLEET FACTORS LTD,Neighbourhoods,760.00,Fire Service Workshops,2223P08_CR00322,164128
Sandwell Metropolitan Borough Council,http://www.sandwell.gov.uk/info/200202/performance_and_spending/1079/payments_over_500,16-Nov-2022,Housing & Communities,FLEET FACTORS LTD,Neighbourhoods,6144.00,Fire Service Workshops,2223P08_CR00323,164128
Sandwell Metropolitan Borough Council,http://www.sandwell.gov.uk/info/200202/performance_and_spending/1079/payments_over_500,01-Nov-2022,Housing & Communities,FLEET FACTORS LTD,Neighbourhoods,1927.00,Fire Service Workshops,2223P08_CR00324,164128
Sandwell Metropolitan Borough Council,http://www.sandwell.gov.uk/info/200202/performance_and_spending/1079/payments_over_500,08-Nov-2022,Housing & Communities,FLEET FACTORS LTD,Neighbourhoods,1690.54,Repairs & Maintenance,2223P08_CR00325,164128
Sandwell Metropolitan Borough Council,http://www.sandwell.gov.uk/info/200202/performance_and_spending/1079/payments_over_500,09-Nov-2022,Housing & Communities,FLEET FACTORS LTD,Neighbourhoods,585.60,Repairs & Maintenance,2223P08_CR00326,164128
Sandwell Metropolitan Borough Council,http://www.sandwell.gov.uk/info/200202/performance_and_spending/1079/payments_over_500,03-Nov-2022,Housing & Communities,FR SHARROCK LTD,Neighbourhoods,1583.40,Fire Service Workshops,2223P08_CR00327,01496028
Sandwell Metropolitan Borough Council,http://www.sandwell.gov.uk/info/200202/performance_and_spending/1079/payments_over_500,16-Nov-2022,Housing & Communities,GEESINK NORBA LTD,Neighbourhoods,1051.39,Fire Service Workshops,2223P08_CR00328,102799
Sandwell Metropolitan Borough Council,http://www.sandwell.gov.uk/info/200202/performance_and_spending/1079/payments_over_500,17-Nov-2022,Housing & Communities,GEESINK NORBA LTD,Neighbourhoods,2940.13,Fire Service Workshops,2223P08_CR00329,102799
Sandwell Metropolitan Borough Council,http://www.sandwell.gov.uk/info/200202/performance_and_spending/1079/payments_over_500,17-Nov-2022,Housing & Communities,GEESINK NORBA LTD,Neighbourhoods,876.51,Fire Service Workshops,2223P08_CR00330,102799
Sandwell Metropolitan Borough Council,http://www.sandwell.gov.uk/info/200202/performance_and_spending/1079/payments_over_500,23-Nov-2022,Housing & Communities,GEESINK NORBA LTD,Neighbourhoods,570.94,Fire Service Workshops,2223P08_CR00331,102799
Sandwell Metropolitan Borough Council,http://www.sandwell.gov.uk/info/200202/performance_and_spending/1079/payments_over_500,09-Nov-2022,Housing & Communities,GUEST MOTORS LTD           ,Neighbourhoods,651.33,Fire Service Workshops,2223P08_CR00332,73654
Sandwell Metropolitan Borough Council,http://www.sandwell.gov.uk/info/200202/performance_and_spending/1079/payments_over_500,01-Nov-2022,Housing & Communities,HADLEYS STEAM CLEANING LTD,Neighbourhoods,2774.00,Repairs & Maintenance,2223P08_CR00333,132536
Sandwell Metropolitan Borough Council,http://www.sandwell.gov.uk/info/200202/performance_and_spending/1079/payments_over_500,01-Nov-2022,Housing & Communities,HARTSHORNE MOTOR SERVICES LTD         ,Neighbourhoods,795.00,Fire Service Workshops,2223P08_CR00334,01508668
Sandwell Metropolitan Borough Council,http://www.sandwell.gov.uk/info/200202/performance_and_spending/1079/payments_over_500,01-Nov-2022,Housing & Communities,JAMES LISTER & SONS LTD,Neighbourhoods,978.00,Fire Service Workshops,2223P08_CR00335,01021821
Sandwell Metropolitan Borough Council,http://www.sandwell.gov.uk/info/200202/performance_and_spending/1079/payments_over_500,01-Nov-2022,Housing & Communities,MACKWORTH VEHICLE CONVERSIONS,Neighbourhoods,4427.00,Fire Service Workshops,2223P08_CR00336,124922
Sandwell Metropolitan Borough Council,http://www.sandwell.gov.uk/info/200202/performance_and_spending/1079/payments_over_500,01-Nov-2022,Housing & Communities,NORTHGATE VEHICLE HIRE (WEST MIDLANDS) LTD,Neighbourhoods,610.70,Vehicle Hiring Charges,2223P08_CR00337,01057676
Sandwell Metropolitan Borough Council,http://www.sandwell.gov.uk/info/200202/performance_and_spending/1079/payments_over_500,19-Nov-2022,Housing & Communities,PARTSPLUS,Neighbourhoods,616.75,Fire Service Workshops,2223P08_CR00338,01087922
Sandwell Metropolitan Borough Council,http://www.sandwell.gov.uk/info/200202/performance_and_spending/1079/payments_over_500,19-Nov-2022,Housing & Communities,PARTSPLUS,Neighbourhoods,528.43,Fire Service Workshops,2223P08_CR00339,01087922
Sandwell Metropolitan Borough Council,http://www.sandwell.gov.uk/info/200202/performance_and_spending/1079/payments_over_500,04-Nov-2022,Housing & Communities,PARTSPLUS,Neighbourhoods,1110.65,Fire Service Workshops,2223P08_CR00340,01087922
Sandwell Metropolitan Borough Council,http://www.sandwell.gov.uk/info/200202/performance_and_spending/1079/payments_over_500,03-Nov-2022,Housing & Communities,PARTSPLUS,Neighbourhoods,692.24,Fire Service Workshops,2223P08_CR00341,01087922
Sandwell Metropolitan Borough Council,http://www.sandwell.gov.uk/info/200202/performance_and_spending/1079/payments_over_500,13-Nov-2022,Housing & Communities,PHS BESAFE,Neighbourhoods,1083.30,Laundry,2223P08_CR00342,124613
Sandwell Metropolitan Borough Council,http://www.sandwell.gov.uk/info/200202/performance_and_spending/1079/payments_over_500,01-Nov-2022,Housing & Communities,ROBINS & DAY PARTS WEST MIDLANDS,Neighbourhoods,1048.47,Fire Service Workshops,2223P08_CR00343,118812
Sandwell Metropolitan Borough Council,http://www.sandwell.gov.uk/info/200202/performance_and_spending/1079/payments_over_500,01-Nov-2022,Housing & Communities,ROBINS & DAY PARTS WEST MIDLANDS,Neighbourhoods,533.74,Fire Service Workshops,2223P08_CR00344,118812
Sandwell Metropolitan Borough Council,http://www.sandwell.gov.uk/info/200202/performance_and_spending/1079/payments_over_500,08-Nov-2022,Housing & Communities,ROBINS & DAY PARTS WEST MIDLANDS,Neighbourhoods,527.71,Fire Service Workshops,2223P08_CR00345,118812
Sandwell Metropolitan Borough Council,http://www.sandwell.gov.uk/info/200202/performance_and_spending/1079/payments_over_500,10-Nov-2022,Housing & Communities,ROBINS & DAY PARTS WEST MIDLANDS,Neighbourhoods,715.95,Fire Service Workshops,2223P08_CR00346,118812
Sandwell Metropolitan Borough Council,http://www.sandwell.gov.uk/info/200202/performance_and_spending/1079/payments_over_500,18-Nov-2022,Housing & Communities,ROBINS & DAY PARTS WEST MIDLANDS,Neighbourhoods,915.09,Fire Service Workshops,2223P08_CR00347,118812
Sandwell Metropolitan Borough Council,http://www.sandwell.gov.uk/info/200202/performance_and_spending/1079/payments_over_500,25-Nov-2022,Housing & Communities,ROBINS & DAY PARTS WEST MIDLANDS,Neighbourhoods,561.77,Fire Service Workshops,2223P08_CR00348,118812
Sandwell Metropolitan Borough Council,http://www.sandwell.gov.uk/info/200202/performance_and_spending/1079/payments_over_500,14-Nov-2022,Housing & Communities,ROBINS & DAY PARTS WEST MIDLANDS,Neighbourhoods,924.15,Fire Service Workshops,2223P08_CR00349,118812
Sandwell Metropolitan Borough Council,http://www.sandwell.gov.uk/info/200202/performance_and_spending/1079/payments_over_500,16-Nov-2022,Housing & Communities,ROBINS & DAY PARTS WEST MIDLANDS,Neighbourhoods,708.72,Fire Service Workshops,2223P08_CR00350,118812
Sandwell Metropolitan Borough Council,http://www.sandwell.gov.uk/info/200202/performance_and_spending/1079/payments_over_500,01-Nov-2022,Housing & Communities,RVW PUGH LTD,Neighbourhoods,1019.73,Fire Service Workshops,2223P08_CR00351,5902
Sandwell Metropolitan Borough Council,http://www.sandwell.gov.uk/info/200202/performance_and_spending/1079/payments_over_500,01-Nov-2022,Housing & Communities,RVW PUGH LTD,Neighbourhoods,965.72,Fire Service Workshops,2223P08_CR00352,5902
Sandwell Metropolitan Borough Council,http://www.sandwell.gov.uk/info/200202/performance_and_spending/1079/payments_over_500,01-Nov-2022,Housing & Communities,RYGOR COMMERCIALS LTD,Neighbourhoods,2046.07,Fire Service Workshops,2223P08_CR00353,3345
Sandwell Metropolitan Borough Council,http://www.sandwell.gov.uk/info/200202/performance_and_spending/1079/payments_over_500,16-Nov-2022,Housing & Communities,RYGOR COMMERCIALS LTD,Neighbourhoods,632.31,Fire Service Workshops,2223P08_CR00354,3345
Sandwell Metropolitan Borough Council,http://www.sandwell.gov.uk/info/200202/performance_and_spending/1079/payments_over_500,23-Nov-2022,Housing & Communities,SHELLEY TRANSMISSION SERVICES LTD,Neighbourhoods,895.00,Fire Service Workshops,2223P08_CR00355,163886
Sandwell Metropolitan Borough Council,http://www.sandwell.gov.uk/info/200202/performance_and_spending/1079/payments_over_500,14-Nov-2022,Housing & Communities,TAYLOR ENGINEERING & FABRICATIONS LTD,Neighbourhoods,591.24,Fire Service Workshops,2223P08_CR00356,87793
Sandwell Metropolitan Borough Council,http://www.sandwell.gov.uk/info/200202/performance_and_spending/1079/payments_over_500,16-Nov-2022,Housing & Communities,TAYLOR ENGINEERING & FABRICATIONS LTD,Neighbourhoods,522.91,Fire Service Workshops,2223P08_CR00357,87793
Sandwell Metropolitan Borough Council,http://www.sandwell.gov.uk/info/200202/performance_and_spending/1079/payments_over_500,01-Nov-2022,Housing & Communities,TERBERG MATEC UK LTD,Neighbourhoods,1800.77,Fire Service Workshops,2223P08_CR00358,21235
Sandwell Metropolitan Borough Council,http://www.sandwell.gov.uk/info/200202/performance_and_spending/1079/payments_over_500,08-Nov-2022,Housing & Communities,TERBERG MATEC UK LTD,Neighbourhoods,745.88,Fire Service Workshops,2223P08_CR00359,21235
Sandwell Metropolitan Borough Council,http://www.sandwell.gov.uk/info/200202/performance_and_spending/1079/payments_over_500,15-Nov-2022,Housing & Communities,TERBERG MATEC UK LTD,Neighbourhoods,723.48,Fire Service Workshops,2223P08_CR00360,21235
Sandwell Metropolitan Borough Council,http://www.sandwell.gov.uk/info/200202/performance_and_spending/1079/payments_over_500,16-Nov-2022,Housing & Communities,TERBERG MATEC UK LTD,Neighbourhoods,723.48,Fire Service Workshops,2223P08_CR00361,21235
Sandwell Metropolitan Borough Council,http://www.sandwell.gov.uk/info/200202/performance_and_spending/1079/payments_over_500,22-Nov-2022,Housing & Communities,TERBERG MATEC UK LTD,Neighbourhoods,3214.08,Fire Service Workshops,2223P08_CR00362,21235
Sandwell Metropolitan Borough Council,http://www.sandwell.gov.uk/info/200202/performance_and_spending/1079/payments_over_500,01-Nov-2022,Housing & Communities,TH WHITE LIMITED T/A PALFINGER LTD,Housing & Communities,13050.00,"CIP - Vehicles, Plant & Machinery",2223P08_CR00363,01774713
Sandwell Metropolitan Borough Council,http://www.sandwell.gov.uk/info/200202/performance_and_spending/1079/payments_over_500,01-Nov-2022,Housing & Communities,TH WHITE LIMITED T/A PALFINGER LTD,Neighbourhoods,1034.71,Fire Service Workshops,2223P08_CR00364,01774713
Sandwell Metropolitan Borough Council,http://www.sandwell.gov.uk/info/200202/performance_and_spending/1079/payments_over_500,01-Nov-2022,Housing & Communities,TH WHITE LIMITED T/A PALFINGER LTD,Neighbourhoods,935.40,Fire Service Workshops,2223P08_CR00365,01774713
Sandwell Metropolitan Borough Council,http://www.sandwell.gov.uk/info/200202/performance_and_spending/1079/payments_over_500,01-Nov-2022,Housing & Communities,TH WHITE LIMITED T/A PALFINGER LTD,Neighbourhoods,747.30,Fire Service Workshops,2223P08_CR00366,01774713
Sandwell Metropolitan Borough Council,http://www.sandwell.gov.uk/info/200202/performance_and_spending/1079/payments_over_500,01-Nov-2022,Housing & Communities,TH WHITE LIMITED T/A PALFINGER LTD,Neighbourhoods,591.00,Fire Service Workshops,2223P08_CR00367,01774713
Sandwell Metropolitan Borough Council,http://www.sandwell.gov.uk/info/200202/performance_and_spending/1079/payments_over_500,07-Nov-2022,Housing & Communities,TH WHITE LIMITED T/A PALFINGER LTD,Neighbourhoods,2435.37,Fire Service Workshops,2223P08_CR00368,01774713
Sandwell Metropolitan Borough Council,http://www.sandwell.gov.uk/info/200202/performance_and_spending/1079/payments_over_500,18-Nov-2022,Housing & Communities,TH WHITE LIMITED T/A PALFINGER LTD,Neighbourhoods,2222.67,Fire Service Workshops,2223P08_CR00369,01774713
Sandwell Metropolitan Borough Council,http://www.sandwell.gov.uk/info/200202/performance_and_spending/1079/payments_over_500,08-Nov-2022,Housing & Communities,TH WHITE LIMITED T/A PALFINGER LTD,Neighbourhoods,1127.82,Repairs & Maintenance,2223P08_CR00370,01774713
Sandwell Metropolitan Borough Council,http://www.sandwell.gov.uk/info/200202/performance_and_spending/1079/payments_over_500,28-Nov-2022,Housing & Communities,THE PLATFORM REPAIR CENTRE,Neighbourhoods,1260.00,Fire Service Workshops,2223P08_CR00371,123826
Sandwell Metropolitan Borough Council,http://www.sandwell.gov.uk/info/200202/performance_and_spending/1079/payments_over_500,18-Nov-2022,Housing & Communities,THE SAFETY SUPPLY COMPANY LTD,Neighbourhoods,649.35,Fire Service Workshops,2223P08_CR00372,120238
Sandwell Metropolitan Borough Council,http://www.sandwell.gov.uk/info/200202/performance_and_spending/1079/payments_over_500,22-Nov-2022,Housing & Communities,WATLING JCB LIMITED,Neighbourhoods,2657.12,Fire Service Workshops,2223P08_CR00373,127607
Sandwell Metropolitan Borough Council,http://www.sandwell.gov.uk/info/200202/performance_and_spending/1079/payments_over_500,01-Nov-2022,Housing & Communities,WESTON MOTORS LIMITED,Neighbourhoods,1683.35,Fire Service Workshops,2223P08_CR00374,127787
Sandwell Metropolitan Borough Council,http://www.sandwell.gov.uk/info/200202/performance_and_spending/1079/payments_over_500,14-Nov-2022,Housing & Communities,WILLENHALL ENGINE CENTRE,Neighbourhoods,3891.40,Fire Service Workshops,2223P08_CR00375,163250
Sandwell Metropolitan Borough Council,http://www.sandwell.gov.uk/info/200202/performance_and_spending/1079/payments_over_500,08-Nov-2022,Housing & Communities,MIDLAND FORESTRY LIMITED,Neighbourhoods,-796.00,Externally Purchased Professional Services ,2223P08_CR00376,45812
Sandwell Metropolitan Borough Council,http://www.sandwell.gov.uk/info/200202/performance_and_spending/1079/payments_over_500,22-Nov-2022,Housing & Communities,MIDLAND FORESTRY LIMITED,Neighbourhoods,-1425.00,Externally Purchased Professional Services ,2223P08_CR00377,45812
Sandwell Metropolitan Borough Council,http://www.sandwell.gov.uk/info/200202/performance_and_spending/1079/payments_over_500,01-Nov-2022,Housing & Communities,RIGHT TO CARE LTD.,Neighbourhoods,-613.98,Rents,2223P08_CR00378,133426
Sandwell Metropolitan Borough Council,http://www.sandwell.gov.uk/info/200202/performance_and_spending/1079/payments_over_500,01-Nov-2022,Housing & Communities,SERCO LIMITED,Neighbourhoods,-206379.00,Waste Disposal Charges,2223P08_CR00379,53771
Sandwell Metropolitan Borough Council,http://www.sandwell.gov.uk/info/200202/performance_and_spending/1079/payments_over_500,01-Nov-2022,Housing & Communities,ADT FIRE & SECURITY PLC,Neighbourhoods,990.92,Security,2223P08_CR00380,01115015
Sandwell Metropolitan Borough Council,http://www.sandwell.gov.uk/info/200202/performance_and_spending/1079/payments_over_500,10-Nov-2022,Housing & Communities,ADT FIRE & SECURITY PLC,Neighbourhoods,1303.45,Security,2223P08_CR00381,01115015
Sandwell Metropolitan Borough Council,http://www.sandwell.gov.uk/info/200202/performance_and_spending/1079/payments_over_500,01-Nov-2022,Housing & Communities,ALLSTAR BUSINESS SOLUTIONS LIMITED,Neighbourhoods,1684.16,Fuel ,2223P08_CR00382,104057
Sandwell Metropolitan Borough Council,http://www.sandwell.gov.uk/info/200202/performance_and_spending/1079/payments_over_500,15-Nov-2022,Housing & Communities,ALLSTAR BUSINESS SOLUTIONS LIMITED,Neighbourhoods,1320.60,Fuel ,2223P08_CR00383,104057
Sandwell Metropolitan Borough Council,http://www.sandwell.gov.uk/info/200202/performance_and_spending/1079/payments_over_500,01-Nov-2022,Housing & Communities,BARCHAM TREES PLC,Neighbourhoods,3346.00,Externally Purchased Professional Services ,2223P08_CR00384,01540916
Sandwell Metropolitan Borough Council,http://www.sandwell.gov.uk/info/200202/performance_and_spending/1079/payments_over_500,16-Nov-2022,Housing & Communities,BEACON LAND SURVEYS LTD,Neighbourhoods,3250.00,Consultancy,2223P08_CR00385,01721778
Sandwell Metropolitan Borough Council,http://www.sandwell.gov.uk/info/200202/performance_and_spending/1079/payments_over_500,01-Nov-2022,Housing & Communities,BEECHWOOD TREES & LANDSCAPE LTD,Neighbourhoods,695.00,Externally Purchased Professional Services ,2223P08_CR00386,93287
Sandwell Metropolitan Borough Council,http://www.sandwell.gov.uk/info/200202/performance_and_spending/1079/payments_over_500,01-Nov-2022,Housing & Communities,BEECHWOOD TREES & LANDSCAPE LTD,Neighbourhoods,630.00,Externally Purchased Professional Services ,2223P08_CR00387,93287
Sandwell Metropolitan Borough Council,http://www.sandwell.gov.uk/info/200202/performance_and_spending/1079/payments_over_500,14-Nov-2022,Housing & Communities,BEECHWOOD TREES & LANDSCAPE LTD,Neighbourhoods,2430.00,Externally Purchased Professional Services ,2223P08_CR00388,93287
Sandwell Metropolitan Borough Council,http://www.sandwell.gov.uk/info/200202/performance_and_spending/1079/payments_over_500,01-Nov-2022,Housing & Communities,BEECHWOOD TREES & LANDSCAPE LTD,Neighbourhoods,1050.00,Externally Purchased Professional Services ,2223P08_CR00389,93287
Sandwell Metropolitan Borough Council,http://www.sandwell.gov.uk/info/200202/performance_and_spending/1079/payments_over_500,01-Nov-2022,Housing & Communities,BESTWAY WHOLESALE LTD,Neighbourhoods,4921.92,Catering Provisions,2223P08_CR00390,161815
Sandwell Metropolitan Borough Council,http://www.sandwell.gov.uk/info/200202/performance_and_spending/1079/payments_over_500,02-Nov-2022,Housing & Communities,BESTWAY WHOLESALE LTD,Neighbourhoods,501.75,Catering Provisions,2223P08_CR00391,161815
Sandwell Metropolitan Borough Council,http://www.sandwell.gov.uk/info/200202/performance_and_spending/1079/payments_over_500,01-Nov-2022,Housing & Communities,BIG FOOT EVENTS,Neighbourhoods,3400.00,Civic Events,2223P08_CR00392,164515
Sandwell Metropolitan Borough Council,http://www.sandwell.gov.uk/info/200202/performance_and_spending/1079/payments_over_500,01-Nov-2022,Housing & Communities,BLACK COUNTRY TOURING,Neighbourhoods,1595.00,Civic Events,2223P08_CR00393,01661722
Sandwell Metropolitan Borough Council,http://www.sandwell.gov.uk/info/200202/performance_and_spending/1079/payments_over_500,01-Nov-2022,Housing & Communities,BLAKEMORE FOOD SERVICE LTD,Neighbourhoods,651.61,Catering Provisions,2223P08_CR00394,2518
Sandwell Metropolitan Borough Council,http://www.sandwell.gov.uk/info/200202/performance_and_spending/1079/payments_over_500,01-Nov-2022,Housing & Communities,BOOSTER CUSHION THEATRE LTD,Neighbourhoods,650.00,Materials & Consumables,2223P08_CR00395,45891
Sandwell Metropolitan Borough Council,http://www.sandwell.gov.uk/info/200202/performance_and_spending/1079/payments_over_500,01-Nov-2022,Housing & Communities,BRUSHSTROKES,Neighbourhoods,8800.00,Externally Purchased Professional Services ,2223P08_CR00396,21029374
Sandwell Metropolitan Borough Council,http://www.sandwell.gov.uk/info/200202/performance_and_spending/1079/payments_over_500,01-Nov-2022,Housing & Communities,BRUSHSTROKES,Neighbourhoods,22000.00,Externally Purchased Professional Services ,2223P08_CR00397,21029374
Sandwell Metropolitan Borough Council,http://www.sandwell.gov.uk/info/200202/performance_and_spending/1079/payments_over_500,01-Nov-2022,Housing & Communities,BRUSHSTROKES,Neighbourhoods,2200.00,Externally Purchased Professional Services ,2223P08_CR00398,21029374
Sandwell Metropolitan Borough Council,http://www.sandwell.gov.uk/info/200202/performance_and_spending/1079/payments_over_500,01-Nov-2022,Housing & Communities,BRUSHSTROKES,Neighbourhoods,2200.00,Externally Purchased Professional Services ,2223P08_CR00399,21029374
Sandwell Metropolitan Borough Council,http://www.sandwell.gov.uk/info/200202/performance_and_spending/1079/payments_over_500,01-Nov-2022,Housing & Communities,BRUSHSTROKES,Neighbourhoods,4400.00,Externally Purchased Professional Services ,2223P08_CR00400,21029374
Sandwell Metropolitan Borough Council,http://www.sandwell.gov.uk/info/200202/performance_and_spending/1079/payments_over_500,01-Nov-2022,Housing & Communities,BRUSHSTROKES,Neighbourhoods,6600.00,Externally Purchased Professional Services ,2223P08_CR00401,21029374
Sandwell Metropolitan Borough Council,http://www.sandwell.gov.uk/info/200202/performance_and_spending/1079/payments_over_500,01-Nov-2022,Housing & Communities,BRUSHSTROKES,Neighbourhoods,4400.00,Externally Purchased Professional Services ,2223P08_CR00402,21029374
Sandwell Metropolitan Borough Council,http://www.sandwell.gov.uk/info/200202/performance_and_spending/1079/payments_over_500,04-Nov-2022,Housing & Communities,BRUSHSTROKES,Neighbourhoods,600.00,Externally Purchased Professional Services ,2223P08_CR00403,21029374
Sandwell Metropolitan Borough Council,http://www.sandwell.gov.uk/info/200202/performance_and_spending/1079/payments_over_500,04-Nov-2022,Housing & Communities,BRUSHSTROKES,Neighbourhoods,2200.00,Externally Purchased Professional Services ,2223P08_CR00404,21029374
Sandwell Metropolitan Borough Council,http://www.sandwell.gov.uk/info/200202/performance_and_spending/1079/payments_over_500,04-Nov-2022,Housing & Communities,BRUSHSTROKES,Neighbourhoods,2200.00,Externally Purchased Professional Services ,2223P08_CR00405,21029374
Sandwell Metropolitan Borough Council,http://www.sandwell.gov.uk/info/200202/performance_and_spending/1079/payments_over_500,04-Nov-2022,Housing & Communities,BRUSHSTROKES,Neighbourhoods,2200.00,Externally Purchased Professional Services ,2223P08_CR00406,21029374
Sandwell Metropolitan Borough Council,http://www.sandwell.gov.uk/info/200202/performance_and_spending/1079/payments_over_500,04-Nov-2022,Housing & Communities,BRUSHSTROKES,Neighbourhoods,2200.00,Externally Purchased Professional Services ,2223P08_CR00407,21029374
Sandwell Metropolitan Borough Council,http://www.sandwell.gov.uk/info/200202/performance_and_spending/1079/payments_over_500,23-Nov-2022,Housing & Communities,BW HEALTHCARE SURVEYORS LTD,Neighbourhoods,1500.00,Externally Purchased Professional Services ,2223P08_CR00408,164331
Sandwell Metropolitan Borough Council,http://www.sandwell.gov.uk/info/200202/performance_and_spending/1079/payments_over_500,15-Nov-2022,Housing & Communities,CADEBY TREE TRUST,Neighbourhoods,4975.00,Materials & Consumables,2223P08_CR00409,119501
Sandwell Metropolitan Borough Council,http://www.sandwell.gov.uk/info/200202/performance_and_spending/1079/payments_over_500,01-Nov-2022,Housing & Communities,CENTRAL DESIGN CONSULTANTS LTD,Neighbourhoods,1000.00,Consultancy,2223P08_CR00410,4103
Sandwell Metropolitan Borough Council,http://www.sandwell.gov.uk/info/200202/performance_and_spending/1079/payments_over_500,01-Nov-2022,Housing & Communities,CERTAS ENERGY LIMITED,Neighbourhoods,4969.47,Fuel ,2223P08_CR00411,80421
Sandwell Metropolitan Borough Council,http://www.sandwell.gov.uk/info/200202/performance_and_spending/1079/payments_over_500,01-Nov-2022,Housing & Communities,CODE RED ENTERTAINMENT,Neighbourhoods,1500.00,Civic Events,2223P08_CR00412,158272
Sandwell Metropolitan Borough Council,http://www.sandwell.gov.uk/info/200202/performance_and_spending/1079/payments_over_500,01-Nov-2022,Housing & Communities,CODE RED ENTERTAINMENT,Neighbourhoods,4320.00,Civic Events,2223P08_CR00413,158272
Sandwell Metropolitan Borough Council,http://www.sandwell.gov.uk/info/200202/performance_and_spending/1079/payments_over_500,01-Nov-2022,Housing & Communities,CORROY PRODUCTS LTD,Neighbourhoods,730.17,Materials & Consumables,2223P08_CR00414,4518
Sandwell Metropolitan Borough Council,http://www.sandwell.gov.uk/info/200202/performance_and_spending/1079/payments_over_500,03-Nov-2022,Housing & Communities,COULTERS LTD,Neighbourhoods,2050.00,Catering Provisions,2223P08_CR00415,154910
Sandwell Metropolitan Borough Council,http://www.sandwell.gov.uk/info/200202/performance_and_spending/1079/payments_over_500,17-Nov-2022,Housing & Communities,CREATIVE ACTIVE LIVES CIC,Neighbourhoods,1400.00,Civic Events,2223P08_CR00416,138641
Sandwell Metropolitan Borough Council,http://www.sandwell.gov.uk/info/200202/performance_and_spending/1079/payments_over_500,14-Nov-2022,Housing & Communities,DON'T  GO INTO THE CELLAR,Neighbourhoods,510.00,Civic Events,2223P08_CR00417,105617
Sandwell Metropolitan Borough Council,http://www.sandwell.gov.uk/info/200202/performance_and_spending/1079/payments_over_500,01-Nov-2022,Housing & Communities,DORMY HOTEL,Neighbourhoods,2666.67,Rents,2223P08_CR00418,01737052
Sandwell Metropolitan Borough Council,http://www.sandwell.gov.uk/info/200202/performance_and_spending/1079/payments_over_500,01-Nov-2022,Housing & Communities,DORMY HOTEL,Neighbourhoods,1020.83,Rents,2223P08_CR00419,01737052
Sandwell Metropolitan Borough Council,http://www.sandwell.gov.uk/info/200202/performance_and_spending/1079/payments_over_500,01-Nov-2022,Housing & Communities,DORMY HOTEL,Neighbourhoods,3250.00,Rents,2223P08_CR00420,01737052
Sandwell Metropolitan Borough Council,http://www.sandwell.gov.uk/info/200202/performance_and_spending/1079/payments_over_500,01-Nov-2022,Housing & Communities,EP TRAFFIC SERVICES,Neighbourhoods,40899.20,Security,2223P08_CR00421,164287
Sandwell Metropolitan Borough Council,http://www.sandwell.gov.uk/info/200202/performance_and_spending/1079/payments_over_500,01-Nov-2022,Housing & Communities,EPOS NOW LTD,Neighbourhoods,4716.67,Externally Purchased Professional Services ,2223P08_CR00422,164201
Sandwell Metropolitan Borough Council,http://www.sandwell.gov.uk/info/200202/performance_and_spending/1079/payments_over_500,01-Nov-2022,Housing & Communities,EUROPEAN'S WELFARE ASSOCIATION CIC,Housing & Communities,544.30,Grant Payments,2223P08_CR00423,123703
Sandwell Metropolitan Borough Council,http://www.sandwell.gov.uk/info/200202/performance_and_spending/1079/payments_over_500,01-Nov-2022,Housing & Communities,EUROPEAN'S WELFARE ASSOCIATION CIC,Housing & Communities,5120.00,Grant Payments,2223P08_CR00424,123703
Sandwell Metropolitan Borough Council,http://www.sandwell.gov.uk/info/200202/performance_and_spending/1079/payments_over_500,01-Nov-2022,Housing & Communities,EUROPEAN'S WELFARE ASSOCIATION CIC,Housing & Communities,1500.00,Grant Payments,2223P08_CR00425,123703
Sandwell Metropolitan Borough Council,http://www.sandwell.gov.uk/info/200202/performance_and_spending/1079/payments_over_500,01-Nov-2022,Housing & Communities,EUROPEAN'S WELFARE ASSOCIATION CIC,Housing & Communities,1472.00,Grant Payments,2223P08_CR00426,123703
Sandwell Metropolitan Borough Council,http://www.sandwell.gov.uk/info/200202/performance_and_spending/1079/payments_over_500,01-Nov-2022,Housing & Communities,EUROPEAN'S WELFARE ASSOCIATION CIC,Housing & Communities,6600.00,Grant Payments,2223P08_CR00427,123703
Sandwell Metropolitan Borough Council,http://www.sandwell.gov.uk/info/200202/performance_and_spending/1079/payments_over_500,01-Nov-2022,Housing & Communities,EUROPEAN'S WELFARE ASSOCIATION CIC,Housing & Communities,782.00,Grant Payments,2223P08_CR00428,123703
Sandwell Metropolitan Borough Council,http://www.sandwell.gov.uk/info/200202/performance_and_spending/1079/payments_over_500,01-Nov-2022,Housing & Communities,EUROPEAN'S WELFARE ASSOCIATION CIC,Housing & Communities,5876.50,Grant Payments,2223P08_CR00429,123703
Sandwell Metropolitan Borough Council,http://www.sandwell.gov.uk/info/200202/performance_and_spending/1079/payments_over_500,01-Nov-2022,Housing & Communities,EUROPEAN'S WELFARE ASSOCIATION CIC,Housing & Communities,15400.00,Grant Payments,2223P08_CR00430,123703
Sandwell Metropolitan Borough Council,http://www.sandwell.gov.uk/info/200202/performance_and_spending/1079/payments_over_500,01-Nov-2022,Housing & Communities,EUROPEAN'S WELFARE ASSOCIATION CIC,Housing & Communities,8987.83,Grant Payments,2223P08_CR00431,123703
Sandwell Metropolitan Borough Council,http://www.sandwell.gov.uk/info/200202/performance_and_spending/1079/payments_over_500,08-Nov-2022,Housing & Communities,FOLLYS LUXURY TOILET HIRE,Neighbourhoods,1166.67,Equipment & Furniture ,2223P08_CR00432,164577
Sandwell Metropolitan Borough Council,http://www.sandwell.gov.uk/info/200202/performance_and_spending/1079/payments_over_500,14-Nov-2022,Housing & Communities,FURNITURE RESOURCE CENTRE LTD,Neighbourhoods,6509.63,Rents,2223P08_CR00433,01641204
Sandwell Metropolitan Borough Council,http://www.sandwell.gov.uk/info/200202/performance_and_spending/1079/payments_over_500,01-Nov-2022,Housing & Communities,GILANI ENTERPRISES LIMITED,Neighbourhoods,5075.00,Rents,2223P08_CR00434,2696
Sandwell Metropolitan Borough Council,http://www.sandwell.gov.uk/info/200202/performance_and_spending/1079/payments_over_500,01-Nov-2022,Housing & Communities,GILANI ENTERPRISES LIMITED,Neighbourhoods,800.00,Rents,2223P08_CR00435,2696
Sandwell Metropolitan Borough Council,http://www.sandwell.gov.uk/info/200202/performance_and_spending/1079/payments_over_500,01-Nov-2022,Housing & Communities,GILANI ENTERPRISES LIMITED,Neighbourhoods,600.00,Rents,2223P08_CR00436,2696
Sandwell Metropolitan Borough Council,http://www.sandwell.gov.uk/info/200202/performance_and_spending/1079/payments_over_500,01-Nov-2022,Housing & Communities,GILANI ENTERPRISES LIMITED,Neighbourhoods,1458.33,Rents,2223P08_CR00437,2696
Sandwell Metropolitan Borough Council,http://www.sandwell.gov.uk/info/200202/performance_and_spending/1079/payments_over_500,01-Nov-2022,Housing & Communities,GILANI ENTERPRISES LIMITED,Neighbourhoods,1666.67,Rents,2223P08_CR00438,2696
Sandwell Metropolitan Borough Council,http://www.sandwell.gov.uk/info/200202/performance_and_spending/1079/payments_over_500,01-Nov-2022,Housing & Communities,GILANI ENTERPRISES LIMITED,Neighbourhoods,4958.33,Rents,2223P08_CR00439,2696
Sandwell Metropolitan Borough Council,http://www.sandwell.gov.uk/info/200202/performance_and_spending/1079/payments_over_500,01-Nov-2022,Housing & Communities,GILANI ENTERPRISES LIMITED,Neighbourhoods,7000.00,Rents,2223P08_CR00440,2696
Sandwell Metropolitan Borough Council,http://www.sandwell.gov.uk/info/200202/performance_and_spending/1079/payments_over_500,21-Nov-2022,Housing & Communities,GILANI ENTERPRISES LIMITED,Neighbourhoods,666.67,Rents,2223P08_CR00441,2696
Sandwell Metropolitan Borough Council,http://www.sandwell.gov.uk/info/200202/performance_and_spending/1079/payments_over_500,21-Nov-2022,Housing & Communities,GILANI ENTERPRISES LIMITED,Neighbourhoods,1000.00,Rents,2223P08_CR00442,2696
Sandwell Metropolitan Borough Council,http://www.sandwell.gov.uk/info/200202/performance_and_spending/1079/payments_over_500,01-Nov-2022,Housing & Communities,GILANI ENTERPRISES LIMITED,Neighbourhoods,1133.33,Rents,2223P08_CR00443,2696
Sandwell Metropolitan Borough Council,http://www.sandwell.gov.uk/info/200202/performance_and_spending/1079/payments_over_500,01-Nov-2022,Housing & Communities,GILANI ENTERPRISES LIMITED,Neighbourhoods,1066.67,Rents,2223P08_CR00444,2696
Sandwell Metropolitan Borough Council,http://www.sandwell.gov.uk/info/200202/performance_and_spending/1079/payments_over_500,01-Nov-2022,Housing & Communities,GILANI ENTERPRISES LIMITED,Neighbourhoods,2500.00,Rents,2223P08_CR00445,2696
Sandwell Metropolitan Borough Council,http://www.sandwell.gov.uk/info/200202/performance_and_spending/1079/payments_over_500,01-Nov-2022,Housing & Communities,GILANI ENTERPRISES LIMITED,Neighbourhoods,1400.00,Rents,2223P08_CR00446,2696
Sandwell Metropolitan Borough Council,http://www.sandwell.gov.uk/info/200202/performance_and_spending/1079/payments_over_500,28-Nov-2022,Housing & Communities,GILANI ENTERPRISES LIMITED,Neighbourhoods,2800.00,Rents,2223P08_CR00447,2696
Sandwell Metropolitan Borough Council,http://www.sandwell.gov.uk/info/200202/performance_and_spending/1079/payments_over_500,28-Nov-2022,Housing & Communities,GILANI ENTERPRISES LIMITED,Neighbourhoods,3966.67,Rents,2223P08_CR00448,2696
Sandwell Metropolitan Borough Council,http://www.sandwell.gov.uk/info/200202/performance_and_spending/1079/payments_over_500,28-Nov-2022,Housing & Communities,GILANI ENTERPRISES LIMITED,Neighbourhoods,5600.00,Rents,2223P08_CR00449,2696
Sandwell Metropolitan Borough Council,http://www.sandwell.gov.uk/info/200202/performance_and_spending/1079/payments_over_500,28-Nov-2022,Housing & Communities,GILANI ENTERPRISES LIMITED,Neighbourhoods,1866.67,Rents,2223P08_CR00450,2696
Sandwell Metropolitan Borough Council,http://www.sandwell.gov.uk/info/200202/performance_and_spending/1079/payments_over_500,28-Nov-2022,Housing & Communities,GILANI ENTERPRISES LIMITED,Neighbourhoods,1166.67,Rents,2223P08_CR00451,2696
Sandwell Metropolitan Borough Council,http://www.sandwell.gov.uk/info/200202/performance_and_spending/1079/payments_over_500,28-Nov-2022,Housing & Communities,GILANI ENTERPRISES LIMITED,Neighbourhoods,1700.00,Rents,2223P08_CR00452,2696
Sandwell Metropolitan Borough Council,http://www.sandwell.gov.uk/info/200202/performance_and_spending/1079/payments_over_500,28-Nov-2022,Housing & Communities,GILANI ENTERPRISES LIMITED,Neighbourhoods,500.00,Rents,2223P08_CR00453,2696
Sandwell Metropolitan Borough Council,http://www.sandwell.gov.uk/info/200202/performance_and_spending/1079/payments_over_500,28-Nov-2022,Housing & Communities,GILANI ENTERPRISES LIMITED,Neighbourhoods,1000.00,Rents,2223P08_CR00454,2696
Sandwell Metropolitan Borough Council,http://www.sandwell.gov.uk/info/200202/performance_and_spending/1079/payments_over_500,28-Nov-2022,Housing & Communities,GILANI ENTERPRISES LIMITED,Neighbourhoods,1300.00,Rents,2223P08_CR00455,2696
Sandwell Metropolitan Borough Council,http://www.sandwell.gov.uk/info/200202/performance_and_spending/1079/payments_over_500,28-Nov-2022,Housing & Communities,GILANI ENTERPRISES LIMITED,Neighbourhoods,1900.00,Rents,2223P08_CR00456,2696
Sandwell Metropolitan Borough Council,http://www.sandwell.gov.uk/info/200202/performance_and_spending/1079/payments_over_500,28-Nov-2022,Housing & Communities,GILANI ENTERPRISES LIMITED,Neighbourhoods,2800.00,Rents,2223P08_CR00457,2696
Sandwell Metropolitan Borough Council,http://www.sandwell.gov.uk/info/200202/performance_and_spending/1079/payments_over_500,01-Nov-2022,Housing & Communities,GRANICUS-FIRMSTEP LTD,Housing & Communities,17379.00,ICT ,2223P08_CR00458,122375
Sandwell Metropolitan Borough Council,http://www.sandwell.gov.uk/info/200202/performance_and_spending/1079/payments_over_500,07-Nov-2022,Housing & Communities,GREENTECH LTD,Neighbourhoods,702.31,Materials & Consumables,2223P08_CR00459,163053
Sandwell Metropolitan Borough Council,http://www.sandwell.gov.uk/info/200202/performance_and_spending/1079/payments_over_500,07-Nov-2022,Housing & Communities,GREENTECH LTD,Neighbourhoods,1411.20,Materials & Consumables,2223P08_CR00460,163053
Sandwell Metropolitan Borough Council,http://www.sandwell.gov.uk/info/200202/performance_and_spending/1079/payments_over_500,01-Nov-2022,Housing & Communities,GREENWICH LEISURE LTD,Neighbourhoods,3125.00,ICT ,2223P08_CR00461,136157
Sandwell Metropolitan Borough Council,http://www.sandwell.gov.uk/info/200202/performance_and_spending/1079/payments_over_500,01-Nov-2022,Housing & Communities,GREENWICH LEISURE LTD,Neighbourhoods,3125.00,ICT ,2223P08_CR00462,136157
Sandwell Metropolitan Borough Council,http://www.sandwell.gov.uk/info/200202/performance_and_spending/1079/payments_over_500,01-Nov-2022,Housing & Communities,HAYSTOUN CONSTRUCTION LTD,Neighbourhoods,16400.00,Equipment & Furniture ,2223P08_CR00463,11849
Sandwell Metropolitan Borough Council,http://www.sandwell.gov.uk/info/200202/performance_and_spending/1079/payments_over_500,01-Nov-2022,Housing & Communities,HAYSTOUN CONSTRUCTION LTD,Neighbourhoods,3600.00,Equipment & Furniture ,2223P08_CR00464,11849
Sandwell Metropolitan Borough Council,http://www.sandwell.gov.uk/info/200202/performance_and_spending/1079/payments_over_500,01-Nov-2022,Housing & Communities,HAYSTOUN CONSTRUCTION LTD,Neighbourhoods,9153.38,Equipment & Furniture ,2223P08_CR00465,11849
Sandwell Metropolitan Borough Council,http://www.sandwell.gov.uk/info/200202/performance_and_spending/1079/payments_over_500,01-Nov-2022,Housing & Communities,HAYSTOUN CONSTRUCTION LTD,Neighbourhoods,5918.88,Equipment & Furniture ,2223P08_CR00466,11849
Sandwell Metropolitan Borough Council,http://www.sandwell.gov.uk/info/200202/performance_and_spending/1079/payments_over_500,01-Nov-2022,Housing & Communities,HAYSTOUN CONSTRUCTION LTD,Neighbourhoods,16244.80,Equipment & Furniture ,2223P08_CR00467,11849
Sandwell Metropolitan Borough Council,http://www.sandwell.gov.uk/info/200202/performance_and_spending/1079/payments_over_500,01-Nov-2022,Housing & Communities,HAYSTOUN CONSTRUCTION LTD,Neighbourhoods,3805.40,Equipment & Furniture ,2223P08_CR00468,11849
Sandwell Metropolitan Borough Council,http://www.sandwell.gov.uk/info/200202/performance_and_spending/1079/payments_over_500,03-Nov-2022,Housing & Communities,HAYSTOUN CONSTRUCTION LTD,Neighbourhoods,1370.00,Equipment & Furniture ,2223P08_CR00469,11849
Sandwell Metropolitan Borough Council,http://www.sandwell.gov.uk/info/200202/performance_and_spending/1079/payments_over_500,01-Nov-2022,Housing & Communities,HELLO LAMP POST,Neighbourhoods,4196.25,ICT ,2223P08_CR00470,163066
Sandwell Metropolitan Borough Council,http://www.sandwell.gov.uk/info/200202/performance_and_spending/1079/payments_over_500,01-Nov-2022,Housing & Communities,"HIGHFIELD HOUSE HOTEL,",Neighbourhoods,540.00,Rents,2223P08_CR00471,162756
Sandwell Metropolitan Borough Council,http://www.sandwell.gov.uk/info/200202/performance_and_spending/1079/payments_over_500,01-Nov-2022,Housing & Communities,"HIGHFIELD HOUSE HOTEL,",Neighbourhoods,1750.00,Rents,2223P08_CR00472,162756
Sandwell Metropolitan Borough Council,http://www.sandwell.gov.uk/info/200202/performance_and_spending/1079/payments_over_500,01-Nov-2022,Housing & Communities,"HIGHFIELD HOUSE HOTEL,",Neighbourhoods,2160.00,Rents,2223P08_CR00473,162756
Sandwell Metropolitan Borough Council,http://www.sandwell.gov.uk/info/200202/performance_and_spending/1079/payments_over_500,01-Nov-2022,Housing & Communities,"HIGHFIELD HOUSE HOTEL,",Neighbourhoods,4080.00,Rents,2223P08_CR00474,162756
Sandwell Metropolitan Borough Council,http://www.sandwell.gov.uk/info/200202/performance_and_spending/1079/payments_over_500,01-Nov-2022,Housing & Communities,"HIGHFIELD HOUSE HOTEL,",Neighbourhoods,3200.00,Rents,2223P08_CR00475,162756
Sandwell Metropolitan Borough Council,http://www.sandwell.gov.uk/info/200202/performance_and_spending/1079/payments_over_500,21-Nov-2022,Housing & Communities,"HIGHFIELD HOUSE HOTEL,",Neighbourhoods,900.00,Rents,2223P08_CR00476,162756
Sandwell Metropolitan Borough Council,http://www.sandwell.gov.uk/info/200202/performance_and_spending/1079/payments_over_500,01-Nov-2022,Housing & Communities,HILL INTERIOR CONTRACTS LTD,Neighbourhoods,3450.00,Rents,2223P08_CR00477,17158
Sandwell Metropolitan Borough Council,http://www.sandwell.gov.uk/info/200202/performance_and_spending/1079/payments_over_500,17-Nov-2022,Housing & Communities,HIRE STATION LIMITED T/A BRANDON HIRE STATION,Neighbourhoods,2360.00,Equipment & Furniture ,2223P08_CR00478,138598
Sandwell Metropolitan Borough Council,http://www.sandwell.gov.uk/info/200202/performance_and_spending/1079/payments_over_500,01-Nov-2022,Housing & Communities,HOARE LEA LLP,Housing & Communities,3750.00,"CIP - New Construction,Conversion, Enhancement & Reno",2223P08_CR00479,137607
Sandwell Metropolitan Borough Council,http://www.sandwell.gov.uk/info/200202/performance_and_spending/1079/payments_over_500,26-Nov-2022,Housing & Communities,HOARE LEA LLP,Housing & Communities,3750.00,"CIP - New Construction,Conversion, Enhancement & Reno",2223P08_CR00480,137607
Sandwell Metropolitan Borough Council,http://www.sandwell.gov.uk/info/200202/performance_and_spending/1079/payments_over_500,01-Nov-2022,Housing & Communities,HOME FARM NURSERIES (PINVIN) LIMITED,Neighbourhoods,13842.61,Equipment & Furniture ,2223P08_CR00481,77003445
Sandwell Metropolitan Borough Council,http://www.sandwell.gov.uk/info/200202/performance_and_spending/1079/payments_over_500,01-Nov-2022,Housing & Communities,HOME FARM NURSERIES (PINVIN) LIMITED,Neighbourhoods,27121.42,Equipment & Furniture ,2223P08_CR00482,77003445
Sandwell Metropolitan Borough Council,http://www.sandwell.gov.uk/info/200202/performance_and_spending/1079/payments_over_500,01-Nov-2022,Housing & Communities,INFAMOUS COMMUNITY ARTS,Neighbourhoods,600.00,Civic Events,2223P08_CR00483,102940
Sandwell Metropolitan Borough Council,http://www.sandwell.gov.uk/info/200202/performance_and_spending/1079/payments_over_500,01-Nov-2022,Housing & Communities,JAY SECURITY AND EVENTS LIMITED,Neighbourhoods,1271.00,Security,2223P08_CR00484,162111
Sandwell Metropolitan Borough Council,http://www.sandwell.gov.uk/info/200202/performance_and_spending/1079/payments_over_500,01-Nov-2022,Housing & Communities,KEYCRAFT,Neighbourhoods,3288.67,Materials & Consumables,2223P08_CR00485,01064066
Sandwell Metropolitan Borough Council,http://www.sandwell.gov.uk/info/200202/performance_and_spending/1079/payments_over_500,01-Nov-2022,Housing & Communities,KEYCRAFT,Neighbourhoods,785.28,Materials & Consumables,2223P08_CR00486,01064066
Sandwell Metropolitan Borough Council,http://www.sandwell.gov.uk/info/200202/performance_and_spending/1079/payments_over_500,22-Nov-2022,Housing & Communities,LANGLEY FESTIVAL GROUP,Neighbourhoods,1560.00,Grant Payments,2223P08_CR00487,164740
Sandwell Metropolitan Borough Council,http://www.sandwell.gov.uk/info/200202/performance_and_spending/1079/payments_over_500,10-Nov-2022,Housing & Communities,LAVAT CONSULTING LIMITED T/A PSTAX,Housing & Communities,3350.00,Externally Purchased Professional Services ,2223P08_CR00488,127781
Sandwell Metropolitan Borough Council,http://www.sandwell.gov.uk/info/200202/performance_and_spending/1079/payments_over_500,01-Nov-2022,Housing & Communities,LOCKWOOD SALADS LTD,Neighbourhoods,3900.00,Catering Provisions,2223P08_CR00489,155145
Sandwell Metropolitan Borough Council,http://www.sandwell.gov.uk/info/200202/performance_and_spending/1079/payments_over_500,01-Nov-2022,Housing & Communities,MANOR ABBEY FOODS LTD,Neighbourhoods,601.21,Catering Provisions,2223P08_CR00490,63063
Sandwell Metropolitan Borough Council,http://www.sandwell.gov.uk/info/200202/performance_and_spending/1079/payments_over_500,01-Nov-2022,Housing & Communities,MANOR ABBEY FOODS LTD,Neighbourhoods,1100.41,Catering Provisions,2223P08_CR00491,63063
Sandwell Metropolitan Borough Council,http://www.sandwell.gov.uk/info/200202/performance_and_spending/1079/payments_over_500,03-Nov-2022,Housing & Communities,MANOR ABBEY FOODS LTD,Neighbourhoods,1175.07,Catering Provisions,2223P08_CR00492,63063
Sandwell Metropolitan Borough Council,http://www.sandwell.gov.uk/info/200202/performance_and_spending/1079/payments_over_500,01-Nov-2022,Housing & Communities,MANOR ABBEY FOODS LTD,Neighbourhoods,654.35,Catering Provisions,2223P08_CR00493,63063
Sandwell Metropolitan Borough Council,http://www.sandwell.gov.uk/info/200202/performance_and_spending/1079/payments_over_500,01-Nov-2022,Housing & Communities,MANOR ABBEY FOODS LTD,Neighbourhoods,1497.28,Catering Provisions,2223P08_CR00494,63063
Sandwell Metropolitan Borough Council,http://www.sandwell.gov.uk/info/200202/performance_and_spending/1079/payments_over_500,01-Nov-2022,Housing & Communities,MEDIA PRINT GROUP LTD,Neighbourhoods,567.00,"Printing, Stationery & General Office Expenses",2223P08_CR00495,01753751
Sandwell Metropolitan Borough Council,http://www.sandwell.gov.uk/info/200202/performance_and_spending/1079/payments_over_500,01-Nov-2022,Housing & Communities,MIDLAND CHILLED FOODS LIMITED,Neighbourhoods,532.88,Materials & Consumables,2223P08_CR00496,106924
Sandwell Metropolitan Borough Council,http://www.sandwell.gov.uk/info/200202/performance_and_spending/1079/payments_over_500,01-Nov-2022,Housing & Communities,MIDLAND CHILLED FOODS LIMITED,Neighbourhoods,938.62,Materials & Consumables,2223P08_CR00497,106924
Sandwell Metropolitan Borough Council,http://www.sandwell.gov.uk/info/200202/performance_and_spending/1079/payments_over_500,01-Nov-2022,Housing & Communities,MIDLAND CHILLED FOODS LIMITED,Neighbourhoods,843.99,Materials & Consumables,2223P08_CR00498,106924
Sandwell Metropolitan Borough Council,http://www.sandwell.gov.uk/info/200202/performance_and_spending/1079/payments_over_500,01-Nov-2022,Housing & Communities,MIDLAND CHILLED FOODS LIMITED,Neighbourhoods,559.36,Materials & Consumables,2223P08_CR00499,106924
Sandwell Metropolitan Borough Council,http://www.sandwell.gov.uk/info/200202/performance_and_spending/1079/payments_over_500,01-Nov-2022,Housing & Communities,MIDLAND CHILLED FOODS LIMITED,Neighbourhoods,809.73,Materials & Consumables,2223P08_CR00500,106924
Sandwell Metropolitan Borough Council,http://www.sandwell.gov.uk/info/200202/performance_and_spending/1079/payments_over_500,01-Nov-2022,Housing & Communities,MIDLAND CHILLED FOODS LIMITED,Neighbourhoods,784.53,Materials & Consumables,2223P08_CR00501,106924
Sandwell Metropolitan Borough Council,http://www.sandwell.gov.uk/info/200202/performance_and_spending/1079/payments_over_500,01-Nov-2022,Housing & Communities,MIDLAND CHILLED FOODS LIMITED,Neighbourhoods,878.60,Materials & Consumables,2223P08_CR00502,106924
Sandwell Metropolitan Borough Council,http://www.sandwell.gov.uk/info/200202/performance_and_spending/1079/payments_over_500,01-Nov-2022,Housing & Communities,MIDLAND FORESTRY LIMITED,Neighbourhoods,888.00,Externally Purchased Professional Services ,2223P08_CR00503,45812
Sandwell Metropolitan Borough Council,http://www.sandwell.gov.uk/info/200202/performance_and_spending/1079/payments_over_500,08-Nov-2022,Housing & Communities,MIDLAND FORESTRY LIMITED,Neighbourhoods,796.00,Externally Purchased Professional Services ,2223P08_CR00504,45812
Sandwell Metropolitan Borough Council,http://www.sandwell.gov.uk/info/200202/performance_and_spending/1079/payments_over_500,02-Nov-2022,Housing & Communities,MIDLAND FORESTRY LIMITED,Neighbourhoods,964.00,Externally Purchased Professional Services ,2223P08_CR00505,45812
Sandwell Metropolitan Borough Council,http://www.sandwell.gov.uk/info/200202/performance_and_spending/1079/payments_over_500,15-Nov-2022,Housing & Communities,MIDLAND FORESTRY LIMITED,Neighbourhoods,592.00,Externally Purchased Professional Services ,2223P08_CR00506,45812
Sandwell Metropolitan Borough Council,http://www.sandwell.gov.uk/info/200202/performance_and_spending/1079/payments_over_500,15-Nov-2022,Housing & Communities,MIDLAND FORESTRY LIMITED,Neighbourhoods,6600.00,Externally Purchased Professional Services ,2223P08_CR00507,45812
Sandwell Metropolitan Borough Council,http://www.sandwell.gov.uk/info/200202/performance_and_spending/1079/payments_over_500,14-Nov-2022,Housing & Communities,MIDLAND FORESTRY LIMITED,Neighbourhoods,612.00,Externally Purchased Professional Services ,2223P08_CR00508,45812
Sandwell Metropolitan Borough Council,http://www.sandwell.gov.uk/info/200202/performance_and_spending/1079/payments_over_500,14-Nov-2022,Housing & Communities,MIDLAND FORESTRY LIMITED,Neighbourhoods,660.00,Externally Purchased Professional Services ,2223P08_CR00509,45812
Sandwell Metropolitan Borough Council,http://www.sandwell.gov.uk/info/200202/performance_and_spending/1079/payments_over_500,01-Nov-2022,Housing & Communities,MIDLAND FORESTRY LIMITED,Neighbourhoods,1800.00,Externally Purchased Professional Services ,2223P08_CR00510,45812
Sandwell Metropolitan Borough Council,http://www.sandwell.gov.uk/info/200202/performance_and_spending/1079/payments_over_500,01-Nov-2022,Housing & Communities,MIDLAND FORESTRY LIMITED,Neighbourhoods,5950.00,Externally Purchased Professional Services ,2223P08_CR00511,45812
Sandwell Metropolitan Borough Council,http://www.sandwell.gov.uk/info/200202/performance_and_spending/1079/payments_over_500,07-Nov-2022,Housing & Communities,MIDLAND FORESTRY LIMITED,Neighbourhoods,1425.00,Externally Purchased Professional Services ,2223P08_CR00512,45812
Sandwell Metropolitan Borough Council,http://www.sandwell.gov.uk/info/200202/performance_and_spending/1079/payments_over_500,22-Nov-2022,Housing & Communities,MIDLAND FORESTRY LIMITED,Neighbourhoods,2425.00,Externally Purchased Professional Services ,2223P08_CR00513,45812
Sandwell Metropolitan Borough Council,http://www.sandwell.gov.uk/info/200202/performance_and_spending/1079/payments_over_500,23-Nov-2022,Housing & Communities,MYCOMMS LTD,Neighbourhoods,8500.00,Civic Events,2223P08_CR00514,155188
Sandwell Metropolitan Borough Council,http://www.sandwell.gov.uk/info/200202/performance_and_spending/1079/payments_over_500,01-Nov-2022,Housing & Communities,OVERDRIVE GLOBAL LTD,Neighbourhoods,7464.00,Materials & Consumables,2223P08_CR00515,153017
Sandwell Metropolitan Borough Council,http://www.sandwell.gov.uk/info/200202/performance_and_spending/1079/payments_over_500,01-Nov-2022,Housing & Communities,PENNON WATER SERVICES T/A SOURCE FOR BUSINESS,Neighbourhoods,524.40,Water Services,2223P08_CR00516,131726
Sandwell Metropolitan Borough Council,http://www.sandwell.gov.uk/info/200202/performance_and_spending/1079/payments_over_500,11-Nov-2022,Housing & Communities,PENNON WATER SERVICES T/A SOURCE FOR BUSINESS,Neighbourhoods,610.54,Water Services,2223P08_CR00517,131726
Sandwell Metropolitan Borough Council,http://www.sandwell.gov.uk/info/200202/performance_and_spending/1079/payments_over_500,28-Nov-2022,Housing & Communities,PENNON WATER SERVICES T/A SOURCE FOR BUSINESS,Neighbourhoods,6654.22,Water Services,2223P08_CR00518,131726
Sandwell Metropolitan Borough Council,http://www.sandwell.gov.uk/info/200202/performance_and_spending/1079/payments_over_500,28-Nov-2022,Housing & Communities,PENNON WATER SERVICES T/A SOURCE FOR BUSINESS,Neighbourhoods,817.61,Water Services,2223P08_CR00519,131726
Sandwell Metropolitan Borough Council,http://www.sandwell.gov.uk/info/200202/performance_and_spending/1079/payments_over_500,22-Nov-2022,Housing & Communities,PITCHMARK LTD,Neighbourhoods,603.00,Materials & Consumables,2223P08_CR00520,120374
Sandwell Metropolitan Borough Council,http://www.sandwell.gov.uk/info/200202/performance_and_spending/1079/payments_over_500,09-Nov-2022,Housing & Communities,PLACES FOR PEOPLE LEISURE MANAGEMENT LTD,Neighbourhoods,22505.50,SH Payments,2223P08_CR00521,118956
Sandwell Metropolitan Borough Council,http://www.sandwell.gov.uk/info/200202/performance_and_spending/1079/payments_over_500,01-Nov-2022,Housing & Communities,POLYGON DAMAGE CONTROL LTD,Neighbourhoods,2472.31,Building Maintenance & Improvements,2223P08_CR00522,13903
Sandwell Metropolitan Borough Council,http://www.sandwell.gov.uk/info/200202/performance_and_spending/1079/payments_over_500,07-Nov-2022,Housing & Communities,PRINT DIRECT LIMITED,Neighbourhoods,1755.60,"Printing, Stationery & General Office Expenses",2223P08_CR00523,118575
Sandwell Metropolitan Borough Council,http://www.sandwell.gov.uk/info/200202/performance_and_spending/1079/payments_over_500,01-Nov-2022,Housing & Communities,PRINTED BANNERS & SIGNS LTD,Neighbourhoods,1841.88,Advertising & Publicity,2223P08_CR00524,90827
Sandwell Metropolitan Borough Council,http://www.sandwell.gov.uk/info/200202/performance_and_spending/1079/payments_over_500,01-Nov-2022,Housing & Communities,PROFILE SECURITY SERVICES LTD,Neighbourhoods,10581.85,Security,2223P08_CR00525,131253
Sandwell Metropolitan Borough Council,http://www.sandwell.gov.uk/info/200202/performance_and_spending/1079/payments_over_500,01-Nov-2022,Housing & Communities,PROFILE SECURITY SERVICES LTD,Neighbourhoods,10118.40,Security,2223P08_CR00526,131253
Sandwell Metropolitan Borough Council,http://www.sandwell.gov.uk/info/200202/performance_and_spending/1079/payments_over_500,01-Nov-2022,Housing & Communities,PROFILE SECURITY SERVICES LTD,Neighbourhoods,10118.40,Security,2223P08_CR00527,131253
Sandwell Metropolitan Borough Council,http://www.sandwell.gov.uk/info/200202/performance_and_spending/1079/payments_over_500,14-Nov-2022,Housing & Communities,PROFILE SECURITY SERVICES LTD,Neighbourhoods,10118.40,Security,2223P08_CR00528,131253
Sandwell Metropolitan Borough Council,http://www.sandwell.gov.uk/info/200202/performance_and_spending/1079/payments_over_500,14-Nov-2022,Housing & Communities,PROFILE SECURITY SERVICES LTD,Neighbourhoods,10118.40,Security,2223P08_CR00529,131253
Sandwell Metropolitan Borough Council,http://www.sandwell.gov.uk/info/200202/performance_and_spending/1079/payments_over_500,14-Nov-2022,Housing & Communities,PROFILE SECURITY SERVICES LTD,Neighbourhoods,10444.80,Security,2223P08_CR00530,131253
Sandwell Metropolitan Borough Council,http://www.sandwell.gov.uk/info/200202/performance_and_spending/1079/payments_over_500,14-Nov-2022,Housing & Communities,PROFILE SECURITY SERVICES LTD,Neighbourhoods,10444.80,Security,2223P08_CR00531,131253
Sandwell Metropolitan Borough Council,http://www.sandwell.gov.uk/info/200202/performance_and_spending/1079/payments_over_500,15-Nov-2022,Housing & Communities,PROMARCO PROMOTIONS LTD,Neighbourhoods,2000.00,Civic Events,2223P08_CR00532,01577242
Sandwell Metropolitan Borough Council,http://www.sandwell.gov.uk/info/200202/performance_and_spending/1079/payments_over_500,01-Nov-2022,Housing & Communities,PROMARCO PROMOTIONS LTD,Neighbourhoods,15000.00,Civic Events,2223P08_CR00533,01577242
Sandwell Metropolitan Borough Council,http://www.sandwell.gov.uk/info/200202/performance_and_spending/1079/payments_over_500,07-Nov-2022,Housing & Communities,PROMARCO PROMOTIONS LTD,Neighbourhoods,600.00,Equipment & Furniture ,2223P08_CR00534,01577242
Sandwell Metropolitan Borough Council,http://www.sandwell.gov.uk/info/200202/performance_and_spending/1079/payments_over_500,22-Nov-2022,Housing & Communities,PROMARCO PROMOTIONS LTD,Neighbourhoods,1595.00,Externally Purchased Professional Services ,2223P08_CR00535,01577242
Sandwell Metropolitan Borough Council,http://www.sandwell.gov.uk/info/200202/performance_and_spending/1079/payments_over_500,01-Nov-2022,Housing & Communities,PROMINENT T LS,Neighbourhoods,13500.00,Advertising & Publicity,2223P08_CR00536,164324
Sandwell Metropolitan Borough Council,http://www.sandwell.gov.uk/info/200202/performance_and_spending/1079/payments_over_500,27-Oct-2022,Housing & Communities,PROSTAR REAL ESTATE AGENCY,Neighbourhoods,1400.00,Tenants Expenses,2223P08_CR00537,164546
Sandwell Metropolitan Borough Council,http://www.sandwell.gov.uk/info/200202/performance_and_spending/1079/payments_over_500,01-Nov-2022,Housing & Communities,RCS PLANTS LTD,Neighbourhoods,7521.90,Equipment & Furniture ,2223P08_CR00538,130748
Sandwell Metropolitan Borough Council,http://www.sandwell.gov.uk/info/200202/performance_and_spending/1079/payments_over_500,01-Nov-2022,Housing & Communities,RED MOON CONCEPTS LTD,Neighbourhoods,1172.75,Catering Equipment,2223P08_CR00539,162312
Sandwell Metropolitan Borough Council,http://www.sandwell.gov.uk/info/200202/performance_and_spending/1079/payments_over_500,01-Nov-2022,Housing & Communities,RENAISSANCE CREATIVE DESIGN & PRINT LTD,Neighbourhoods,1050.00,"Printing, Stationery & General Office Expenses",2223P08_CR00540,97376
Sandwell Metropolitan Borough Council,http://www.sandwell.gov.uk/info/200202/performance_and_spending/1079/payments_over_500,01-Nov-2022,Housing & Communities,RENAISSANCE CREATIVE DESIGN & PRINT LTD,Neighbourhoods,845.00,"Printing, Stationery & General Office Expenses",2223P08_CR00541,97376
Sandwell Metropolitan Borough Council,http://www.sandwell.gov.uk/info/200202/performance_and_spending/1079/payments_over_500,01-Nov-2022,Housing & Communities,RIGHT TO CARE LTD.,Neighbourhoods,1264.29,Rents,2223P08_CR00542,133426
Sandwell Metropolitan Borough Council,http://www.sandwell.gov.uk/info/200202/performance_and_spending/1079/payments_over_500,01-Nov-2022,Housing & Communities,RIGHT TO CARE LTD.,Neighbourhoods,1306.43,Rents,2223P08_CR00543,133426
Sandwell Metropolitan Borough Council,http://www.sandwell.gov.uk/info/200202/performance_and_spending/1079/payments_over_500,01-Nov-2022,Housing & Communities,RIGHT TO CARE LTD.,Neighbourhoods,3050.00,Rents,2223P08_CR00544,133426
Sandwell Metropolitan Borough Council,http://www.sandwell.gov.uk/info/200202/performance_and_spending/1079/payments_over_500,01-Nov-2022,Housing & Communities,RIGHT TO CARE LTD.,Neighbourhoods,1306.43,Rents,2223P08_CR00545,133426
Sandwell Metropolitan Borough Council,http://www.sandwell.gov.uk/info/200202/performance_and_spending/1079/payments_over_500,01-Nov-2022,Housing & Communities,RIGHT TO CARE LTD.,Neighbourhoods,1217.86,Rents,2223P08_CR00546,133426
Sandwell Metropolitan Borough Council,http://www.sandwell.gov.uk/info/200202/performance_and_spending/1079/payments_over_500,07-Nov-2022,Housing & Communities,RTC MEDICAL SOLUTIONS LTD,Neighbourhoods,1500.00,Equipment & Furniture ,2223P08_CR00547,163261
Sandwell Metropolitan Borough Council,http://www.sandwell.gov.uk/info/200202/performance_and_spending/1079/payments_over_500,07-Nov-2022,Housing & Communities,RTC MEDICAL SOLUTIONS LTD,Neighbourhoods,2070.00,Equipment & Furniture ,2223P08_CR00548,163261
Sandwell Metropolitan Borough Council,http://www.sandwell.gov.uk/info/200202/performance_and_spending/1079/payments_over_500,01-Nov-2022,Housing & Communities,RTC MEDICAL SOLUTIONS LTD,Neighbourhoods,880.00,Externally Purchased Professional Services ,2223P08_CR00549,163261
Sandwell Metropolitan Borough Council,http://www.sandwell.gov.uk/info/200202/performance_and_spending/1079/payments_over_500,01-Nov-2022,Housing & Communities,RTC MEDICAL SOLUTIONS LTD,Neighbourhoods,760.00,Externally Purchased Professional Services ,2223P08_CR00550,163261
Sandwell Metropolitan Borough Council,http://www.sandwell.gov.uk/info/200202/performance_and_spending/1079/payments_over_500,01-Nov-2022,Housing & Communities,RTC MEDICAL SOLUTIONS LTD,Neighbourhoods,1760.00,Externally Purchased Professional Services ,2223P08_CR00551,163261
Sandwell Metropolitan Borough Council,http://www.sandwell.gov.uk/info/200202/performance_and_spending/1079/payments_over_500,01-Nov-2022,Housing & Communities,SAFFRON HOTEL,Neighbourhoods,650.00,Rents,2223P08_CR00552,164316
Sandwell Metropolitan Borough Council,http://www.sandwell.gov.uk/info/200202/performance_and_spending/1079/payments_over_500,01-Nov-2022,Housing & Communities,SAFFRON HOTEL,Neighbourhoods,560.00,Rents,2223P08_CR00553,164316
Sandwell Metropolitan Borough Council,http://www.sandwell.gov.uk/info/200202/performance_and_spending/1079/payments_over_500,01-Nov-2022,Housing & Communities,SAFFRON HOTEL,Neighbourhoods,560.00,Rents,2223P08_CR00554,164316
Sandwell Metropolitan Borough Council,http://www.sandwell.gov.uk/info/200202/performance_and_spending/1079/payments_over_500,08-Nov-2022,Housing & Communities,SAFFRON HOTEL,Neighbourhoods,910.00,Rents,2223P08_CR00555,164316
Sandwell Metropolitan Borough Council,http://www.sandwell.gov.uk/info/200202/performance_and_spending/1079/payments_over_500,08-Nov-2022,Housing & Communities,SAFFRON HOTEL,Neighbourhoods,560.00,Rents,2223P08_CR00556,164316
Sandwell Metropolitan Borough Council,http://www.sandwell.gov.uk/info/200202/performance_and_spending/1079/payments_over_500,08-Nov-2022,Housing & Communities,SAFFRON HOTEL,Neighbourhoods,560.00,Rents,2223P08_CR00557,164316
Sandwell Metropolitan Borough Council,http://www.sandwell.gov.uk/info/200202/performance_and_spending/1079/payments_over_500,03-Nov-2022,Housing & Communities,SAFFRON HOTEL,Neighbourhoods,910.00,Rents,2223P08_CR00558,164316
Sandwell Metropolitan Borough Council,http://www.sandwell.gov.uk/info/200202/performance_and_spending/1079/payments_over_500,01-Nov-2022,Housing & Communities,SAFFRON HOTEL,Neighbourhoods,560.00,Rents,2223P08_CR00559,164316
Sandwell Metropolitan Borough Council,http://www.sandwell.gov.uk/info/200202/performance_and_spending/1079/payments_over_500,01-Nov-2022,Housing & Communities,SAFFRON HOTEL,Neighbourhoods,910.00,Rents,2223P08_CR00560,164316
Sandwell Metropolitan Borough Council,http://www.sandwell.gov.uk/info/200202/performance_and_spending/1079/payments_over_500,01-Nov-2022,Housing & Communities,SAFFRON HOTEL,Neighbourhoods,560.00,Rents,2223P08_CR00561,164316
Sandwell Metropolitan Borough Council,http://www.sandwell.gov.uk/info/200202/performance_and_spending/1079/payments_over_500,01-Nov-2022,Housing & Communities,SAFFRON HOTEL,Neighbourhoods,560.00,Rents,2223P08_CR00562,164316
Sandwell Metropolitan Borough Council,http://www.sandwell.gov.uk/info/200202/performance_and_spending/1079/payments_over_500,17-Nov-2022,Housing & Communities,SAFFRON HOTEL,Neighbourhoods,560.00,Rents,2223P08_CR00563,164316
Sandwell Metropolitan Borough Council,http://www.sandwell.gov.uk/info/200202/performance_and_spending/1079/payments_over_500,17-Nov-2022,Housing & Communities,SAFFRON HOTEL,Neighbourhoods,560.00,Rents,2223P08_CR00564,164316
Sandwell Metropolitan Borough Council,http://www.sandwell.gov.uk/info/200202/performance_and_spending/1079/payments_over_500,01-Nov-2022,Housing & Communities,SAFFRON HOTEL,Neighbourhoods,910.00,Rents,2223P08_CR00565,164316
Sandwell Metropolitan Borough Council,http://www.sandwell.gov.uk/info/200202/performance_and_spending/1079/payments_over_500,01-Nov-2022,Housing & Communities,SAFFRON HOTEL,Neighbourhoods,560.00,Rents,2223P08_CR00566,164316
Sandwell Metropolitan Borough Council,http://www.sandwell.gov.uk/info/200202/performance_and_spending/1079/payments_over_500,01-Nov-2022,Housing & Communities,SAFFRON HOTEL,Neighbourhoods,560.00,Rents,2223P08_CR00567,164316
Sandwell Metropolitan Borough Council,http://www.sandwell.gov.uk/info/200202/performance_and_spending/1079/payments_over_500,01-Nov-2022,Housing & Communities,SANDWELL FUNDCO 3 LTD,Neighbourhoods,116009.24,SH Payments,2223P08_CR00568,113986
Sandwell Metropolitan Borough Council,http://www.sandwell.gov.uk/info/200202/performance_and_spending/1079/payments_over_500,14-Nov-2022,Housing & Communities,SANDWELL FUNDCO 3 LTD,Neighbourhoods,4292.16,SH Payments,2223P08_CR00569,113986
Sandwell Metropolitan Borough Council,http://www.sandwell.gov.uk/info/200202/performance_and_spending/1079/payments_over_500,14-Nov-2022,Housing & Communities,SANDWELL FUNDCO 3 LTD,Neighbourhoods,626.41,SH Payments,2223P08_CR00570,113986
Sandwell Metropolitan Borough Council,http://www.sandwell.gov.uk/info/200202/performance_and_spending/1079/payments_over_500,14-Nov-2022,Housing & Communities,SANDWELL FUNDCO 3 LTD,Neighbourhoods,6602.71,Water Services,2223P08_CR00571,113986
Sandwell Metropolitan Borough Council,http://www.sandwell.gov.uk/info/200202/performance_and_spending/1079/payments_over_500,01-Nov-2022,Housing & Communities,SAVILLS UK LTD,Neighbourhoods,718.18,Water Services,2223P08_CR00572,122760
Sandwell Metropolitan Borough Council,http://www.sandwell.gov.uk/info/200202/performance_and_spending/1079/payments_over_500,02-Nov-2022,Housing & Communities,SELECT MUSIC GROUP LTD,Neighbourhoods,1050.00,Civic Events,2223P08_CR00573,164541
Sandwell Metropolitan Borough Council,http://www.sandwell.gov.uk/info/200202/performance_and_spending/1079/payments_over_500,01-Nov-2022,Housing & Communities,SERCO LIMITED,Neighbourhoods,1663542.12,Waste Disposal Charges,2223P08_CR00574,53771
Sandwell Metropolitan Borough Council,http://www.sandwell.gov.uk/info/200202/performance_and_spending/1079/payments_over_500,08-Nov-2022,Housing & Communities,SERCO LIMITED,Neighbourhoods,754982.64,Waste Disposal Charges,2223P08_CR00575,53771
Sandwell Metropolitan Borough Council,http://www.sandwell.gov.uk/info/200202/performance_and_spending/1079/payments_over_500,01-Nov-2022,Housing & Communities,SERCO LIMITED,Neighbourhoods,695702.04,Waste Disposal Charges,2223P08_CR00576,53771
Sandwell Metropolitan Borough Council,http://www.sandwell.gov.uk/info/200202/performance_and_spending/1079/payments_over_500,01-Nov-2022,Housing & Communities,SERCO LIMITED,Neighbourhoods,825.88,Waste Disposal Charges,2223P08_CR00577,53771
Sandwell Metropolitan Borough Council,http://www.sandwell.gov.uk/info/200202/performance_and_spending/1079/payments_over_500,01-Nov-2022,Housing & Communities,ST BASILS,Housing & Communities,144934.00,Deferred Charges/Grant Payments,2223P08_CR00578,33497
Sandwell Metropolitan Borough Council,http://www.sandwell.gov.uk/info/200202/performance_and_spending/1079/payments_over_500,28-Nov-2022,Housing & Communities,STOURBRIDGE PAVING COMPANY LIMITED,Neighbourhoods,1157.29,Building Maintenance & Improvements,2223P08_CR00579,77003641
Sandwell Metropolitan Borough Council,http://www.sandwell.gov.uk/info/200202/performance_and_spending/1079/payments_over_500,01-Nov-2022,Housing & Communities,STRATEGIC LEISURE LIMITED,Neighbourhoods,3240.00,Consultancy,2223P08_CR00580,106038
Sandwell Metropolitan Borough Council,http://www.sandwell.gov.uk/info/200202/performance_and_spending/1079/payments_over_500,01-Nov-2022,Housing & Communities,SUEZ RECYLING AND RECOVERY HOLDINGS UK LTD,Neighbourhoods,2643.53,Waste Disposal Charges,2223P08_CR00581,129939
Sandwell Metropolitan Borough Council,http://www.sandwell.gov.uk/info/200202/performance_and_spending/1079/payments_over_500,01-Nov-2022,Housing & Communities,SUEZ RECYLING AND RECOVERY HOLDINGS UK LTD,Neighbourhoods,1332.86,Waste Disposal Charges,2223P08_CR00582,129939
Sandwell Metropolitan Borough Council,http://www.sandwell.gov.uk/info/200202/performance_and_spending/1079/payments_over_500,01-Nov-2022,Housing & Communities,SUEZ RECYLING AND RECOVERY HOLDINGS UK LTD,Neighbourhoods,1933.77,Waste Disposal Charges,2223P08_CR00583,129939
Sandwell Metropolitan Borough Council,http://www.sandwell.gov.uk/info/200202/performance_and_spending/1079/payments_over_500,17-Nov-2022,Housing & Communities,SWEETPAN PROMOTIONS,Neighbourhoods,800.00,Civic Events,2223P08_CR00584,163855
Sandwell Metropolitan Borough Council,http://www.sandwell.gov.uk/info/200202/performance_and_spending/1079/payments_over_500,21-Nov-2022,Housing & Communities,TELETRAC NAVMAN (UK) LTD,Neighbourhoods,637.00,External Contract Hire,2223P08_CR00585,129341
Sandwell Metropolitan Borough Council,http://www.sandwell.gov.uk/info/200202/performance_and_spending/1079/payments_over_500,22-Nov-2022,Housing & Communities,TENNALS PEST CONTROL LTD,Neighbourhoods,3035.00,Pest Control,2223P08_CR00586,138145
Sandwell Metropolitan Borough Council,http://www.sandwell.gov.uk/info/200202/performance_and_spending/1079/payments_over_500,03-Nov-2022,Housing & Communities,TH WHITE LIMITED T/A PALFINGER LTD,Neighbourhoods,600.00,Equipment & Furniture ,2223P08_CR00587,01774713
Sandwell Metropolitan Borough Council,http://www.sandwell.gov.uk/info/200202/performance_and_spending/1079/payments_over_500,03-Nov-2022,Housing & Communities,TH WHITE LIMITED T/A PALFINGER LTD,Neighbourhoods,2825.00,Equipment & Furniture ,2223P08_CR00588,01774713
Sandwell Metropolitan Borough Council,http://www.sandwell.gov.uk/info/200202/performance_and_spending/1079/payments_over_500,01-Nov-2022,Housing & Communities,THE OYSTER PARTNERSHIP LTD,Neighbourhoods,6230.00,Agency Staff,2223P08_CR00589,148917
Sandwell Metropolitan Borough Council,http://www.sandwell.gov.uk/info/200202/performance_and_spending/1079/payments_over_500,22-Nov-2022,Housing & Communities,TIPTON COMMUNITY ASSOCIATION LTD,Neighbourhoods,4501.00,Grant Payments,2223P08_CR00590,4391
Sandwell Metropolitan Borough Council,http://www.sandwell.gov.uk/info/200202/performance_and_spending/1079/payments_over_500,21-Nov-2022,Housing & Communities,TONY RICHARDS MOBILITY,Neighbourhoods,783.00,Equipment & Furniture ,2223P08_CR00591,119141
Sandwell Metropolitan Borough Council,http://www.sandwell.gov.uk/info/200202/performance_and_spending/1079/payments_over_500,01-Nov-2022,Housing & Communities,TRH WALSALL LTD,Neighbourhoods,2800.56,Rents,2223P08_CR00592,85648
Sandwell Metropolitan Borough Council,http://www.sandwell.gov.uk/info/200202/performance_and_spending/1079/payments_over_500,03-Nov-2022,Housing & Communities,TRH WALSALL LTD,Neighbourhoods,700.14,Rents,2223P08_CR00593,85648
Sandwell Metropolitan Borough Council,http://www.sandwell.gov.uk/info/200202/performance_and_spending/1079/payments_over_500,01-Nov-2022,Housing & Communities,TRH WALSALL LTD,Neighbourhoods,2800.56,Rents,2223P08_CR00594,85648
Sandwell Metropolitan Borough Council,http://www.sandwell.gov.uk/info/200202/performance_and_spending/1079/payments_over_500,01-Nov-2022,Housing & Communities,TRH WALSALL LTD,Neighbourhoods,2800.56,Rents,2223P08_CR00595,85648
Sandwell Metropolitan Borough Council,http://www.sandwell.gov.uk/info/200202/performance_and_spending/1079/payments_over_500,01-Nov-2022,Housing & Communities,TRH WALSALL LTD,Neighbourhoods,933.52,Rents,2223P08_CR00596,85648
Sandwell Metropolitan Borough Council,http://www.sandwell.gov.uk/info/200202/performance_and_spending/1079/payments_over_500,01-Nov-2022,Housing & Communities,TRH WALSALL LTD,Neighbourhoods,700.14,Rents,2223P08_CR00597,85648
Sandwell Metropolitan Borough Council,http://www.sandwell.gov.uk/info/200202/performance_and_spending/1079/payments_over_500,01-Nov-2022,Housing & Communities,TRH WALSALL LTD,Neighbourhoods,1283.52,Rents,2223P08_CR00598,85648
Sandwell Metropolitan Borough Council,http://www.sandwell.gov.uk/info/200202/performance_and_spending/1079/payments_over_500,01-Nov-2022,Housing & Communities,TRH WALSALL LTD,Neighbourhoods,700.14,Rents,2223P08_CR00599,85648
Sandwell Metropolitan Borough Council,http://www.sandwell.gov.uk/info/200202/performance_and_spending/1079/payments_over_500,01-Nov-2022,Housing & Communities,TRH WALSALL LTD,Neighbourhoods,779.28,Rents,2223P08_CR00600,85648
Sandwell Metropolitan Borough Council,http://www.sandwell.gov.uk/info/200202/performance_and_spending/1079/payments_over_500,01-Nov-2022,Housing & Communities,TRH WALSALL LTD,Neighbourhoods,566.78,Rents,2223P08_CR00601,85648
Sandwell Metropolitan Borough Council,http://www.sandwell.gov.uk/info/200202/performance_and_spending/1079/payments_over_500,01-Nov-2022,Housing & Communities,TRH WALSALL LTD,Neighbourhoods,933.52,Rents,2223P08_CR00602,85648
Sandwell Metropolitan Borough Council,http://www.sandwell.gov.uk/info/200202/performance_and_spending/1079/payments_over_500,01-Nov-2022,Housing & Communities,TRH WALSALL LTD,Neighbourhoods,700.14,Rents,2223P08_CR00603,85648
Sandwell Metropolitan Borough Council,http://www.sandwell.gov.uk/info/200202/performance_and_spending/1079/payments_over_500,01-Nov-2022,Housing & Communities,TRH WALSALL LTD,Neighbourhoods,700.14,Rents,2223P08_CR00604,85648
Sandwell Metropolitan Borough Council,http://www.sandwell.gov.uk/info/200202/performance_and_spending/1079/payments_over_500,01-Nov-2022,Housing & Communities,TRH WALSALL LTD,Neighbourhoods,700.14,Rents,2223P08_CR00605,85648
Sandwell Metropolitan Borough Council,http://www.sandwell.gov.uk/info/200202/performance_and_spending/1079/payments_over_500,01-Nov-2022,Housing & Communities,TRH WALSALL LTD,Neighbourhoods,700.14,Rents,2223P08_CR00606,85648
Sandwell Metropolitan Borough Council,http://www.sandwell.gov.uk/info/200202/performance_and_spending/1079/payments_over_500,01-Nov-2022,Housing & Communities,TRH WALSALL LTD,Neighbourhoods,700.14,Rents,2223P08_CR00607,85648
Sandwell Metropolitan Borough Council,http://www.sandwell.gov.uk/info/200202/performance_and_spending/1079/payments_over_500,01-Nov-2022,Housing & Communities,TRH WALSALL LTD,Neighbourhoods,700.14,Rents,2223P08_CR00608,85648
Sandwell Metropolitan Borough Council,http://www.sandwell.gov.uk/info/200202/performance_and_spending/1079/payments_over_500,01-Nov-2022,Housing & Communities,TRH WALSALL LTD,Neighbourhoods,700.14,Rents,2223P08_CR00609,85648
Sandwell Metropolitan Borough Council,http://www.sandwell.gov.uk/info/200202/performance_and_spending/1079/payments_over_500,01-Nov-2022,Housing & Communities,VENDAID LTD,Neighbourhoods,590.20,Catering Provisions,2223P08_CR00610,01045695
Sandwell Metropolitan Borough Council,http://www.sandwell.gov.uk/info/200202/performance_and_spending/1079/payments_over_500,01-Nov-2022,Housing & Communities,WATER PLUS SELECT LIMITED,Neighbourhoods,782.52,Water Services,2223P08_CR00611,129644
Sandwell Metropolitan Borough Council,http://www.sandwell.gov.uk/info/200202/performance_and_spending/1079/payments_over_500,01-Nov-2022,Housing & Communities,WATES CONSTRUCTION LTD    ,Housing & Communities,263986.56,"CIP - New Construction,Conversion, Enhancement & Reno",2223P08_CR00612,77000882
Sandwell Metropolitan Borough Council,http://www.sandwell.gov.uk/info/200202/performance_and_spending/1079/payments_over_500,17-Nov-2022,Housing & Communities,WATES CONSTRUCTION LTD    ,Housing & Communities,240187.64,"CIP - New Construction,Conversion, Enhancement & Reno",2223P08_CR00613,77000882
Sandwell Metropolitan Borough Council,http://www.sandwell.gov.uk/info/200202/performance_and_spending/1079/payments_over_500,01-Nov-2022,Housing & Communities,WELL INFORMED LIMITED,Neighbourhoods,986.00,Materials & Consumables,2223P08_CR00614,103139
Sandwell Metropolitan Borough Council,http://www.sandwell.gov.uk/info/200202/performance_and_spending/1079/payments_over_500,01-Nov-2022,Housing & Communities,WERNICK EVENT HIRE LTD,Neighbourhoods,3976.00,Equipment & Furniture ,2223P08_CR00615,60820
Sandwell Metropolitan Borough Council,http://www.sandwell.gov.uk/info/200202/performance_and_spending/1079/payments_over_500,03-Nov-2022,Housing & Communities,WEST MIDLANDS MARQUEES,Neighbourhoods,1650.00,Equipment & Furniture ,2223P08_CR00616,134805
Sandwell Metropolitan Borough Council,http://www.sandwell.gov.uk/info/200202/performance_and_spending/1079/payments_over_500,16-Nov-2022,Housing & Communities,WOLVERHAMPTON CITY COUNCIL,Neighbourhoods,2212.60,"Printing, Stationery & General Office Expenses",2223P08_CR00617,01374555
Sandwell Metropolitan Borough Council,http://www.sandwell.gov.uk/info/200202/performance_and_spending/1079/payments_over_500,14-Nov-2022,Housing & Communities,WYNNSTAY (AGRICULTURAL SUPPLIES) LIMITED,Neighbourhoods,1491.57,Externally Purchased Professional Services ,2223P08_CR00618,121165
Sandwell Metropolitan Borough Council,http://www.sandwell.gov.uk/info/200202/performance_and_spending/1079/payments_over_500,14-Nov-2022,Housing & Communities,WYNNSTAY (AGRICULTURAL SUPPLIES) LIMITED,Neighbourhoods,1425.82,Externally Purchased Professional Services ,2223P08_CR00619,121165
Sandwell Metropolitan Borough Council,http://www.sandwell.gov.uk/info/200202/performance_and_spending/1079/payments_over_500,14-Nov-2022,Housing & Communities,WYNNSTAY (AGRICULTURAL SUPPLIES) LIMITED,Neighbourhoods,1440.43,Externally Purchased Professional Services ,2223P08_CR00620,121165
Sandwell Metropolitan Borough Council,http://www.sandwell.gov.uk/info/200202/performance_and_spending/1079/payments_over_500,14-Nov-2022,Housing & Communities,REDACTED PERSONAL DATA T/A IAN LIVIE AND HIS WORLD WIDE DISCO,Neighbourhoods,620.00,Civic Events,2223P08_CR00621,REDACTED PERSONAL DATA
Sandwell Metropolitan Borough Council,http://www.sandwell.gov.uk/info/200202/performance_and_spending/1079/payments_over_500,15-Nov-2022,Housing & Communities,POST OFFICE COUNTERS,Neighbourhoods,17995.00,Licences & Test Fees,2223P08_CR00622,102580
Sandwell Metropolitan Borough Council,http://www.sandwell.gov.uk/info/200202/performance_and_spending/1079/payments_over_500,01-Nov-2022,Housing & Communities,JOEY WALTER,Neighbourhoods,660.00,Civic Events,2223P08_CR00623,163644
Sandwell Metropolitan Borough Council,http://www.sandwell.gov.uk/info/200202/performance_and_spending/1079/payments_over_500,01-Nov-2022,Housing & Communities,RUTH PORTER,Neighbourhoods,700.00,Civic Events,2223P08_CR00624,163710
Sandwell Metropolitan Borough Council,http://www.sandwell.gov.uk/info/200202/performance_and_spending/1079/payments_over_500,01-Nov-2022,Housing & Communities,WAFER HADLEY,Neighbourhoods,2375.00,Consultancy,2223P08_CR00625,136196
Sandwell Metropolitan Borough Council,http://www.sandwell.gov.uk/info/200202/performance_and_spending/1079/payments_over_500,01-Nov-2022,Housing & Communities,REDACTED PERSONAL DATA,Neighbourhoods,800.00,Rents,2223P08_CR00626,REDACTED PERSONAL DATA
Sandwell Metropolitan Borough Council,http://www.sandwell.gov.uk/info/200202/performance_and_spending/1079/payments_over_500,01-Nov-2022,Housing & Communities,REDACTED PERSONAL DATA,Neighbourhoods,1000.00,Rents,2223P08_CR00627,REDACTED PERSONAL DATA
Sandwell Metropolitan Borough Council,http://www.sandwell.gov.uk/info/200202/performance_and_spending/1079/payments_over_500,16-Nov-2022,Housing & Communities,REDACTED PERSONAL DATA,Neighbourhoods,895.12,Equipment & Furniture ,2223P08_CR00628,REDACTED PERSONAL DATA
Sandwell Metropolitan Borough Council,http://www.sandwell.gov.uk/info/200202/performance_and_spending/1079/payments_over_500,28-Nov-2022,Housing & Communities,A E HUDSON,Neighbourhoods,500.00,Rents,2223P08_CR00629,107342
Sandwell Metropolitan Borough Council,http://www.sandwell.gov.uk/info/200202/performance_and_spending/1079/payments_over_500,28-Nov-2022,Housing & Communities,A PRASHER,Neighbourhoods,500.00,Rents,2223P08_CR00630,112229
Sandwell Metropolitan Borough Council,http://www.sandwell.gov.uk/info/200202/performance_and_spending/1079/payments_over_500,28-Nov-2022,Housing & Communities,BALIJIT KAUR,Neighbourhoods,500.00,Rents,2223P08_CR00631,101860
Sandwell Metropolitan Borough Council,http://www.sandwell.gov.uk/info/200202/performance_and_spending/1079/payments_over_500,28-Nov-2022,Housing & Communities,BALWANT SINGH,Neighbourhoods,500.00,Rents,2223P08_CR00632,84433
Sandwell Metropolitan Borough Council,http://www.sandwell.gov.uk/info/200202/performance_and_spending/1079/payments_over_500,28-Nov-2022,Housing & Communities,C M REID,Neighbourhoods,500.00,Rents,2223P08_CR00633,106129
Sandwell Metropolitan Borough Council,http://www.sandwell.gov.uk/info/200202/performance_and_spending/1079/payments_over_500,28-Nov-2022,Housing & Communities,CHRISTINE ANN CADDEN,Neighbourhoods,500.00,Rents,2223P08_CR00634,112728
Sandwell Metropolitan Borough Council,http://www.sandwell.gov.uk/info/200202/performance_and_spending/1079/payments_over_500,28-Nov-2022,Housing & Communities,ELEANOR MCGEE,Neighbourhoods,550.00,Rents,2223P08_CR00635,109162
Sandwell Metropolitan Borough Council,http://www.sandwell.gov.uk/info/200202/performance_and_spending/1079/payments_over_500,28-Nov-2022,Housing & Communities,J S GARCHA,Neighbourhoods,500.00,Rents,2223P08_CR00636,106491
Sandwell Metropolitan Borough Council,http://www.sandwell.gov.uk/info/200202/performance_and_spending/1079/payments_over_500,28-Nov-2022,Housing & Communities,K PAREKH,Neighbourhoods,550.00,Rents,2223P08_CR00637,43404
Sandwell Metropolitan Borough Council,http://www.sandwell.gov.uk/info/200202/performance_and_spending/1079/payments_over_500,28-Nov-2022,Housing & Communities,NARINDER SINGH,Neighbourhoods,500.00,Rents,2223P08_CR00638,114091
Sandwell Metropolitan Borough Council,http://www.sandwell.gov.uk/info/200202/performance_and_spending/1079/payments_over_500,28-Nov-2022,Housing & Communities,SAKANDAR SINGH,Neighbourhoods,500.00,Rents,2223P08_CR00639,117913
Sandwell Metropolitan Borough Council,http://www.sandwell.gov.uk/info/200202/performance_and_spending/1079/payments_over_500,24-Nov-2022,Housing & Communities,VICTIM SUPPORT,Neighbourhoods,7917.50,Grant Payments,2223P08_CR00640,63106
Sandwell Metropolitan Borough Council,http://www.sandwell.gov.uk/info/200202/performance_and_spending/1079/payments_over_500,01-Nov-2022,Housing & Communities,WARLEY COMMUNITY GYM,Neighbourhoods,4182.25,Grant Payments,2223P08_CR00641,01705613
Sandwell Metropolitan Borough Council,http://www.sandwell.gov.uk/info/200202/performance_and_spending/1079/payments_over_500,05-Nov-2022,Housing Revenue Account Capital,POWRED HEATING COMPONENTS LIMITED,Housing Revenue Account Capital,-676.62,Materials & Consumables,2223P08_CR00642,133978
Sandwell Metropolitan Borough Council,http://www.sandwell.gov.uk/info/200202/performance_and_spending/1079/payments_over_500,01-Nov-2022,Housing Revenue Account Capital,AXIS EUROPE PLC  ,Housing Revenue Account Capital,1300.00,Deferred Charges/Grant Payments,2223P08_CR00643,64946
Sandwell Metropolitan Borough Council,http://www.sandwell.gov.uk/info/200202/performance_and_spending/1079/payments_over_500,01-Nov-2022,Housing Revenue Account Capital,AXIS EUROPE PLC  ,Housing Revenue Account Capital,4829.05,Deferred Charges/Grant Payments,2223P08_CR00644,64946
Sandwell Metropolitan Borough Council,http://www.sandwell.gov.uk/info/200202/performance_and_spending/1079/payments_over_500,15-Nov-2022,Housing Revenue Account Capital,AXIS EUROPE PLC  ,Housing Revenue Account Capital,13230.12,Deferred Charges/Grant Payments,2223P08_CR00645,64946
Sandwell Metropolitan Borough Council,http://www.sandwell.gov.uk/info/200202/performance_and_spending/1079/payments_over_500,14-Nov-2022,Housing Revenue Account Capital,AXIS EUROPE PLC  ,Housing Revenue Account Capital,7100.76,Deferred Charges/Grant Payments,2223P08_CR00646,64946
Sandwell Metropolitan Borough Council,http://www.sandwell.gov.uk/info/200202/performance_and_spending/1079/payments_over_500,01-Nov-2022,Housing Revenue Account Capital,AXIS EUROPE PLC  ,Housing Revenue Account Capital,5649.24,Deferred Charges/Grant Payments,2223P08_CR00647,64946
Sandwell Metropolitan Borough Council,http://www.sandwell.gov.uk/info/200202/performance_and_spending/1079/payments_over_500,01-Nov-2022,Housing Revenue Account Capital,DOLPHIN LIFTS MIDLANDS LTD,Housing Revenue Account Capital,1344.60,Deferred Charges/Grant Payments,2223P08_CR00648,123852
Sandwell Metropolitan Borough Council,http://www.sandwell.gov.uk/info/200202/performance_and_spending/1079/payments_over_500,01-Nov-2022,Housing Revenue Account Capital,DOLPHIN LIFTS MIDLANDS LTD,Housing Revenue Account Capital,1434.81,Deferred Charges/Grant Payments,2223P08_CR00649,123852
Sandwell Metropolitan Borough Council,http://www.sandwell.gov.uk/info/200202/performance_and_spending/1079/payments_over_500,14-Nov-2022,Housing Revenue Account Capital,DOLPHIN LIFTS MIDLANDS LTD,Housing Revenue Account Capital,4919.32,Deferred Charges/Grant Payments,2223P08_CR00650,123852
Sandwell Metropolitan Borough Council,http://www.sandwell.gov.uk/info/200202/performance_and_spending/1079/payments_over_500,01-Nov-2022,Housing Revenue Account Capital,DOLPHIN LIFTS MIDLANDS LTD,Housing Revenue Account Capital,3116.00,Deferred Charges/Grant Payments,2223P08_CR00651,123852
Sandwell Metropolitan Borough Council,http://www.sandwell.gov.uk/info/200202/performance_and_spending/1079/payments_over_500,21-Nov-2022,Housing Revenue Account Capital,DOLPHIN LIFTS MIDLANDS LTD,Housing Revenue Account Capital,1335.00,Deferred Charges/Grant Payments,2223P08_CR00652,123852
Sandwell Metropolitan Borough Council,http://www.sandwell.gov.uk/info/200202/performance_and_spending/1079/payments_over_500,21-Nov-2022,Housing Revenue Account Capital,DOLPHIN LIFTS MIDLANDS LTD,Housing Revenue Account Capital,5615.00,Deferred Charges/Grant Payments,2223P08_CR00653,123852
Sandwell Metropolitan Borough Council,http://www.sandwell.gov.uk/info/200202/performance_and_spending/1079/payments_over_500,21-Nov-2022,Housing Revenue Account Capital,DOLPHIN LIFTS MIDLANDS LTD,Housing Revenue Account Capital,2126.66,Deferred Charges/Grant Payments,2223P08_CR00654,123852
Sandwell Metropolitan Borough Council,http://www.sandwell.gov.uk/info/200202/performance_and_spending/1079/payments_over_500,01-Nov-2022,Housing Revenue Account Capital,DOLPHIN LIFTS MIDLANDS LTD,Housing Revenue Account Capital,3610.08,Deferred Charges/Grant Payments,2223P08_CR00655,123852
Sandwell Metropolitan Borough Council,http://www.sandwell.gov.uk/info/200202/performance_and_spending/1079/payments_over_500,01-Nov-2022,Housing Revenue Account Capital,DOLPHIN LIFTS MIDLANDS LTD,Housing Revenue Account Capital,5526.99,Deferred Charges/Grant Payments,2223P08_CR00656,123852
Sandwell Metropolitan Borough Council,http://www.sandwell.gov.uk/info/200202/performance_and_spending/1079/payments_over_500,01-Nov-2022,Housing Revenue Account Capital,J.HARPER & SONS (LEOMINSTER) LIMITED,Housing Revenue Account Capital,188975.61,"CIP - New Construction,Conversion, Enhancement & Reno",2223P08_CR00657,111814
Sandwell Metropolitan Borough Council,http://www.sandwell.gov.uk/info/200202/performance_and_spending/1079/payments_over_500,06-Nov-2022,Housing Revenue Account Capital,LIFT & ENGINEERING SERVICES LTD,Housing Revenue Account Capital,6943.04,CIP - Fixtures & Fittings,2223P08_CR00658,77003962
Sandwell Metropolitan Borough Council,http://www.sandwell.gov.uk/info/200202/performance_and_spending/1079/payments_over_500,01-Nov-2022,Housing Revenue Account Capital,LOVELL PARTNERSHIPS  LTD,Housing Revenue Account Capital,374853.08,"CIP - New Construction,Conversion, Enhancement & Reno",2223P08_CR00659,77007398
Sandwell Metropolitan Borough Council,http://www.sandwell.gov.uk/info/200202/performance_and_spending/1079/payments_over_500,01-Nov-2022,Housing Revenue Account Capital,LOVELL PARTNERSHIPS  LTD,Housing Revenue Account Capital,317538.06,"CIP - New Construction,Conversion, Enhancement & Reno",2223P08_CR00660,77007398
Sandwell Metropolitan Borough Council,http://www.sandwell.gov.uk/info/200202/performance_and_spending/1079/payments_over_500,04-Nov-2022,Housing Revenue Account Capital,LOVELL PARTNERSHIPS  LTD,Housing Revenue Account Capital,173635.07,"CIP - New Construction,Conversion, Enhancement & Reno",2223P08_CR00661,77007398
Sandwell Metropolitan Borough Council,http://www.sandwell.gov.uk/info/200202/performance_and_spending/1079/payments_over_500,01-Nov-2022,Housing Revenue Account Capital,NATIONWIDE WINDOWS LIMITED,Housing Revenue Account Capital,44171.03,"CIP - New Construction,Conversion, Enhancement & Reno",2223P08_CR00662,108316
Sandwell Metropolitan Borough Council,http://www.sandwell.gov.uk/info/200202/performance_and_spending/1079/payments_over_500,16-Nov-2022,Housing Revenue Account Capital,NATIONWIDE WINDOWS LIMITED,Housing Revenue Account Capital,19589.59,"CIP - New Construction,Conversion, Enhancement & Reno",2223P08_CR00663,108316
Sandwell Metropolitan Borough Council,http://www.sandwell.gov.uk/info/200202/performance_and_spending/1079/payments_over_500,02-Nov-2022,Housing Revenue Account Capital,PARCOR LTD,Housing Revenue Account Capital,6590.50,"CIP - New Construction,Conversion, Enhancement & Reno",2223P08_CR00664,163117
Sandwell Metropolitan Borough Council,http://www.sandwell.gov.uk/info/200202/performance_and_spending/1079/payments_over_500,01-Nov-2022,Housing Revenue Account Capital,PHOENIX GAS SERVICES LIMITED,Housing Revenue Account Capital,5440.56,Contract Payments,2223P08_CR00665,126729
Sandwell Metropolitan Borough Council,http://www.sandwell.gov.uk/info/200202/performance_and_spending/1079/payments_over_500,01-Nov-2022,Housing Revenue Account Capital,PHOENIX GAS SERVICES LIMITED,Housing Revenue Account Capital,5998.45,Contract Payments,2223P08_CR00666,126729
Sandwell Metropolitan Borough Council,http://www.sandwell.gov.uk/info/200202/performance_and_spending/1079/payments_over_500,01-Nov-2022,Housing Revenue Account Capital,PHOENIX GAS SERVICES LIMITED,Housing Revenue Account Capital,4449.51,Contract Payments,2223P08_CR00667,126729
Sandwell Metropolitan Borough Council,http://www.sandwell.gov.uk/info/200202/performance_and_spending/1079/payments_over_500,05-Nov-2022,Housing Revenue Account Capital,POWRED HEATING COMPONENTS LIMITED,Housing Revenue Account Capital,3089.88,Materials & Consumables,2223P08_CR00668,133978
Sandwell Metropolitan Borough Council,http://www.sandwell.gov.uk/info/200202/performance_and_spending/1079/payments_over_500,12-Nov-2022,Housing Revenue Account Capital,POWRED HEATING COMPONENTS LIMITED,Housing Revenue Account Capital,2287.79,Materials & Consumables,2223P08_CR00669,133978
Sandwell Metropolitan Borough Council,http://www.sandwell.gov.uk/info/200202/performance_and_spending/1079/payments_over_500,17-Nov-2022,Housing Revenue Account Capital,POWRED HEATING COMPONENTS LIMITED,Housing Revenue Account Capital,879.39,Materials & Consumables,2223P08_CR00670,133978
Sandwell Metropolitan Borough Council,http://www.sandwell.gov.uk/info/200202/performance_and_spending/1079/payments_over_500,01-Nov-2022,Housing Revenue Account Capital,PR PROPERTY MAINTENANCE,Housing Revenue Account Capital,6857.15,Deferred Charges/Grant Payments,2223P08_CR00671,33836
Sandwell Metropolitan Borough Council,http://www.sandwell.gov.uk/info/200202/performance_and_spending/1079/payments_over_500,01-Nov-2022,Housing Revenue Account Capital,PR PROPERTY MAINTENANCE,Housing Revenue Account Capital,9482.54,Deferred Charges/Grant Payments,2223P08_CR00672,33836
Sandwell Metropolitan Borough Council,http://www.sandwell.gov.uk/info/200202/performance_and_spending/1079/payments_over_500,01-Nov-2022,Housing Revenue Account Capital,PR PROPERTY MAINTENANCE,Housing Revenue Account Capital,22211.88,Deferred Charges/Grant Payments,2223P08_CR00673,33836
Sandwell Metropolitan Borough Council,http://www.sandwell.gov.uk/info/200202/performance_and_spending/1079/payments_over_500,14-Nov-2022,Housing Revenue Account Capital,PR PROPERTY MAINTENANCE,Housing Revenue Account Capital,28776.65,Deferred Charges/Grant Payments,2223P08_CR00674,33836
Sandwell Metropolitan Borough Council,http://www.sandwell.gov.uk/info/200202/performance_and_spending/1079/payments_over_500,14-Nov-2022,Housing Revenue Account Capital,PR PROPERTY MAINTENANCE,Housing Revenue Account Capital,10658.66,Deferred Charges/Grant Payments,2223P08_CR00675,33836
Sandwell Metropolitan Borough Council,http://www.sandwell.gov.uk/info/200202/performance_and_spending/1079/payments_over_500,14-Nov-2022,Housing Revenue Account Capital,PR PROPERTY MAINTENANCE,Housing Revenue Account Capital,11433.69,Deferred Charges/Grant Payments,2223P08_CR00676,33836
Sandwell Metropolitan Borough Council,http://www.sandwell.gov.uk/info/200202/performance_and_spending/1079/payments_over_500,14-Nov-2022,Housing Revenue Account Capital,PR PROPERTY MAINTENANCE,Housing Revenue Account Capital,33600.20,Deferred Charges/Grant Payments,2223P08_CR00677,33836
Sandwell Metropolitan Borough Council,http://www.sandwell.gov.uk/info/200202/performance_and_spending/1079/payments_over_500,01-Nov-2022,Housing Revenue Account Capital,PR PROPERTY MAINTENANCE,Housing Revenue Account Capital,7857.66,Deferred Charges/Grant Payments,2223P08_CR00678,33836
Sandwell Metropolitan Borough Council,http://www.sandwell.gov.uk/info/200202/performance_and_spending/1079/payments_over_500,01-Nov-2022,Housing Revenue Account Capital,PR PROPERTY MAINTENANCE,Housing Revenue Account Capital,12036.95,Deferred Charges/Grant Payments,2223P08_CR00679,33836
Sandwell Metropolitan Borough Council,http://www.sandwell.gov.uk/info/200202/performance_and_spending/1079/payments_over_500,01-Nov-2022,Housing Revenue Account Capital,PR PROPERTY MAINTENANCE,Housing Revenue Account Capital,6185.81,Deferred Charges/Grant Payments,2223P08_CR00680,33836
Sandwell Metropolitan Borough Council,http://www.sandwell.gov.uk/info/200202/performance_and_spending/1079/payments_over_500,01-Nov-2022,Housing Revenue Account Capital,PR PROPERTY MAINTENANCE,Housing Revenue Account Capital,7106.72,Deferred Charges/Grant Payments,2223P08_CR00681,33836
Sandwell Metropolitan Borough Council,http://www.sandwell.gov.uk/info/200202/performance_and_spending/1079/payments_over_500,01-Nov-2022,Housing Revenue Account Capital,PR PROPERTY MAINTENANCE,Housing Revenue Account Capital,7155.48,Deferred Charges/Grant Payments,2223P08_CR00682,33836
Sandwell Metropolitan Borough Council,http://www.sandwell.gov.uk/info/200202/performance_and_spending/1079/payments_over_500,01-Nov-2022,Housing Revenue Account Capital,RIDGE & PARTNERS LLP,Housing Revenue Account Capital,800.00,Consultancy,2223P08_CR00683,134994
Sandwell Metropolitan Borough Council,http://www.sandwell.gov.uk/info/200202/performance_and_spending/1079/payments_over_500,01-Nov-2022,Housing Revenue Account Capital,RIDGE & PARTNERS LLP,Housing Revenue Account Capital,2080.00,Consultancy,2223P08_CR00684,134994
Sandwell Metropolitan Borough Council,http://www.sandwell.gov.uk/info/200202/performance_and_spending/1079/payments_over_500,10-Nov-2022,Housing Revenue Account Capital,SEDDON CONSTRUCTION LIMITED,Housing Revenue Account Capital,470412.59,"CIP - New Construction,Conversion, Enhancement & Reno",2223P08_CR00685,132999
Sandwell Metropolitan Borough Council,http://www.sandwell.gov.uk/info/200202/performance_and_spending/1079/payments_over_500,01-Nov-2022,Housing Revenue Account Capital,SEDDON CONSTRUCTION LIMITED,Housing Revenue Account Capital,268295.11,"CIP - New Construction,Conversion, Enhancement & Reno",2223P08_CR00686,132999
Sandwell Metropolitan Borough Council,http://www.sandwell.gov.uk/info/200202/performance_and_spending/1079/payments_over_500,10-Nov-2022,Housing Revenue Account Capital,SEDDON CONSTRUCTION LIMITED,Housing Revenue Account Capital,182541.22,"CIP - New Construction,Conversion, Enhancement & Reno",2223P08_CR00687,132999
Sandwell Metropolitan Borough Council,http://www.sandwell.gov.uk/info/200202/performance_and_spending/1079/payments_over_500,01-Nov-2022,Housing Revenue Account Capital,SELECT WINDOWS (HOME IMPROVEMENTS) LIMITED,Housing Revenue Account Capital,1051.42,Contract Payments,2223P08_CR00688,42616
Sandwell Metropolitan Borough Council,http://www.sandwell.gov.uk/info/200202/performance_and_spending/1079/payments_over_500,01-Nov-2022,Housing Revenue Account Capital,SELECT WINDOWS (HOME IMPROVEMENTS) LIMITED,Housing Revenue Account Capital,811.12,Contract Payments,2223P08_CR00689,42616
Sandwell Metropolitan Borough Council,http://www.sandwell.gov.uk/info/200202/performance_and_spending/1079/payments_over_500,01-Nov-2022,Housing Revenue Account Capital,SELECT WINDOWS (HOME IMPROVEMENTS) LIMITED,Housing Revenue Account Capital,879.09,Contract Payments,2223P08_CR00690,42616
Sandwell Metropolitan Borough Council,http://www.sandwell.gov.uk/info/200202/performance_and_spending/1079/payments_over_500,01-Nov-2022,Housing Revenue Account Capital,SELECT WINDOWS (HOME IMPROVEMENTS) LIMITED,Housing Revenue Account Capital,508.90,Contract Payments,2223P08_CR00691,42616
Sandwell Metropolitan Borough Council,http://www.sandwell.gov.uk/info/200202/performance_and_spending/1079/payments_over_500,01-Nov-2022,Housing Revenue Account Capital,SELECT WINDOWS (HOME IMPROVEMENTS) LIMITED,Housing Revenue Account Capital,932.79,Contract Payments,2223P08_CR00692,42616
Sandwell Metropolitan Borough Council,http://www.sandwell.gov.uk/info/200202/performance_and_spending/1079/payments_over_500,01-Nov-2022,Housing Revenue Account Capital,SELECT WINDOWS (HOME IMPROVEMENTS) LIMITED,Housing Revenue Account Capital,667.77,Contract Payments,2223P08_CR00693,42616
Sandwell Metropolitan Borough Council,http://www.sandwell.gov.uk/info/200202/performance_and_spending/1079/payments_over_500,01-Nov-2022,Housing Revenue Account Capital,SELECT WINDOWS (HOME IMPROVEMENTS) LIMITED,Housing Revenue Account Capital,1143.97,Contract Payments,2223P08_CR00694,42616
Sandwell Metropolitan Borough Council,http://www.sandwell.gov.uk/info/200202/performance_and_spending/1079/payments_over_500,20-Nov-2022,Housing Revenue Account Capital,SELECT WINDOWS (HOME IMPROVEMENTS) LIMITED,Housing Revenue Account Capital,700.56,Contract Payments,2223P08_CR00695,42616
Sandwell Metropolitan Borough Council,http://www.sandwell.gov.uk/info/200202/performance_and_spending/1079/payments_over_500,20-Nov-2022,Housing Revenue Account Capital,SELECT WINDOWS (HOME IMPROVEMENTS) LIMITED,Housing Revenue Account Capital,827.11,Contract Payments,2223P08_CR00696,42616
Sandwell Metropolitan Borough Council,http://www.sandwell.gov.uk/info/200202/performance_and_spending/1079/payments_over_500,20-Nov-2022,Housing Revenue Account Capital,SELECT WINDOWS (HOME IMPROVEMENTS) LIMITED,Housing Revenue Account Capital,2377.03,Contract Payments,2223P08_CR00697,42616
Sandwell Metropolitan Borough Council,http://www.sandwell.gov.uk/info/200202/performance_and_spending/1079/payments_over_500,20-Nov-2022,Housing Revenue Account Capital,SELECT WINDOWS (HOME IMPROVEMENTS) LIMITED,Housing Revenue Account Capital,1033.93,Contract Payments,2223P08_CR00698,42616
Sandwell Metropolitan Borough Council,http://www.sandwell.gov.uk/info/200202/performance_and_spending/1079/payments_over_500,20-Nov-2022,Housing Revenue Account Capital,SELECT WINDOWS (HOME IMPROVEMENTS) LIMITED,Housing Revenue Account Capital,504.69,Contract Payments,2223P08_CR00699,42616
Sandwell Metropolitan Borough Council,http://www.sandwell.gov.uk/info/200202/performance_and_spending/1079/payments_over_500,20-Nov-2022,Housing Revenue Account Capital,SELECT WINDOWS (HOME IMPROVEMENTS) LIMITED,Housing Revenue Account Capital,517.31,Contract Payments,2223P08_CR00700,42616
Sandwell Metropolitan Borough Council,http://www.sandwell.gov.uk/info/200202/performance_and_spending/1079/payments_over_500,02-Nov-2022,Housing Revenue Account Capital,SURE MAINTENANCE LIMITED,Housing Revenue Account Capital,448216.93,"CIP - New Construction,Conversion, Enhancement & Reno",2223P08_CR00701,93926
Sandwell Metropolitan Borough Council,http://www.sandwell.gov.uk/info/200202/performance_and_spending/1079/payments_over_500,01-Nov-2022,Housing Revenue Account Capital,"SUSIE DUKE BSc, CONSULTANT ECOLOGIST",Housing Revenue Account Capital,1104.50,"CIP - New Construction,Conversion, Enhancement & Reno",2223P08_CR00702,100601
Sandwell Metropolitan Borough Council,http://www.sandwell.gov.uk/info/200202/performance_and_spending/1079/payments_over_500,08-Nov-2022,Housing Revenue Account Capital,SYCAMORE WINDOWS & CONSERVATORIES LIMITED,Housing Revenue Account Capital,217508.27,"CIP - New Construction,Conversion, Enhancement & Reno",2223P08_CR00703,145272
Sandwell Metropolitan Borough Council,http://www.sandwell.gov.uk/info/200202/performance_and_spending/1079/payments_over_500,09-Nov-2022,Housing Revenue Account Capital,VINCI CONSTRUCTION LTD,Housing Revenue Account Capital,331579.62,"CIP - New Construction,Conversion, Enhancement & Reno",2223P08_CR00704,36361
Sandwell Metropolitan Borough Council,http://www.sandwell.gov.uk/info/200202/performance_and_spending/1079/payments_over_500,09-Nov-2022,Housing Revenue Account Capital,VINCI CONSTRUCTION LTD,Housing Revenue Account Capital,244664.40,"CIP - New Construction,Conversion, Enhancement & Reno",2223P08_CR00705,36361
Sandwell Metropolitan Borough Council,http://www.sandwell.gov.uk/info/200202/performance_and_spending/1079/payments_over_500,01-Nov-2022,Housing Revenue Account Capital,VINCI CONSTRUCTION LTD,Housing Revenue Account Capital,3613.40,Deferred Charges/Grant Payments,2223P08_CR00706,36361
Sandwell Metropolitan Borough Council,http://www.sandwell.gov.uk/info/200202/performance_and_spending/1079/payments_over_500,01-Nov-2022,Housing Revenue Account Capital,AA PROJECTS LIMITED,Housing Revenue Account Capital,1860.00,Deferred Charges/Grant Payments,2223P08_CR00707,116074
Sandwell Metropolitan Borough Council,http://www.sandwell.gov.uk/info/200202/performance_and_spending/1079/payments_over_500,01-Nov-2022,Housing Revenue Account Capital,READE BURAY LIMITED,Housing Revenue Account Capital,1080.00,Deferred Charges/Grant Payments,2223P08_CR00708,130928
Sandwell Metropolitan Borough Council,http://www.sandwell.gov.uk/info/200202/performance_and_spending/1079/payments_over_500,01-Nov-2022,Housing Revenue Account Capital,SNOWDROP INDEPENDENT LIVING LTD,Housing Revenue Account Capital,2764.38,Deferred Charges/Grant Payments,2223P08_CR00709,163165
Sandwell Metropolitan Borough Council,http://www.sandwell.gov.uk/info/200202/performance_and_spending/1079/payments_over_500,01-Nov-2022,Housing Revenue Account Capital,SNOWDROP INDEPENDENT LIVING LTD,Housing Revenue Account Capital,6106.00,Deferred Charges/Grant Payments,2223P08_CR00710,163165
Sandwell Metropolitan Borough Council,http://www.sandwell.gov.uk/info/200202/performance_and_spending/1079/payments_over_500,22-Nov-2022,Individual School Budgets With Inclusion,5 STAR DAY NURSERY - OLDBURY,Individual School Budgets With Inclusion,6563.03,Grant Payments,2223P08_CR00711,120730
Sandwell Metropolitan Borough Council,http://www.sandwell.gov.uk/info/200202/performance_and_spending/1079/payments_over_500,22-Nov-2022,Individual School Budgets With Inclusion,5 STAR DAY NURSERY LIMITED,Individual School Budgets With Inclusion,9275.18,Grant Payments,2223P08_CR00712,105382
Sandwell Metropolitan Borough Council,http://www.sandwell.gov.uk/info/200202/performance_and_spending/1079/payments_over_500,22-Nov-2022,Individual School Budgets With Inclusion,ABC DAY NURSERY & PRE SCHOOL LTD,Individual School Budgets With Inclusion,7848.23,Grant Payments,2223P08_CR00713,01472823
Sandwell Metropolitan Borough Council,http://www.sandwell.gov.uk/info/200202/performance_and_spending/1079/payments_over_500,22-Nov-2022,Individual School Budgets With Inclusion,ADVENTURE QUEST (GREAT BRIDGE) LTD,Individual School Budgets With Inclusion,5104.58,Grant Payments,2223P08_CR00714,153563
Sandwell Metropolitan Borough Council,http://www.sandwell.gov.uk/info/200202/performance_and_spending/1079/payments_over_500,22-Nov-2022,Individual School Budgets With Inclusion,AL KAHIR SCHOOL,Individual School Budgets With Inclusion,2090.45,Grant Payments,2223P08_CR00715,128728
Sandwell Metropolitan Borough Council,http://www.sandwell.gov.uk/info/200202/performance_and_spending/1079/payments_over_500,22-Nov-2022,Individual School Budgets With Inclusion,BANANA MOON DAY NURSERY,Individual School Budgets With Inclusion,6319.95,Grant Payments,2223P08_CR00716,124220
Sandwell Metropolitan Borough Council,http://www.sandwell.gov.uk/info/200202/performance_and_spending/1079/payments_over_500,22-Nov-2022,Individual School Budgets With Inclusion,BLOXCIDGE HOUSE DAY NURSERY,Individual School Budgets With Inclusion,5590.73,Grant Payments,2223P08_CR00717,82862
Sandwell Metropolitan Borough Council,http://www.sandwell.gov.uk/info/200202/performance_and_spending/1079/payments_over_500,22-Nov-2022,Individual School Budgets With Inclusion,BLUEBELLS DAY NURSERY,Individual School Budgets With Inclusion,2164.05,Grant Payments,2223P08_CR00718,01721314
Sandwell Metropolitan Borough Council,http://www.sandwell.gov.uk/info/200202/performance_and_spending/1079/payments_over_500,22-Nov-2022,Individual School Budgets With Inclusion,BOOKWORMS DAYCARE LIMITED,Individual School Budgets With Inclusion,8175.30,Grant Payments,2223P08_CR00719,114741
Sandwell Metropolitan Borough Council,http://www.sandwell.gov.uk/info/200202/performance_and_spending/1079/payments_over_500,22-Nov-2022,Individual School Budgets With Inclusion,BRIGHT LIGHTS DAY NURSERY,Individual School Budgets With Inclusion,4517.10,Grant Payments,2223P08_CR00720,89877
Sandwell Metropolitan Borough Council,http://www.sandwell.gov.uk/info/200202/performance_and_spending/1079/payments_over_500,22-Nov-2022,Individual School Budgets With Inclusion,BUSY BEE NURSERY,Individual School Budgets With Inclusion,9398.90,Grant Payments,2223P08_CR00721,01222577
Sandwell Metropolitan Borough Council,http://www.sandwell.gov.uk/info/200202/performance_and_spending/1079/payments_over_500,22-Nov-2022,Individual School Budgets With Inclusion,CAP DAY NURSERY,Individual School Budgets With Inclusion,3476.55,Grant Payments,2223P08_CR00722,51154
Sandwell Metropolitan Borough Council,http://www.sandwell.gov.uk/info/200202/performance_and_spending/1079/payments_over_500,22-Nov-2022,Individual School Budgets With Inclusion,CATHERINE HOUSE DAY NURSERY,Individual School Budgets With Inclusion,2885.40,Grant Payments,2223P08_CR00723,08587767
Sandwell Metropolitan Borough Council,http://www.sandwell.gov.uk/info/200202/performance_and_spending/1079/payments_over_500,22-Nov-2022,Individual School Budgets With Inclusion,CONFEDERATION OF BANGLADESHI ORGANISATIONS (CBO) LIMITED,Individual School Budgets With Inclusion,1458.45,Grant Payments,2223P08_CR00724,10034
Sandwell Metropolitan Borough Council,http://www.sandwell.gov.uk/info/200202/performance_and_spending/1079/payments_over_500,22-Nov-2022,Individual School Budgets With Inclusion,CONIFERS DAY NURSERY LTD,Individual School Budgets With Inclusion,4375.35,Grant Payments,2223P08_CR00725,131957
Sandwell Metropolitan Borough Council,http://www.sandwell.gov.uk/info/200202/performance_and_spending/1079/payments_over_500,22-Nov-2022,Individual School Budgets With Inclusion,DAFFODILS NURSERY LTD,Individual School Budgets With Inclusion,6208.13,Grant Payments,2223P08_CR00726,120066
Sandwell Metropolitan Borough Council,http://www.sandwell.gov.uk/info/200202/performance_and_spending/1079/payments_over_500,22-Nov-2022,Individual School Budgets With Inclusion,FAIRYTALES NURSERY LTD,Individual School Budgets With Inclusion,8079.12,Grant Payments,2223P08_CR00727,106247
Sandwell Metropolitan Borough Council,http://www.sandwell.gov.uk/info/200202/performance_and_spending/1079/payments_over_500,22-Nov-2022,Individual School Budgets With Inclusion,FATIMA DAY NURSERY,Individual School Budgets With Inclusion,3889.20,Grant Payments,2223P08_CR00728,131343
Sandwell Metropolitan Borough Council,http://www.sandwell.gov.uk/info/200202/performance_and_spending/1079/payments_over_500,22-Nov-2022,Individual School Budgets With Inclusion,FIREFLIES NURSERY LIMITED,Individual School Budgets With Inclusion,6076.88,Grant Payments,2223P08_CR00729,124120
Sandwell Metropolitan Borough Council,http://www.sandwell.gov.uk/info/200202/performance_and_spending/1079/payments_over_500,22-Nov-2022,Individual School Budgets With Inclusion,FIRST STEPS DAY NURSERY,Individual School Budgets With Inclusion,7535.33,Grant Payments,2223P08_CR00730,51155
Sandwell Metropolitan Borough Council,http://www.sandwell.gov.uk/info/200202/performance_and_spending/1079/payments_over_500,22-Nov-2022,Individual School Budgets With Inclusion,FIRST STEPS OLDBURY,Individual School Budgets With Inclusion,3403.05,Grant Payments,2223P08_CR00731,118886
Sandwell Metropolitan Borough Council,http://www.sandwell.gov.uk/info/200202/performance_and_spending/1079/payments_over_500,22-Nov-2022,Individual School Budgets With Inclusion,GENIUS GEMS,Individual School Budgets With Inclusion,6627.39,Grant Payments,2223P08_CR00732,160606
Sandwell Metropolitan Borough Council,http://www.sandwell.gov.uk/info/200202/performance_and_spending/1079/payments_over_500,22-Nov-2022,Individual School Budgets With Inclusion,GNG NURSERY,Individual School Budgets With Inclusion,7292.25,Grant Payments,2223P08_CR00733,114805
Sandwell Metropolitan Borough Council,http://www.sandwell.gov.uk/info/200202/performance_and_spending/1079/payments_over_500,22-Nov-2022,Individual School Budgets With Inclusion,HUMPTY DUMPTYS DAY NURSERY,Individual School Budgets With Inclusion,7292.25,Grant Payments,2223P08_CR00734,08510771
Sandwell Metropolitan Borough Council,http://www.sandwell.gov.uk/info/200202/performance_and_spending/1079/payments_over_500,22-Nov-2022,Individual School Budgets With Inclusion,JUNIPER'S PRESCHOOL,Individual School Budgets With Inclusion,3366.30,Grant Payments,2223P08_CR00735,154579
Sandwell Metropolitan Borough Council,http://www.sandwell.gov.uk/info/200202/performance_and_spending/1079/payments_over_500,22-Nov-2022,Individual School Budgets With Inclusion,K L THAW CHILDMINDING,Individual School Budgets With Inclusion,951.30,Grant Payments,2223P08_CR00736,104746
Sandwell Metropolitan Borough Council,http://www.sandwell.gov.uk/info/200202/performance_and_spending/1079/payments_over_500,22-Nov-2022,Individual School Budgets With Inclusion,KANGAROO POUCH AT GREAT BRIDGE,Individual School Budgets With Inclusion,6563.03,Grant Payments,2223P08_CR00737,129771
Sandwell Metropolitan Borough Council,http://www.sandwell.gov.uk/info/200202/performance_and_spending/1079/payments_over_500,22-Nov-2022,Individual School Budgets With Inclusion,KANGAROO POUCH AT TIVIDALE,Individual School Budgets With Inclusion,4994.33,Grant Payments,2223P08_CR00738,113715
Sandwell Metropolitan Borough Council,http://www.sandwell.gov.uk/info/200202/performance_and_spending/1079/payments_over_500,22-Nov-2022,Individual School Budgets With Inclusion,KANGAROO POUCH CHARLEMONT,Individual School Budgets With Inclusion,3973.20,Grant Payments,2223P08_CR00739,117283
Sandwell Metropolitan Borough Council,http://www.sandwell.gov.uk/info/200202/performance_and_spending/1079/payments_over_500,22-Nov-2022,Individual School Budgets With Inclusion,KANGAROO POUCH LIMITED,Individual School Budgets With Inclusion,4087.65,Grant Payments,2223P08_CR00740,106981
Sandwell Metropolitan Borough Council,http://www.sandwell.gov.uk/info/200202/performance_and_spending/1079/payments_over_500,22-Nov-2022,Individual School Budgets With Inclusion,LAVENDER FARM DAY NURSERY,Individual School Budgets With Inclusion,25279.80,Grant Payments,2223P08_CR00741,65596
Sandwell Metropolitan Borough Council,http://www.sandwell.gov.uk/info/200202/performance_and_spending/1079/payments_over_500,22-Nov-2022,Individual School Budgets With Inclusion,LILLIPUT LODGE CHILDRENS DAY NURSERY,Individual School Budgets With Inclusion,5945.63,Grant Payments,2223P08_CR00742,2980
Sandwell Metropolitan Borough Council,http://www.sandwell.gov.uk/info/200202/performance_and_spending/1079/payments_over_500,22-Nov-2022,Individual School Budgets With Inclusion,LITTLE ACADEMY NURSERY,Individual School Budgets With Inclusion,721.35,Grant Payments,2223P08_CR00743,81904
Sandwell Metropolitan Borough Council,http://www.sandwell.gov.uk/info/200202/performance_and_spending/1079/payments_over_500,22-Nov-2022,Individual School Budgets With Inclusion,LITTLE ANGELS DAY NURSERY LIMITED,Individual School Budgets With Inclusion,2916.90,Grant Payments,2223P08_CR00744,10207
Sandwell Metropolitan Borough Council,http://www.sandwell.gov.uk/info/200202/performance_and_spending/1079/payments_over_500,22-Nov-2022,Individual School Budgets With Inclusion,LITTLE EXPLORERS (WEST MIDLANDS) LTD,Individual School Budgets With Inclusion,10938.38,Grant Payments,2223P08_CR00745,114804
Sandwell Metropolitan Borough Council,http://www.sandwell.gov.uk/info/200202/performance_and_spending/1079/payments_over_500,22-Nov-2022,Individual School Budgets With Inclusion,LITTLE LEARNERS LTD,Individual School Budgets With Inclusion,6208.13,Grant Payments,2223P08_CR00746,01424133
Sandwell Metropolitan Borough Council,http://www.sandwell.gov.uk/info/200202/performance_and_spending/1079/payments_over_500,22-Nov-2022,Individual School Budgets With Inclusion,LITTLE LEGEND NURSERIES LTD,Individual School Budgets With Inclusion,2558.33,Grant Payments,2223P08_CR00747,117890
Sandwell Metropolitan Borough Council,http://www.sandwell.gov.uk/info/200202/performance_and_spending/1079/payments_over_500,22-Nov-2022,Individual School Budgets With Inclusion,LITTLE SAPLINGS CHILDCARE CENTRES,Individual School Budgets With Inclusion,8415.75,Grant Payments,2223P08_CR00748,131043
Sandwell Metropolitan Borough Council,http://www.sandwell.gov.uk/info/200202/performance_and_spending/1079/payments_over_500,22-Nov-2022,Individual School Budgets With Inclusion,LITTLE STEPPERS,Individual School Budgets With Inclusion,3476.55,Grant Payments,2223P08_CR00749,120240
Sandwell Metropolitan Borough Council,http://www.sandwell.gov.uk/info/200202/performance_and_spending/1079/payments_over_500,22-Nov-2022,Individual School Budgets With Inclusion,LITTLE VALERS PRE SCHOOL,Individual School Budgets With Inclusion,11177.78,Grant Payments,2223P08_CR00750,99107
Sandwell Metropolitan Borough Council,http://www.sandwell.gov.uk/info/200202/performance_and_spending/1079/payments_over_500,22-Nov-2022,Individual School Budgets With Inclusion,LITTLE WENDY HOUSE DAY NURSERY,Individual School Budgets With Inclusion,13855.28,Grant Payments,2223P08_CR00751,91544
Sandwell Metropolitan Borough Council,http://www.sandwell.gov.uk/info/200202/performance_and_spending/1079/payments_over_500,22-Nov-2022,Individual School Budgets With Inclusion,LOLA BELLES PRIVATE DAY NURSERY,Individual School Budgets With Inclusion,5530.35,Grant Payments,2223P08_CR00752,89271
Sandwell Metropolitan Borough Council,http://www.sandwell.gov.uk/info/200202/performance_and_spending/1079/payments_over_500,22-Nov-2022,Individual School Budgets With Inclusion,MINI MONKEYS LTD,Individual School Budgets With Inclusion,6319.95,Grant Payments,2223P08_CR00753,114818
Sandwell Metropolitan Borough Council,http://www.sandwell.gov.uk/info/200202/performance_and_spending/1079/payments_over_500,22-Nov-2022,Individual School Budgets With Inclusion,MINNS LIMITED,Individual School Budgets With Inclusion,4718.18,Grant Payments,2223P08_CR00754,120067
Sandwell Metropolitan Borough Council,http://www.sandwell.gov.uk/info/200202/performance_and_spending/1079/payments_over_500,22-Nov-2022,Individual School Budgets With Inclusion,MOORLANDS LITTLE LEARNERS PLAYGROUP,Individual School Budgets With Inclusion,7292.25,Grant Payments,2223P08_CR00755,46390
Sandwell Metropolitan Borough Council,http://www.sandwell.gov.uk/info/200202/performance_and_spending/1079/payments_over_500,22-Nov-2022,Individual School Budgets With Inclusion,N & K VARMA LIMITED T/A (KIDDIES PLAYHOUSE TIPTON),Individual School Budgets With Inclusion,4618.43,Grant Payments,2223P08_CR00756,26124
Sandwell Metropolitan Borough Council,http://www.sandwell.gov.uk/info/200202/performance_and_spending/1079/payments_over_500,22-Nov-2022,Individual School Budgets With Inclusion,OUR LADY AND ST HUBERTS CATHOLIC PRIMARY SCHOOL    ,Individual School Budgets With Inclusion,4018.84,Grant Payments,2223P08_CR00757,61053
Sandwell Metropolitan Borough Council,http://www.sandwell.gov.uk/info/200202/performance_and_spending/1079/payments_over_500,22-Nov-2022,Individual School Budgets With Inclusion,PERRYFIELDS PRE SCHOOL,Individual School Budgets With Inclusion,3963.75,Grant Payments,2223P08_CR00758,18879
Sandwell Metropolitan Borough Council,http://www.sandwell.gov.uk/info/200202/performance_and_spending/1079/payments_over_500,22-Nov-2022,Individual School Budgets With Inclusion,PITTA PATTA DAYCARE,Individual School Budgets With Inclusion,3476.55,Grant Payments,2223P08_CR00759,114742
Sandwell Metropolitan Borough Council,http://www.sandwell.gov.uk/info/200202/performance_and_spending/1079/payments_over_500,22-Nov-2022,Individual School Budgets With Inclusion,PLAYHOUSE DAY NURSERY,Individual School Budgets With Inclusion,3889.20,Grant Payments,2223P08_CR00760,01586669
Sandwell Metropolitan Borough Council,http://www.sandwell.gov.uk/info/200202/performance_and_spending/1079/payments_over_500,22-Nov-2022,Individual School Budgets With Inclusion,RAK DAY CARE LTD T/A HAPPY VALLEY PRE SCHOOL LTD,Individual School Budgets With Inclusion,5590.73,Grant Payments,2223P08_CR00761,01572212
Sandwell Metropolitan Borough Council,http://www.sandwell.gov.uk/info/200202/performance_and_spending/1079/payments_over_500,22-Nov-2022,Individual School Budgets With Inclusion,RARE WOOD LIMITED,Individual School Budgets With Inclusion,8691.38,Grant Payments,2223P08_CR00762,20167
Sandwell Metropolitan Borough Council,http://www.sandwell.gov.uk/info/200202/performance_and_spending/1079/payments_over_500,22-Nov-2022,Individual School Budgets With Inclusion,ROOTS & SHOOTS PLAYGROUP,Individual School Budgets With Inclusion,5001.15,Grant Payments,2223P08_CR00763,75502
Sandwell Metropolitan Borough Council,http://www.sandwell.gov.uk/info/200202/performance_and_spending/1079/payments_over_500,22-Nov-2022,Individual School Budgets With Inclusion,ROWLEY VILLAGE DAY NURSERY,Individual School Budgets With Inclusion,9479.93,Grant Payments,2223P08_CR00764,24228
Sandwell Metropolitan Borough Council,http://www.sandwell.gov.uk/info/200202/performance_and_spending/1079/payments_over_500,22-Nov-2022,Individual School Budgets With Inclusion,SADWICA DAY NURSERY,Individual School Budgets With Inclusion,4966.50,Grant Payments,2223P08_CR00765,01667892
Sandwell Metropolitan Borough Council,http://www.sandwell.gov.uk/info/200202/performance_and_spending/1079/payments_over_500,22-Nov-2022,Individual School Budgets With Inclusion,SANDWELL NHS TRUST DAY NURSERY,Individual School Budgets With Inclusion,10209.15,Grant Payments,2223P08_CR00766,40788
